Supplier Name,Transaction Number, Paid Date,Paid Amount, Department,Cost Centre,Description,Irrecoverable VAT
1 CALL BUSINESS SOLUTIONS LIMITED,2050953,17/02/2021,130.00,Children & Young People,C2090,Contractors - Main,
1 CALL BUSINESS SOLUTIONS LIMITED,2050953,17/02/2021,157.60,Children & Young People,C2090,Contractors - Main,
1 CALL BUSINESS SOLUTIONS LIMITED,2048977,10/02/2021,165.00,Regeneration & Place,D2020,"Repairs, alterations and maintenance",
1 CALL BUSINESS SOLUTIONS LIMITED,2046351,03/02/2021,430.00,Regeneration & Place,D2140,"Repairs, alterations and maintenance",
1 CALL BUSINESS SOLUTIONS LIMITED,2048709,09/02/2021,410.00,Regeneration & Place,D2180,"Repairs, alterations and maintenance",
1 CALL BUSINESS SOLUTIONS LIMITED,2050436,16/02/2021,"1,017.00",Regeneration & Place,D2510,Hired or Contracted services,
1 CALL BUSINESS SOLUTIONS LIMITED,2050436,16/02/2021,981.57,Regeneration & Place,D2510,Hired or Contracted services,
1 CALL BUSINESS SOLUTIONS LIMITED,2050436,16/02/2021,898.93,Regeneration & Place,D2510,Hired or Contracted services,
1 CALL BUSINESS SOLUTIONS LIMITED,2050953,17/02/2021,"9,494.85",Regeneration & Place,D2510,Hired or Contracted services,
1 CALL BUSINESS SOLUTIONS LIMITED,2050953,17/02/2021,"9,494.85",Regeneration & Place,D2510,Hired or Contracted services,
1 CALL BUSINESS SOLUTIONS LIMITED,2051378,18/02/2021,225.00,Regeneration & Place,D2510,"Repairs, alterations and maintenance",
1 CALL BUSINESS SOLUTIONS LIMITED,2051378,18/02/2021,965.00,Regeneration & Place,D2510,"Repairs, alterations and maintenance",
1 CALL BUSINESS SOLUTIONS LIMITED,2046351,03/02/2021,450.00,Regeneration & Place,D2700,"Repairs, alterations and maintenance",
1 CALL BUSINESS SOLUTIONS LIMITED,2050953,17/02/2021,220.00,Regeneration & Place,D2700,"Repairs, alterations and maintenance",
1 CALL BUSINESS SOLUTIONS LIMITED,2048709,09/02/2021,702.00,Neighbourhood Services,D3512,Hired or Contracted services,
1 CALL BUSINESS SOLUTIONS LIMITED,2048977,10/02/2021,210.00,Regeneration & Place,D3544,"Repairs, alterations and maintenance",
1 CALL BUSINESS SOLUTIONS LIMITED,2048709,09/02/2021,"9,275.40",Regeneration & Place,D4040,Cleaning & Domestic Supplies,
1 CALL BUSINESS SOLUTIONS LIMITED,2046058,02/02/2021,"9,518.40",Regeneration & Place,D4040,Cleaning & Domestic Supplies,
1 CALL BUSINESS SOLUTIONS LIMITED,2048709,09/02/2021,80.00,Regeneration & Place,D5500,"Repairs, alterations and maintenance",
1 CALL BUSINESS SOLUTIONS LIMITED,2051378,18/02/2021,140.00,Regeneration & Place,D8014,"Repairs, alterations and maintenance",
1 CALL BUSINESS SOLUTIONS LIMITED,2049969,12/02/2021,"8,985.50",Resources,F2016,"Equipment, Furniture & Materials",
1 CALL BUSINESS SOLUTIONS LIMITED,2049269,11/02/2021,"14,909.00",Resources,F2016,"Equipment, Furniture & Materials",
1 CALL BUSINESS SOLUTIONS LIMITED,2050436,16/02/2021,"16,517.00",Resources,F2016,"Equipment, Furniture & Materials",
1 CALL BUSINESS SOLUTIONS LIMITED,2046351,03/02/2021,"1,037.00",Covid,H4092,Grants to Voluntary Organisations,
1 CALL BUSINESS SOLUTIONS LIMITED,2048709,09/02/2021,594.07,Covid,H4094,Legal Service Provider,
1 CALL BUSINESS SOLUTIONS LIMITED,2048709,09/02/2021,"3,675.00",Covid,H4100,Cleaning & Domestic Supplies,
1 CALL BUSINESS SOLUTIONS LIMITED,2048977,10/02/2021,"3,675.00",Covid,H4100,Cleaning & Domestic Supplies,
1 CALL BUSINESS SOLUTIONS LIMITED,2046351,03/02/2021,60.00,Covid,H4117,Grants to Voluntary Organisations,
1 CALL BUSINESS SOLUTIONS LIMITED,2050436,16/02/2021,380.00,Covid,H4133,"Repairs, alterations and maintenance",
1 CALL BUSINESS SOLUTIONS LIMITED,2050436,16/02/2021,95.00,Covid,H4133,"Repairs, alterations and maintenance",
1 CALL BUSINESS SOLUTIONS LIMITED,2048977,10/02/2021,160.00,Covid,H4133,"Repairs, alterations and maintenance",
1 CALL BUSINESS SOLUTIONS LIMITED,2050436,16/02/2021,286.25,Covid,H4133,"Repairs, alterations and maintenance",
1 CALL BUSINESS SOLUTIONS LIMITED,2051378,18/02/2021,550.00,Covid,H4133,"Repairs, alterations and maintenance",
1 CALL BUSINESS SOLUTIONS LIMITED,2050176,15/02/2021,115.00,Neighbourhood Services,L3010,"Repairs, alterations and maintenance",
1 CALL BUSINESS SOLUTIONS LIMITED,2049269,11/02/2021,145.00,Neighbourhood Services,L3250,"Repairs, alterations and maintenance",
1 CALL BUSINESS SOLUTIONS LIMITED,2050176,15/02/2021,120.00,Regeneration & Place,L3970,"Repairs, alterations and maintenance",
1 CALL BUSINESS SOLUTIONS LIMITED,2050953,17/02/2021,140.00,Neighbourhood Services,L5410,"Repairs, alterations and maintenance",
1ST AFFINITY FOSTERING SERVICE LIMITED,2049271,11/02/2021,"5,535.67","Children, Families & Education",E7080,Care Provision,
1ST AFFINITY FOSTERING SERVICE LIMITED,2049271,11/02/2021,"3,587.01","Children, Families & Education",E7080,Care Provision,
1ST ENABLE LIMITED,2053116,25/02/2021,"49,514.35",Covid,H4094,Physical Support - Older People (65+),
1ST ENABLE LIMITED,2050438,16/02/2021,296.56,Adults Care and Health and Strategic Commissioning,S6141,Learning & Disability Support - Adults (18-64),
2468 GROUP,2048710,09/02/2021,107.01,Regeneration & Place,D2550,"Equipment, Furniture & Materials",
365 SUPPORT LIMITED,2053117,25/02/2021,"87,968.35",Adults Care and Health and Strategic Commissioning,S6165,Mental Health Support - Adults (18-64),
51 WELLINGTON ROAD RES HOME,2050440,16/02/2021,"2,076.00",Adults Care and Health and Strategic Commissioning,S6121,Learning & Disability Support - Adults (18-64),
51 WELLINGTON ROAD RES HOME,2050440,16/02/2021,"2,076.00",Adults Care and Health and Strategic Commissioning,S6121,Learning & Disability Support - Adults (18-64),
51 WELLINGTON ROAD RES HOME,2050440,16/02/2021,"2,076.00",Adults Care and Health and Strategic Commissioning,S6121,Learning & Disability Support - Adults (18-64),
51 WELLINGTON ROAD RES HOME,2050440,16/02/2021,"2,076.00",Adults Care and Health and Strategic Commissioning,S6121,Learning & Disability Support - Adults (18-64),
51 WELLINGTON ROAD RES HOME,2050440,16/02/2021,960.00,Adults Care and Health and Strategic Commissioning,S6121,Learning & Disability Support - Adults (18-64),
51 WELLINGTON ROAD RES HOME,2050440,16/02/2021,720.00,Adults Care and Health and Strategic Commissioning,S6121,Learning & Disability Support - Adults (18-64),
51 WELLINGTON ROAD RES HOME,2050440,16/02/2021,"2,076.00",Adults Care and Health and Strategic Commissioning,S6141,Learning & Disability Support - Adults (18-64),
51 WELLINGTON ROAD RES HOME,2050440,16/02/2021,"2,076.00",Adults Care and Health and Strategic Commissioning,S6141,Learning & Disability Support - Adults (18-64),
51 WELLINGTON ROAD RES HOME,2050440,16/02/2021,"2,076.00",Adults Care and Health and Strategic Commissioning,S6142,Learning & Disability Support - Adults (18-64),
51 WELLINGTON ROAD RES HOME,2050440,16/02/2021,"2,076.00",Adults Care and Health and Strategic Commissioning,S6142,Mental Health Support - Older People (65+),
A ROOKE MARTIN & COMPANY,2048712,09/02/2021,"1,400.00",Regeneration & Place,H6080,Expenses,
A TEAM WIRRAL LIMITED,2052801,24/02/2021,"1,179.22",Neighbourhood Services,E5730,School Transport - College,
A TEAM WIRRAL LIMITED,2046354,03/02/2021,"15,430.27",Neighbourhood Services,E5730,School Transport - Primary,
A TEAM WIRRAL LIMITED,2048983,10/02/2021,"15,665.43",Neighbourhood Services,E5730,School Transport - Primary,
A TEAM WIRRAL LIMITED,2050441,16/02/2021,"15,398.15",Neighbourhood Services,E5730,School Transport - Primary,
A TEAM WIRRAL LIMITED,2053558,26/02/2021,68.32,"Children, Families & Education",E9480,Passenger Transport,
A TEAM WIRRAL LIMITED,2046354,03/02/2021,109.84,"Children, Families & Education",E9480,Passenger Transport,
A1 MOBILE INDUSTRIAL DOMESTIC SURFACE CLEANERS ATA DESCALING SERVICES,2053559,26/02/2021,600.00,Neighbourhood Services,L4971,Grounds Maintenance,
A1A TRAVEL,2048713,09/02/2021,"14,773.60",Neighbourhood Services,E5730,School Transport - Secondary,
A1A TRAVEL,2048713,09/02/2021,"17,952.03",Neighbourhood Services,E5730,School Transport - Secondary,
A1A TRAVEL,2048713,09/02/2021,"17,988.08",Neighbourhood Services,E5730,School Transport - Secondary,
A1A TRAVEL,2048713,09/02/2021,"18,139.50",Neighbourhood Services,E5730,School Transport - Secondary,
A2B SKIP HIRE WIRRAL LTD,2049274,11/02/2021,190.00,"Children, Families & Education",E8940,Cleaning & Domestic Supplies,
A2B SKIP HIRE WIRRAL LTD,2052802,24/02/2021,360.00,Regeneration & Place,H6080,"Equipment, Furniture & Materials",
A2B TRAVEL (UK) LIMITED,2046356,03/02/2021,"5,893.10",Neighbourhood Services,E5730,School Transport - Special,
A2B TRAVEL (UK) LIMITED,2049275,11/02/2021,"5,893.10",Neighbourhood Services,E5730,School Transport - Special,
A2B TRAVEL (UK) LIMITED,2045815,01/02/2021,"5,189.74",Neighbourhood Services,E5730,School Transport - Special,
A2B TRAVEL (UK) LIMITED,2052561,23/02/2021,"6,251.60",Neighbourhood Services,E5730,School Transport - Special,
A2B TRAVEL (UK) LIMITED,2046356,03/02/2021,"1,899.97",Neighbourhood Services,S5600,Care Provision,
A2B TRAVEL (UK) LIMITED,2049275,11/02/2021,"1,899.97",Neighbourhood Services,S5600,Care Provision,
A2B TRAVEL (UK) LIMITED,2045815,01/02/2021,"1,678.71",Neighbourhood Services,S5600,Care Provision,
A2B TRAVEL (UK) LIMITED,2052561,23/02/2021,"1,842.72",Neighbourhood Services,S5600,Care Provision,
A2I TRANSCRIPTION SERVICES LIMITED,2046062,02/02/2021,25.00,Resources,F4610,Specialist Contracts & Fees,
AA FENCING UK LIMITED,2050442,16/02/2021,882.98,Neighbourhood Services,V1920,"Equipment, Furniture & Materials",
ABBEYFIELD HOYLAKE & WEST KIRBY,2050177,15/02/2021,"2,944.20",Covid,H4094,Care Provision,
ABBEYFIELD HOYLAKE & WEST KIRBY,2052393,22/02/2021,"6,500.00",Covid,H4094,Rents - external,
ABBEYFIELD HOYLAKE & WEST KIRBY,2046357,03/02/2021,"8,642.86",Covid,H4094,Rents - external,
ABBEYFIELD HOYLAKE & WEST KIRBY,2050444,16/02/2021,"1,936.00",Adults Care and Health and Strategic Commissioning,S6141,Physical Support - Older People (65+),
ABBEYFIELD HOYLAKE & WEST KIRBY,2050444,16/02/2021,"1,936.00",Adults Care and Health and Strategic Commissioning,S6141,Physical Support - Older People (65+),
ABBEYFIELD HOYLAKE & WEST KIRBY,2050444,16/02/2021,"1,936.00",Adults Care and Health and Strategic Commissioning,S6141,Physical Support - Older People (65+),
ABBEYLAWNS LIMITED,2050443,16/02/2021,-595.40,Adults Care and Health and Strategic Commissioning,S6142,Customer and Client - Community Care,
ABBEYLAWNS LIMITED,2050443,16/02/2021,"1,478.48",Adults Care and Health and Strategic Commissioning,S6142,Mental Health Support - Older People (65+),
ABBOTT TOXICOLOGY LIMITED,2050445,16/02/2021,210.00,Law & Governance (Monitoring Officer),A1305,Legal Service Provider,
ABL HEALTH LIMITED,2050179,15/02/2021,"58,156.50",Adults Care and Health and Strategic Commissioning,P4040,Hired or Contracted services,
ABOUT WITH FRIENDS,2053560,26/02/2021,"1,008.24",Adults Care and Health and Strategic Commissioning,S6161,Mental Health Support - Adults (18-64),
ABSOLUTE INTERPRETING & TRANSLATIONS LIMITED,2045816,01/02/2021,600.00,Covid,H4114,Services,
ACORN CHILDCARE WIRRAL - REBECCA METCALFE,2050955,17/02/2021,53.92,Covid,H4114,Hired or Contracted services,
ACTIVE 8 SUPPORT SERVICES,2051382,18/02/2021,"14,500.00","Children, Families & Education",E6540,Hired or Contracted services,
ACTIVE 8 SUPPORT SERVICES,2051382,18/02/2021,100.00,"Children, Families & Education",E7036,Care Provision,
ACTIVE 8 SUPPORT SERVICES,2053124,25/02/2021,89.00,"Children, Families & Education",E7036,Care Provision,
ACTIVE 8 SUPPORT SERVICES,2051382,18/02/2021,"1,584.99","Children, Families & Education",E7081,Care Provision,
ACTIVE 8 SUPPORT SERVICES,2051382,18/02/2021,"1,363.56","Children, Families & Education",E7081,Care Provision,
ACTIVE 8 SUPPORT SERVICES,2051382,18/02/2021,"1,363.56","Children, Families & Education",E7081,Care Provision,
ACTIVE 8 SUPPORT SERVICES,2051382,18/02/2021,527.83,"Children, Families & Education",E7081,Care Provision,
ACTIVE 8 SUPPORT SERVICES,2053561,26/02/2021,"1,175.96","Children, Families & Education",E7081,Care Provision,
ACTIVECARE LIMITED T/A WESTWOOD HALL,2050447,16/02/2021,"7,303.40",Covid,H4094,Physical Support - Older People (65+),
ACTIVECARE LIMITED T/A WESTWOOD HALL,2050447,16/02/2021,"14,207.66",Covid,H4148,Physical Support - Older People (65+),
ACTIVECARE LIMITED T/A WESTWOOD HALL,2050447,16/02/2021,"2,096.00",Adults Care and Health and Strategic Commissioning,S6131,Physical Support - Older People (65+),
ACTIVECARE LIMITED T/A WESTWOOD HALL,2050447,16/02/2021,200.00,Adults Care and Health and Strategic Commissioning,S6131,Physical Support - Older People (65+),
ACTIVECARE LIMITED T/A WESTWOOD HALL,2050447,16/02/2021,"2,096.00",Adults Care and Health and Strategic Commissioning,S6131,Physical Support - Older People (65+),
ACTIVECARE LIMITED T/A WESTWOOD HALL,2050447,16/02/2021,"1,936.00",Adults Care and Health and Strategic Commissioning,S6131,Physical Support - Older People (65+),
ACTIVECARE LIMITED T/A WESTWOOD HALL,2050447,16/02/2021,"1,098.00",Adults Care and Health and Strategic Commissioning,S6131,Physical Support - Older People (65+),
ACTIVECARE LIMITED T/A WESTWOOD HALL,2050447,16/02/2021,"-1,045.71",Adults Care and Health and Strategic Commissioning,S6131,Physical Support - Older People (65+),
ACTIVECARE LIMITED T/A WESTWOOD HALL,2050447,16/02/2021,"1,464.00",Adults Care and Health and Strategic Commissioning,S6131,Physical Support - Older People (65+),
ACTIVECARE LIMITED T/A WESTWOOD HALL,2050447,16/02/2021,"-1,464.00",Adults Care and Health and Strategic Commissioning,S6131,Physical Support - Older People (65+),
ACTIVECARE LIMITED T/A WESTWOOD HALL,2050447,16/02/2021,"1,464.00",Adults Care and Health and Strategic Commissioning,S6131,Physical Support - Older People (65+),
ACTIVECARE LIMITED T/A WESTWOOD HALL,2050447,16/02/2021,"2,096.00",Adults Care and Health and Strategic Commissioning,S6141,Physical Support - Older People (65+),
ACTIVECARE LIMITED T/A WESTWOOD HALL,2050447,16/02/2021,"1,936.00",Adults Care and Health and Strategic Commissioning,S6167,Physical Support - Older People (65+),
ACTIVECARE LIMITED T/A WESTWOOD HALL,2050447,16/02/2021,685.71,Adults Care and Health and Strategic Commissioning,S6998,Physical Support - Older People (65+),
ACTIVECARE LIMITED T/A WESTWOOD HALL,2050447,16/02/2021,800.00,Adults Care and Health and Strategic Commissioning,S6998,Physical Support - Older People (65+),
ACTSO LIMITED,2049276,11/02/2021,121.00,Neighbourhood Services,H3200,Payments to Other Agencies,
ADOPTION MATTERS,2049278,11/02/2021,70.00,"Children, Families & Education",E7041,Care Provision,
ADOPTION MATTERS,2049278,11/02/2021,675.00,"Children, Families & Education",E7041,Care Provision,
ADOPTION MATTERS,2049278,11/02/2021,710.00,"Children, Families & Education",E7041,Care Provision,
ADOPTION MATTERS,2050956,17/02/2021,700.00,"Children, Families & Education",E7041,Care Provision,
ADOPTION MATTERS,2050956,17/02/2021,490.00,"Children, Families & Education",E7041,Care Provision,
ADOPTION MATTERS,2050956,17/02/2021,"1,037.00","Children, Families & Education",E7041,Care Provision,
ADOPTION MATTERS,2049278,11/02/2021,420.00,"Children, Families & Education",E7041,Care Provision,
ADOPTION MATTERS,2049278,11/02/2021,978.00,"Children, Families & Education",E7041,Care Provision,
ADOPTION MATTERS,2049278,11/02/2021,210.00,"Children, Families & Education",E7041,Care Provision,
ADOPTION MATTERS,2049278,11/02/2021,"1,120.00","Children, Families & Education",E7041,Care Provision,
ADOPTION MATTERS,2049278,11/02/2021,"1,260.00","Children, Families & Education",E7041,Care Provision,
ADOPTION MATTERS,2049278,11/02/2021,486.67,"Children, Families & Education",E7041,Care Provision,
ADOPTION MATTERS,2049278,11/02/2021,680.00,"Children, Families & Education",E7041,Care Provision,
ADOPTION MATTERS,2049278,11/02/2021,648.00,"Children, Families & Education",E7041,Care Provision,
ADOPTION MATTERS,2048056,05/02/2021,"32,063.00","Children, Families & Education",E7041,Specialist Contracts & Fees,
ADOPTIONPLUS LIMITED,2048057,05/02/2021,"1,120.00","Children, Families & Education",E7041,Care Provision,
ADTAXIS-WIRRAL,2048715,09/02/2021,"2,417.28",Neighbourhood Services,S5600,Care Provision,
ADTAXIS-WIRRAL,2050448,16/02/2021,"2,285.88",Neighbourhood Services,S5600,Care Provision,
ADTAXIS-WIRRAL,2046363,03/02/2021,"2,286.03",Neighbourhood Services,S5600,Care Provision,
ADTAXIS-WIRRAL,2052563,23/02/2021,418.15,Neighbourhood Services,S5600,Care Provision,
ADVANCE SYSTEMS (NW) LIMITED,2049279,11/02/2021,"1,492.04","Children, Families & Education",H4020,Hired or Contracted services,
ADVANCE SYSTEMS (NW) LIMITED,2046063,02/02/2021,"3,941.26","Children, Families & Education",H4020,Hired or Contracted services,
ADVANCE SYSTEMS (NW) LIMITED,2052564,23/02/2021,"1,985.00","Children, Families & Education",H4020,Hired or Contracted services,
ADVANCE SYSTEMS (NW) LIMITED,2052807,24/02/2021,495.00,Neighbourhood Services,H4090,"Equipment, Furniture & Materials",
ADVANCED CHILD CARE ASSESSMENTS LIMITED,2049280,11/02/2021,"1,663.50",Law & Governance (Monitoring Officer),A1305,Legal Service Provider,
ADVANCED CHILD CARE ASSESSMENTS LIMITED,2052565,23/02/2021,74.25,Law & Governance (Monitoring Officer),A1305,Legal Service Provider,
ADVANCED CHILD CARE ASSESSMENTS LIMITED,2052394,22/02/2021,350.00,Law & Governance (Monitoring Officer),A1305,Legal Service Provider,
ADVANCED CHILD CARE ASSESSMENTS LIMITED,2052565,23/02/2021,"1,500.00",Law & Governance (Monitoring Officer),A1305,Legal Service Provider,
ADVANCED CHILD CARE ASSESSMENTS LIMITED,2046828,04/02/2021,"1,982.40","Children, Families & Education",E7021,Care Provision,
ADVOCACY SERVICES NORTH EAST WALES LIMITED,2052395,22/02/2021,75.00,Adults Care and Health and Strategic Commissioning,S6211,Medical Service Provider,
AFTERCARE (NW) LIMITED,2053562,26/02/2021,"15,082.00","Children, Families & Education",E7080,Care Provision,
AFTERCARE THE NEXT STEP LIMITED,2049281,11/02/2021,175.61,"Children, Families & Education",E7035,Care Provision,
AFTERCARE THE NEXT STEP LIMITED,2049281,11/02/2021,"3,156.71","Children, Families & Education",E7080,Care Provision,
AFTERCARE THE NEXT STEP LIMITED,2052566,23/02/2021,"10,640.00",Adults Care and Health and Strategic Commissioning,S6121,Learning & Disability Support - Adults (18-64),
AGE CONCERN CHESHIRE T/A AGE UK CHESHIRE,2050183,15/02/2021,180.95,Adults Care and Health and Strategic Commissioning,S2280,Medical Service Provider,
AGE CONCERN WIRRAL T/A AGE UK WIRRAL,2050449,16/02/2021,"1,825.85",Covid,H4094,Physical Support - Older People (65+),
AGE CONCERN WIRRAL T/A AGE UK WIRRAL,2049282,11/02/2021,23.15,Covid,H4120,Grants & Subscriptions,
AGE CONCERN WIRRAL T/A AGE UK WIRRAL,2050449,16/02/2021,"3,551.91",Covid,H4148,Physical Support - Older People (65+),
AGE CONCERN WIRRAL T/A AGE UK WIRRAL,2050449,16/02/2021,"2,316.00",Adults Care and Health and Strategic Commissioning,S6131,Memory & Cognition Support - Older People (65+),
AGE CONCERN WIRRAL T/A AGE UK WIRRAL,2050449,16/02/2021,600.00,Adults Care and Health and Strategic Commissioning,S6131,Memory & Cognition Support - Older People (65+),
AGE CONCERN WIRRAL T/A AGE UK WIRRAL,2050449,16/02/2021,"2,316.00",Adults Care and Health and Strategic Commissioning,S6131,Mental Health Support - Older People (65+),
AGE CONCERN WIRRAL T/A AGE UK WIRRAL,2050449,16/02/2021,600.00,Adults Care and Health and Strategic Commissioning,S6131,Mental Health Support - Older People (65+),
AGE CONCERN WIRRAL T/A AGE UK WIRRAL,2050449,16/02/2021,579.00,Adults Care and Health and Strategic Commissioning,S6131,Physical Support - Older People (65+),
AGE CONCERN WIRRAL T/A AGE UK WIRRAL,2050449,16/02/2021,500.00,Adults Care and Health and Strategic Commissioning,S6131,Physical Support - Older People (65+),
AGE CONCERN WIRRAL T/A AGE UK WIRRAL,2050449,16/02/2021,"2,316.00",Adults Care and Health and Strategic Commissioning,S6131,Physical Support - Older People (65+),
AGE CONCERN WIRRAL T/A AGE UK WIRRAL,2050449,16/02/2021,424.00,Adults Care and Health and Strategic Commissioning,S6131,Physical Support - Older People (65+),
AGE CONCERN WIRRAL T/A AGE UK WIRRAL,2050449,16/02/2021,579.00,Adults Care and Health and Strategic Commissioning,S6132,Memory & Cognition Support - Older People (65+),
AGE CONCERN WIRRAL T/A AGE UK WIRRAL,2050449,16/02/2021,165.43,Adults Care and Health and Strategic Commissioning,S6142,Memory & Cognition Support - Older People (65+),
AGE CONCERN WIRRAL T/A AGE UK WIRRAL,2050449,16/02/2021,"2,316.00",Adults Care and Health and Strategic Commissioning,S6142,Memory & Cognition Support - Older People (65+),
AGE CONCERN WIRRAL T/A AGE UK WIRRAL,2050449,16/02/2021,"2,316.00",Adults Care and Health and Strategic Commissioning,S6142,Physical Support - Older People (65+),
AGE CONCERN WIRRAL T/A AGE UK WIRRAL,2050449,16/02/2021,"2,316.00",Adults Care and Health and Strategic Commissioning,S6161,Social Care Activities,
AGE CONCERN WIRRAL T/A AGE UK WIRRAL,2050449,16/02/2021,"2,760.00",Adults Care and Health and Strategic Commissioning,S6998,Physical Support - Older People (65+),
AINSLEY GOMMON ARCHITECTS,2045818,01/02/2021,"5,940.00",Resources,F2016,"Repairs, alterations and maintenance",
AINTREE COACHES INT LIMITED T/A HELMS OF EASTHAM,2049972,12/02/2021,"1,008.00","Children, Families & Education",E5731,School Bus Passes - Secondary,
ALAN SAVILL,2052396,22/02/2021,950.00,"Children, Families & Education",E5850,Government Grants,
ALD AUTOMOTIVE LIMITED,2046066,02/02/2021,332.32,Neighbourhood Services,T4020,Contract Hire & Operating Leases,
ALD AUTOMOTIVE LIMITED,2046066,02/02/2021,383.16,Neighbourhood Services,T4020,Contract Hire & Operating Leases,
ALD AUTOMOTIVE LIMITED,2046066,02/02/2021,387.50,Neighbourhood Services,T4020,Contract Hire & Operating Leases,
ALEVE MEDICAL SERVICES LIMITED,2052223,19/02/2021,583.02,Adults Care and Health and Strategic Commissioning,S6211,Medical Service Provider,
ALINE MOBILITY,2046367,03/02/2021,79.54,"Children, Families & Education",E6763,"Repairs, alterations and maintenance",
ALINE MOBILITY,2050958,17/02/2021,390.00,Adults Care and Health and Strategic Commissioning,S6134,"Equipment, Furniture & Materials",
ALINE MOBILITY,2051395,18/02/2021,83.00,Adults Care and Health and Strategic Commissioning,S6134,"Equipment, Furniture & Materials",
ALINE MOBILITY,2051395,18/02/2021,167.00,Adults Care and Health and Strategic Commissioning,S6134,"Equipment, Furniture & Materials",
ALINE MOBILITY,2051395,18/02/2021,84.00,Adults Care and Health and Strategic Commissioning,S6134,"Equipment, Furniture & Materials",
ALINE MOBILITY,2046367,03/02/2021,60.00,Adults Care and Health and Strategic Commissioning,S6134,"Equipment, Furniture & Materials",
ALINE MOBILITY,2048717,09/02/2021,240.00,Adults Care and Health and Strategic Commissioning,S6134,"Equipment, Furniture & Materials",
ALISON BLACK LIMITED T/A SPORTMAX,2046368,03/02/2021,584.86,Neighbourhood Services,L3030,"Equipment, Furniture & Materials",
ALISON BURBAGE,2052813,24/02/2021,500.00,"Children, Families & Education",E2030,Consultants,
ALLANDALE CARE HOMES LIMITED,2050454,16/02/2021,"2,247.20",Covid,H4094,Physical Support - Older People (65+),
ALLANDALE CARE HOMES LIMITED,2050455,16/02/2021,"1,404.50",Covid,H4094,Physical Support - Older People (65+),
ALLANDALE CARE HOMES LIMITED,2050454,16/02/2021,"4,371.59",Covid,H4148,Physical Support - Older People (65+),
ALLANDALE CARE HOMES LIMITED,2050455,16/02/2021,"2,732.24",Covid,H4148,Physical Support - Older People (65+),
ALLANDALE CARE HOMES LIMITED,2050454,16/02/2021,"1,086.24",Adults Care and Health and Strategic Commissioning,S6131,Memory & Cognition Support - Older People (65+),
ALLANDALE CARE HOMES LIMITED,2050454,16/02/2021,"1,936.00",Adults Care and Health and Strategic Commissioning,S6131,Memory & Cognition Support - Older People (65+),
ALLANDALE CARE HOMES LIMITED,2050455,16/02/2021,"1,220.00",Adults Care and Health and Strategic Commissioning,S6141,Physical Support - Older People (65+),
ALLANDALE CARE HOMES LIMITED,2050455,16/02/2021,"1,936.00",Adults Care and Health and Strategic Commissioning,S6141,Physical Support - Older People (65+),
ALLIANCE LEISURE SERVICES LIMITED,2048540,08/02/2021,100.00,Neighbourhood Services,L1040,"Advertising, Publicity & Marketing",
ALLIANCE LEISURE SERVICES LIMITED,2048065,05/02/2021,100.00,Neighbourhood Services,L1040,"Advertising, Publicity & Marketing",
ALLIANCE UK LIMITED,2049292,11/02/2021,150.00,Neighbourhood Services,L3950,"Repairs, alterations and maintenance",
ALLIANCE UK LIMITED,2046068,02/02/2021,140.00,Neighbourhood Services,L3950,"Repairs, alterations and maintenance",
ALLIED HEALTHCARE-SERVICES LIMITED,2046069,02/02/2021,"57,465.39",Adults Care and Health and Strategic Commissioning,S6111,Physical Support - Older People (65+),
ALLIED HEALTHCARE-SERVICES LIMITED,2048990,10/02/2021,"2,933.00",Adults Care and Health and Strategic Commissioning,S6121,Physical Support - Adults (18-64),
ALLIED PUBLICITY SERVICES (MANCHESTER) LIMITED,2052397,22/02/2021,873.20,Resources,F1120,Hired or Contracted services,
ALLISON ATHILL(CHILDMINDER),2046848,04/02/2021,291.72,"Children, Families & Education",E1170,Services,
ALLISON ATHILL(CHILDMINDER),2046848,04/02/2021,238.42,"Children, Families & Education",E1170,Services,
ALLISON ATHILL(CHILDMINDER),2053126,25/02/2021,202.80,"Children, Families & Education",E1170,Services,
ALLISON ATHILL(CHILDMINDER),2053126,25/02/2021,165.75,"Children, Families & Education",E1170,Services,
ALLPAY LIMITED,2050184,15/02/2021,54.80,Covid,H4092,Grants to Voluntary Organisations,
ALPHA (RSL) LTD,2051401,18/02/2021,596.33,Regeneration & Place,H6080,Expenses,
ALPHA (RSL) LTD,2052398,22/02/2021,269.08,Regeneration & Place,H7180,Grants Paid,
ALPHA (RSL) LTD,2052398,22/02/2021,432.24,Regeneration & Place,H7180,Grants Paid,
ALPHA (RSL) LTD,2052398,22/02/2021,282.25,Regeneration & Place,H7180,Grants Paid,
ALPHA (RSL) LTD,2052398,22/02/2021,131.59,Regeneration & Place,H7180,Grants Paid,
ALPHA (RSL) LTD,2052398,22/02/2021,494.39,Regeneration & Place,H7180,Grants Paid,
ALPHA (RSL) LTD,2052398,22/02/2021,346.00,Regeneration & Place,H7180,Grants Paid,
ALPHA (RSL) LTD,2052398,22/02/2021,75.70,Regeneration & Place,H7180,Grants Paid,
ALPHA (RSL) LTD,2052398,22/02/2021,357.23,Regeneration & Place,H7180,Grants Paid,
ALPHA (RSL) LTD,2052398,22/02/2021,120.00,Regeneration & Place,H7180,Grants Paid,
ALPHA (RSL) LTD,2052398,22/02/2021,275.24,Regeneration & Place,H7180,Grants Paid,
ALPHA (RSL) LTD,2052398,22/02/2021,131.43,Regeneration & Place,H7180,Grants Paid,
ALPHA BIOLABORATORIES LEGAL LIMITED,2046371,03/02/2021,273.50,Law & Governance (Monitoring Officer),A1305,Legal Service Provider,
ALPHA BIOLABORATORIES LEGAL LIMITED,2046070,02/02/2021,428.33,Law & Governance (Monitoring Officer),A1305,Legal Service Provider,
ALPHA BIOLABORATORIES LEGAL LIMITED,2048718,09/02/2021,187.50,Law & Governance (Monitoring Officer),A1305,Legal Service Provider,
ALPHA BIOLABORATORIES LEGAL LIMITED,2049294,11/02/2021,280.00,"Children, Families & Education",E7031,Care Provision,
ALPHABIOLABORATORIES LIMITED,2046372,03/02/2021,146.80,Law & Governance (Monitoring Officer),A1305,Legal Service Provider,
ALPHABIOLABORATORIES LIMITED,2052399,22/02/2021,146.80,Law & Governance (Monitoring Officer),A1305,Legal Service Provider,
ALPHABIOLABORATORIES LIMITED,2046372,03/02/2021,236.80,Law & Governance (Monitoring Officer),A1305,Legal Service Provider,
ALPHABIOLABORATORIES LIMITED,2052399,22/02/2021,236.80,Law & Governance (Monitoring Officer),A1305,Legal Service Provider,
ALPHABIOLABORATORIES LIMITED,2046849,04/02/2021,574.66,Law & Governance (Monitoring Officer),A1305,Legal Service Provider,
ALPHABIOLABORATORIES LIMITED,2053564,26/02/2021,574.66,Law & Governance (Monitoring Officer),A1305,Legal Service Provider,
ALPHABIOLABORATORIES LIMITED,2046849,04/02/2021,592.50,Law & Governance (Monitoring Officer),A1305,Legal Service Provider,
ALPHABIOLABORATORIES LIMITED,2053564,26/02/2021,592.50,Law & Governance (Monitoring Officer),A1305,Legal Service Provider,
ALPHABIOLABORATORIES LIMITED,2046849,04/02/2021,"1,255.00","Children, Families & Education",E7025,Care Provision,
ALPHABIOLABORATORIES LIMITED,2053564,26/02/2021,"1,255.00","Children, Families & Education",E7025,Care Provision,
ALPHABIOLABORATORIES LIMITED,2052226,19/02/2021,280.00,"Children, Families & Education",E7031,Care Provision,
ALPHABIOLABORATORIES LIMITED,2052226,19/02/2021,425.00,"Children, Families & Education",E7034,Care Provision,
ALTERNATIVE APPROACH,2048541,08/02/2021,716.23,"Children, Families & Education",E7080,Care Provision,
ALTERNATIVE APPROACH,2049295,11/02/2021,"1,935.54","Children, Families & Education",E7080,Care Provision,
ALTERNATIVE APPROACH,2049295,11/02/2021,"3,342.42","Children, Families & Education",E7080,Care Provision,
ALTERNATIVE APPROACH,2049295,11/02/2021,"3,342.42","Children, Families & Education",E7080,Care Provision,
ALTERNATIVE APPROACH,2049295,11/02/2021,"3,342.42","Children, Families & Education",E7080,Care Provision,
ALTERNATIVE APPROACH,2049295,11/02/2021,"3,342.42","Children, Families & Education",E7080,Care Provision,
ALTERNATIVE APPROACH,2049295,11/02/2021,"3,342.42","Children, Families & Education",E7080,Care Provision,
ALTERNATIVE APPROACH,2053565,26/02/2021,"1,935.54","Children, Families & Education",E7080,Care Provision,
ALTERNATIVE APPROACH,2053565,26/02/2021,"3,342.42","Children, Families & Education",E7080,Care Provision,
ALTERNATIVE APPROACH,2053565,26/02/2021,"3,342.42","Children, Families & Education",E7080,Care Provision,
ALTERNATIVE APPROACH,2053565,26/02/2021,"3,342.42","Children, Families & Education",E7080,Care Provision,
ALTERNATIVE APPROACH,2053565,26/02/2021,"3,342.42","Children, Families & Education",E7080,Care Provision,
ALTERNATIVE APPROACH,2053565,26/02/2021,"3,342.42","Children, Families & Education",E7080,Care Provision,
ALTERNATIVE FUTURES LTD,2050458,16/02/2021,"375,730.76",Adults Care and Health and Strategic Commissioning,S6121,Physical Support - Adults (18-64),
ALUSERV LIMITED,2046373,03/02/2021,260.01,"Children, Families & Education",E3040,"Repairs, alterations and maintenance",
AMEY OW LIMITED,2050460,16/02/2021,"6,266.11",RE  Environment & Regulation,C5173,Consultants Fees,
AMEY OW LIMITED,2048071,05/02/2021,"2,976.77",RE  Environment & Regulation,C5173,Consultants Fees,
AMEY OW LIMITED,2052819,24/02/2021,"4,072.80",RE  Environment & Regulation,C5253,Contractors - Main,
AMEY OW LIMITED,2052228,19/02/2021,"4,706.04",RE  Environment & Regulation,C5253,Contractors - Main,
AMEY OW LIMITED,2052569,23/02/2021,"4,116.06",Regeneration & Place,V1070,Services,
AMEY OW LIMITED,2052228,19/02/2021,"3,888.97",Regeneration & Place,V1070,Services,
AMEY OW LIMITED,2050460,16/02/2021,"10,692.27",Neighbourhood Services,V1100,Consultants,
AMEY OW LIMITED,2052228,19/02/2021,133.32,Neighbourhood Services,V1100,Consultants,
AMEY OW LIMITED,2052228,19/02/2021,72.12,Neighbourhood Services,V1100,Consultants,
AMEY OW LIMITED,2052228,19/02/2021,"8,830.04",Neighbourhood Services,V1100,Consultants,
AMEY OW LIMITED,2052569,23/02/2021,"11,482.93",Neighbourhood Services,V1100,Consultants,
AMEY OW LIMITED,2052569,23/02/2021,471.25,Neighbourhood Services,V1100,Consultants,
AMEY OW LIMITED,2052569,23/02/2021,"5,351.46",Neighbourhood Services,V1100,Consultants,
AMY BUTTERWORTH T/A MAKE IT HAPPEN BIRKENHEAD,2050461,16/02/2021,320.00,Law & Governance (Monitoring Officer),B7591,Grants to Voluntary Organisations,
AMY ROBINSON-CHILDMINDER,2046859,04/02/2021,711.90,"Children, Families & Education",E1170,Services,
AMY ROBINSON-CHILDMINDER,2053129,25/02/2021,329.94,"Children, Families & Education",E1170,Services,
AMY ROBINSON-CHILDMINDER,2053129,25/02/2021,164.97,"Children, Families & Education",E1170,Services,
AMY'S CHILDMINDING - AMY BRENNAN,2046860,04/02/2021,469.00,"Children, Families & Education",E1170,Services,
AMY'S CHILDMINDING - AMY BRENNAN,2053130,25/02/2021,326.04,"Children, Families & Education",E1170,Services,
AMY'S CHILDMINDING SERVICES-AMY DINSDALE,2046861,04/02/2021,658.86,"Children, Families & Education",E1170,Services,
AMY'S CHILDMINDING SERVICES-AMY DINSDALE,2053131,25/02/2021,329.94,"Children, Families & Education",E1170,Services,
ANCHOR CARE HOMES LIMITED (HURST PARK COURT),2050462,16/02/2021,"1,845.20",Adults Care and Health and Strategic Commissioning,S6142,Memory & Cognition Support - Older People (65+),
ANCHOR CAREHOMES GROUP LIMITED,2050464,16/02/2021,"7,303.40",Covid,H4094,Physical Support - Older People (65+),
ANCHOR CAREHOMES GROUP LIMITED,2050463,16/02/2021,"8,427.00",Covid,H4094,Physical Support - Older People (65+),
ANCHOR CAREHOMES GROUP LIMITED,2050464,16/02/2021,"14,207.66",Covid,H4148,Physical Support - Older People (65+),
ANCHOR CAREHOMES GROUP LIMITED,2050463,16/02/2021,"16,393.45",Covid,H4148,Physical Support - Older People (65+),
ANCHOR CAREHOMES GROUP LIMITED,2050463,16/02/2021,"2,160.00",Adults Care and Health and Strategic Commissioning,S6131,Memory & Cognition Support - Older People (65+),
ANCHOR CAREHOMES GROUP LIMITED,2050464,16/02/2021,"1,936.00",Adults Care and Health and Strategic Commissioning,S6131,Physical Support - Older People (65+),
ANCHOR CAREHOMES GROUP LIMITED,2050464,16/02/2021,"1,866.86",Adults Care and Health and Strategic Commissioning,S6131,Physical Support - Older People (65+),
ANCHOR CAREHOMES GROUP LIMITED,2050464,16/02/2021,"1,037.14",Adults Care and Health and Strategic Commissioning,S6131,Physical Support - Older People (65+),
ANCHOR CAREHOMES GROUP LIMITED,2050464,16/02/2021,"1,936.00",Adults Care and Health and Strategic Commissioning,S6132,Memory & Cognition Support - Older People (65+),
ANCHOR CAREHOMES GROUP LIMITED,2050463,16/02/2021,240.00,Adults Care and Health and Strategic Commissioning,S6132,Memory & Cognition Support - Older People (65+),
ANCHOR CAREHOMES GROUP LIMITED,2050463,16/02/2021,"2,160.00",Adults Care and Health and Strategic Commissioning,S6132,Memory & Cognition Support - Older People (65+),
ANCHOR CAREHOMES GROUP LIMITED,2050463,16/02/2021,"2,160.00",Adults Care and Health and Strategic Commissioning,S6132,Memory & Cognition Support - Older People (65+),
ANCHOR CAREHOMES GROUP LIMITED,2050463,16/02/2021,"2,160.00",Adults Care and Health and Strategic Commissioning,S6132,Memory & Cognition Support - Older People (65+),
ANCHOR CAREHOMES GROUP LIMITED,2050463,16/02/2021,"2,160.00",Adults Care and Health and Strategic Commissioning,S6132,Memory & Cognition Support - Older People (65+),
ANCHOR CAREHOMES GROUP LIMITED,2050463,16/02/2021,"1,936.00",Adults Care and Health and Strategic Commissioning,S6132,Memory & Cognition Support - Older People (65+),
ANCHOR CAREHOMES GROUP LIMITED,2050463,16/02/2021,220.00,Adults Care and Health and Strategic Commissioning,S6132,Memory & Cognition Support - Older People (65+),
ANCHOR CAREHOMES GROUP LIMITED,2050463,16/02/2021,"2,160.00",Adults Care and Health and Strategic Commissioning,S6132,Mental Health Support - Older People (65+),
ANCHOR CAREHOMES GROUP LIMITED,2050463,16/02/2021,"1,936.00",Adults Care and Health and Strategic Commissioning,S6132,Mental Health Support - Older People (65+),
ANCHOR CAREHOMES GROUP LIMITED,2050463,16/02/2021,240.00,Adults Care and Health and Strategic Commissioning,S6132,Mental Health Support - Older People (65+),
ANCHOR CAREHOMES GROUP LIMITED,2050463,16/02/2021,"2,160.00",Adults Care and Health and Strategic Commissioning,S6132,Mental Health Support - Older People (65+),
ANCHOR CAREHOMES GROUP LIMITED,2050463,16/02/2021,"1,936.00",Adults Care and Health and Strategic Commissioning,S6132,Physical Support - Older People (65+),
ANCHOR CAREHOMES GROUP LIMITED,2050463,16/02/2021,"2,160.00",Adults Care and Health and Strategic Commissioning,S6132,Physical Support - Older People (65+),
ANCHOR CAREHOMES GROUP LIMITED,2050463,16/02/2021,"2,160.00",Adults Care and Health and Strategic Commissioning,S6132,Physical Support - Older People (65+),
ANCHOR CAREHOMES GROUP LIMITED,2050463,16/02/2021,"2,160.00",Adults Care and Health and Strategic Commissioning,S6132,Physical Support - Older People (65+),
ANCHOR CAREHOMES GROUP LIMITED,2050463,16/02/2021,"1,936.00",Adults Care and Health and Strategic Commissioning,S6132,Physical Support - Older People (65+),
ANCHOR CAREHOMES GROUP LIMITED,2050463,16/02/2021,"1,936.00",Adults Care and Health and Strategic Commissioning,S6132,Physical Support - Older People (65+),
ANCHOR CAREHOMES GROUP LIMITED,2050463,16/02/2021,"2,160.00",Adults Care and Health and Strategic Commissioning,S6132,Physical Support - Older People (65+),
ANCHOR CAREHOMES GROUP LIMITED,2050463,16/02/2021,"2,160.00",Adults Care and Health and Strategic Commissioning,S6132,Physical Support - Older People (65+),
ANCHOR CAREHOMES GROUP LIMITED,2050463,16/02/2021,"2,160.00",Adults Care and Health and Strategic Commissioning,S6132,Physical Support - Older People (65+),
ANCHOR CAREHOMES GROUP LIMITED,2050463,16/02/2021,"2,160.00",Adults Care and Health and Strategic Commissioning,S6132,Physical Support - Older People (65+),
ANCHOR CAREHOMES GROUP LIMITED,2050463,16/02/2021,"1,936.00",Adults Care and Health and Strategic Commissioning,S6132,Physical Support - Older People (65+),
ANCHOR CAREHOMES GROUP LIMITED,2050463,16/02/2021,220.00,Adults Care and Health and Strategic Commissioning,S6132,Physical Support - Older People (65+),
ANCHOR CAREHOMES GROUP LIMITED,2050464,16/02/2021,"1,659.43",Adults Care and Health and Strategic Commissioning,S6132,Physical Support - Older People (65+),
ANCHOR CAREHOMES GROUP LIMITED,2050463,16/02/2021,-771.43,Adults Care and Health and Strategic Commissioning,S6132,Physical Support - Older People (65+),
ANCHOR CAREHOMES GROUP LIMITED,2050463,16/02/2021,240.00,Adults Care and Health and Strategic Commissioning,S6132,Social Care Activities,
ANCHOR CAREHOMES GROUP LIMITED,2050463,16/02/2021,"2,160.00",Adults Care and Health and Strategic Commissioning,S6132,Social Care Activities,
ANCHOR CAREHOMES GROUP LIMITED,2050464,16/02/2021,14.29,Adults Care and Health and Strategic Commissioning,S6141,Memory & Cognition Support - Older People (65+),
ANCHOR CAREHOMES GROUP LIMITED,2050464,16/02/2021,69.14,Adults Care and Health and Strategic Commissioning,S6141,Memory & Cognition Support - Older People (65+),
ANCHOR CAREHOMES GROUP LIMITED,2050464,16/02/2021,"1,936.00",Adults Care and Health and Strategic Commissioning,S6141,Memory & Cognition Support - Older People (65+),
ANCHOR CAREHOMES GROUP LIMITED,2050464,16/02/2021,400.00,Adults Care and Health and Strategic Commissioning,S6141,Memory & Cognition Support - Older People (65+),
ANCHOR CAREHOMES GROUP LIMITED,2050463,16/02/2021,240.00,Adults Care and Health and Strategic Commissioning,S6141,Memory & Cognition Support - Older People (65+),
ANCHOR CAREHOMES GROUP LIMITED,2050463,16/02/2021,"2,160.00",Adults Care and Health and Strategic Commissioning,S6141,Memory & Cognition Support - Older People (65+),
ANCHOR CAREHOMES GROUP LIMITED,2050463,16/02/2021,"2,005.71",Adults Care and Health and Strategic Commissioning,S6141,Mental Health Support - Older People (65+),
ANCHOR CAREHOMES GROUP LIMITED,2050463,16/02/2021,222.86,Adults Care and Health and Strategic Commissioning,S6141,Mental Health Support - Older People (65+),
ANCHOR CAREHOMES GROUP LIMITED,2050463,16/02/2021,154.29,Adults Care and Health and Strategic Commissioning,S6141,Mental Health Support - Older People (65+),
ANCHOR CAREHOMES GROUP LIMITED,2050464,16/02/2021,"1,936.00",Adults Care and Health and Strategic Commissioning,S6141,Physical Support - Older People (65+),
ANCHOR CAREHOMES GROUP LIMITED,2050464,16/02/2021,"1,936.00",Adults Care and Health and Strategic Commissioning,S6141,Physical Support - Older People (65+),
ANCHOR CAREHOMES GROUP LIMITED,2050464,16/02/2021,"1,936.00",Adults Care and Health and Strategic Commissioning,S6141,Physical Support - Older People (65+),
ANCHOR CAREHOMES GROUP LIMITED,2050464,16/02/2021,"1,936.00",Adults Care and Health and Strategic Commissioning,S6141,Physical Support - Older People (65+),
ANCHOR CAREHOMES GROUP LIMITED,2050464,16/02/2021,"1,936.00",Adults Care and Health and Strategic Commissioning,S6141,Physical Support - Older People (65+),
ANCHOR CAREHOMES GROUP LIMITED,2050464,16/02/2021,"1,936.00",Adults Care and Health and Strategic Commissioning,S6141,Physical Support - Older People (65+),
ANCHOR CAREHOMES GROUP LIMITED,2050464,16/02/2021,"1,936.00",Adults Care and Health and Strategic Commissioning,S6141,Physical Support - Older People (65+),
ANCHOR CAREHOMES GROUP LIMITED,2050464,16/02/2021,"1,936.00",Adults Care and Health and Strategic Commissioning,S6141,Physical Support - Older People (65+),
ANCHOR CAREHOMES GROUP LIMITED,2050464,16/02/2021,"1,936.00",Adults Care and Health and Strategic Commissioning,S6141,Physical Support - Older People (65+),
ANCHOR CAREHOMES GROUP LIMITED,2050464,16/02/2021,400.00,Adults Care and Health and Strategic Commissioning,S6141,Physical Support - Older People (65+),
ANCHOR CAREHOMES GROUP LIMITED,2050464,16/02/2021,320.00,Adults Care and Health and Strategic Commissioning,S6141,Physical Support - Older People (65+),
ANCHOR CAREHOMES GROUP LIMITED,2050464,16/02/2021,"1,936.00",Adults Care and Health and Strategic Commissioning,S6141,Physical Support - Older People (65+),
ANCHOR CAREHOMES GROUP LIMITED,2050464,16/02/2021,"1,936.00",Adults Care and Health and Strategic Commissioning,S6141,Physical Support - Older People (65+),
ANCHOR CAREHOMES GROUP LIMITED,2050464,16/02/2021,400.00,Adults Care and Health and Strategic Commissioning,S6141,Physical Support - Older People (65+),
ANCHOR CAREHOMES GROUP LIMITED,2050464,16/02/2021,"1,936.00",Adults Care and Health and Strategic Commissioning,S6141,Physical Support - Older People (65+),
ANCHOR CAREHOMES GROUP LIMITED,2050464,16/02/2021,"1,936.00",Adults Care and Health and Strategic Commissioning,S6141,Physical Support - Older People (65+),
ANCHOR CAREHOMES GROUP LIMITED,2050464,16/02/2021,"1,244.00",Adults Care and Health and Strategic Commissioning,S6141,Physical Support - Older People (65+),
ANCHOR CAREHOMES GROUP LIMITED,2050464,16/02/2021,"1,196.00",Adults Care and Health and Strategic Commissioning,S6141,Physical Support - Older People (65+),
ANCHOR CAREHOMES GROUP LIMITED,2050464,16/02/2021,"1,936.00",Adults Care and Health and Strategic Commissioning,S6141,Physical Support - Older People (65+),
ANCHOR CAREHOMES GROUP LIMITED,2050464,16/02/2021,"1,936.00",Adults Care and Health and Strategic Commissioning,S6141,Physical Support - Older People (65+),
ANCHOR CAREHOMES GROUP LIMITED,2050464,16/02/2021,400.00,Adults Care and Health and Strategic Commissioning,S6141,Physical Support - Older People (65+),
ANCHOR CAREHOMES GROUP LIMITED,2050463,16/02/2021,"2,160.00",Adults Care and Health and Strategic Commissioning,S6141,Physical Support - Older People (65+),
ANCHOR CAREHOMES GROUP LIMITED,2050464,16/02/2021,"1,936.00",Adults Care and Health and Strategic Commissioning,S6142,Memory & Cognition Support - Older People (65+),
ANCHOR CAREHOMES GROUP LIMITED,2050463,16/02/2021,"2,160.00",Adults Care and Health and Strategic Commissioning,S6142,Memory & Cognition Support - Older People (65+),
ANCHOR CAREHOMES GROUP LIMITED,2050463,16/02/2021,"2,160.00",Adults Care and Health and Strategic Commissioning,S6142,Memory & Cognition Support - Older People (65+),
ANCHOR CAREHOMES GROUP LIMITED,2050463,16/02/2021,240.00,Adults Care and Health and Strategic Commissioning,S6142,Memory & Cognition Support - Older People (65+),
ANCHOR CAREHOMES GROUP LIMITED,2050463,16/02/2021,"2,160.00",Adults Care and Health and Strategic Commissioning,S6142,Mental Health Support - Older People (65+),
ANCHOR CAREHOMES GROUP LIMITED,2050463,16/02/2021,-142.86,Adults Care and Health and Strategic Commissioning,S6142,Mental Health Support - Older People (65+),
ANCHOR CAREHOMES GROUP LIMITED,2050464,16/02/2021,"1,196.00",Adults Care and Health and Strategic Commissioning,S6142,Physical Support - Older People (65+),
ANCHOR CAREHOMES GROUP LIMITED,2050464,16/02/2021,"1,936.00",Adults Care and Health and Strategic Commissioning,S6142,Physical Support - Older People (65+),
ANCHOR CAREHOMES GROUP LIMITED,2050463,16/02/2021,"2,160.00",Adults Care and Health and Strategic Commissioning,S6142,Physical Support - Older People (65+),
ANCHOR CAREHOMES GROUP LIMITED,2050463,16/02/2021,"2,160.00",Adults Care and Health and Strategic Commissioning,S6142,Physical Support - Older People (65+),
ANCHOR CAREHOMES GROUP LIMITED,2050463,16/02/2021,"2,160.00",Adults Care and Health and Strategic Commissioning,S6142,Physical Support - Older People (65+),
ANCHOR CAREHOMES GROUP LIMITED,2050463,16/02/2021,200.00,Adults Care and Health and Strategic Commissioning,S6142,Physical Support - Older People (65+),
ANCHOR CAREHOMES GROUP LIMITED,2050463,16/02/2021,540.00,Adults Care and Health and Strategic Commissioning,S6142,Physical Support - Older People (65+),
ANCHOR CAREHOMES GROUP LIMITED,2050463,16/02/2021,"2,160.00",Adults Care and Health and Strategic Commissioning,S6142,Physical Support - Older People (65+),
ANCHOR CAREHOMES GROUP LIMITED,2050463,16/02/2021,200.00,Adults Care and Health and Strategic Commissioning,S6142,Physical Support - Older People (65+),
ANCHOR CAREHOMES GROUP LIMITED,2050463,16/02/2021,231.43,Adults Care and Health and Strategic Commissioning,S6142,Physical Support - Older People (65+),
ANCHOR CAREHOMES GROUP LIMITED,2050463,16/02/2021,-42.01,Adults Care and Health and Strategic Commissioning,S6166,Customer and Client - Community Care,
ANCHOR CAREHOMES GROUP LIMITED,2050463,16/02/2021,"2,160.00",Adults Care and Health and Strategic Commissioning,S6166,Mental Health Support - Adults (18-64),
ANCHOR CAREHOMES GROUP LIMITED,2050463,16/02/2021,49.39,Adults Care and Health and Strategic Commissioning,S6166,Mental Health Support - Older People (65+),
ANCHOR CAREHOMES GROUP LIMITED,2050463,16/02/2021,"2,160.00",Adults Care and Health and Strategic Commissioning,S6167,Mental Health Support - Older People (65+),
ANCHOR CAREHOMES GROUP LIMITED,2050463,16/02/2021,"2,160.00",Adults Care and Health and Strategic Commissioning,S6167,Physical Support - Older People (65+),
ANCHOR CAREHOMES GROUP LIMITED,2050463,16/02/2021,"2,160.00",Adults Care and Health and Strategic Commissioning,S6167,Physical Support - Older People (65+),
ANCHOR CAREHOMES GROUP LIMITED,2050464,16/02/2021,"1,452.00",Adults Care and Health and Strategic Commissioning,S6998,Physical Support - Older People (65+),
ANCHOR TRUST                 ,2050465,16/02/2021,"4,915.75",Covid,H4094,Physical Support - Older People (65+),
ANCHOR TRUST                 ,2052402,22/02/2021,126.14,Regeneration & Place,H7180,Grants Paid,
ANCHOR TRUST                 ,2052402,22/02/2021,154.80,Regeneration & Place,H7180,Grants Paid,
ANCHOR TRUST                 ,2052402,22/02/2021,532.17,Regeneration & Place,H7180,Grants Paid,
ANCHOR TRUST                 ,2050465,16/02/2021,"1,936.00",Adults Care and Health and Strategic Commissioning,S6141,Physical Support - Older People (65+),
ANCHOR TRUST                 ,2050465,16/02/2021,320.00,Adults Care and Health and Strategic Commissioning,S6141,Physical Support - Older People (65+),
ANCHOR TRUST                 ,2050465,16/02/2021,"1,936.00",Adults Care and Health and Strategic Commissioning,S6141,Physical Support - Older People (65+),
ANCHOR TRUST                 ,2050465,16/02/2021,200.00,Adults Care and Health and Strategic Commissioning,S6142,Memory & Cognition Support - Older People (65+),
ANCHOR TRUST                 ,2050465,16/02/2021,"1,936.00",Adults Care and Health and Strategic Commissioning,S6142,Physical Support - Older People (65+),
ANCHOR TRUST                 ,2050465,16/02/2021,"1,936.00",Adults Care and Health and Strategic Commissioning,S6142,Physical Support - Older People (65+),
ANCHOR TRUST                 ,2050465,16/02/2021,"1,936.00",Adults Care and Health and Strategic Commissioning,S6142,Physical Support - Older People (65+),
ANCHOR TRUST                 ,2050465,16/02/2021,"2,160.00",Adults Care and Health and Strategic Commissioning,S6142,Physical Support - Older People (65+),
ANCHOR TRUST                 ,2050465,16/02/2021,"1,936.00",Adults Care and Health and Strategic Commissioning,S6167,Physical Support - Older People (65+),
ANCHOR TRUST                  ,2050465,16/02/2021,"9,562.85",Covid,H4148,Physical Support - Older People (65+),
ANCHOR TRUST                  ,2052402,22/02/2021,116.90,Regeneration & Place,H7180,Grants Paid,
ANCHOR TRUST                  ,2052402,22/02/2021,662.07,Regeneration & Place,H7180,Grants Paid,
ANCHOR TRUST                  ,2052402,22/02/2021,621.34,Regeneration & Place,H7180,Grants Paid,
ANCHOR TRUST                  ,2050465,16/02/2021,260.00,Adults Care and Health and Strategic Commissioning,S6141,Physical Support - Older People (65+),
ANCHOR TRUST                  ,2050465,16/02/2021,"1,936.00",Adults Care and Health and Strategic Commissioning,S6142,Memory & Cognition Support - Older People (65+),
ANCHOR TRUST                  ,2050465,16/02/2021,"1,936.00",Adults Care and Health and Strategic Commissioning,S6142,Physical Support - Older People (65+),
ANCHOR TRUST                  ,2050465,16/02/2021,400.00,Adults Care and Health and Strategic Commissioning,S6142,Physical Support - Older People (65+),
ANCHOR TRUST                  ,2050465,16/02/2021,200.00,Adults Care and Health and Strategic Commissioning,S6142,Physical Support - Older People (65+),
ANCHOR TRUST                  ,2050465,16/02/2021,"1,936.00",Adults Care and Health and Strategic Commissioning,S6142,Physical Support - Older People (65+),
ANCHOR TRUST                  ,2050465,16/02/2021,"1,936.00",Adults Care and Health and Strategic Commissioning,S6142,Physical Support - Older People (65+),
ANCHOR TRUST                  ,2050465,16/02/2021,260.00,Adults Care and Health and Strategic Commissioning,S6142,Physical Support - Older People (65+),
ANCHOR TRUST                  ,2050465,16/02/2021,"1,936.00",Adults Care and Health and Strategic Commissioning,S6142,Physical Support - Older People (65+),
ANCHOR TRUST                  ,2050465,16/02/2021,"1,659.43",Adults Care and Health and Strategic Commissioning,S6142,Physical Support - Older People (65+),
ANCHOR TRUST                  ,2050465,16/02/2021,"1,936.00",Adults Care and Health and Strategic Commissioning,S6167,Mental Health Support - Older People (65+),
ANCHOR TRUST HOMES,2050466,16/02/2021,"5,758.45",Covid,H4094,Physical Support - Older People (65+),
ANCHOR TRUST HOMES,2050466,16/02/2021,"11,202.19",Covid,H4148,Physical Support - Older People (65+),
ANCHOR TRUST HOMES,2050466,16/02/2021,"1,936.00",Adults Care and Health and Strategic Commissioning,S6131,Memory & Cognition Support - Older People (65+),
ANCHOR TRUST HOMES,2050466,16/02/2021,"1,936.00",Adults Care and Health and Strategic Commissioning,S6131,Physical Support - Older People (65+),
ANCHOR TRUST HOMES,2050466,16/02/2021,"1,164.00",Adults Care and Health and Strategic Commissioning,S6131,Physical Support - Older People (65+),
ANCHOR TRUST HOMES,2050466,16/02/2021,"1,936.00",Adults Care and Health and Strategic Commissioning,S6131,Physical Support - Older People (65+),
ANCHOR TRUST HOMES,2050466,16/02/2021,320.00,Adults Care and Health and Strategic Commissioning,S6131,Physical Support - Older People (65+),
ANCHOR TRUST HOMES,2050466,16/02/2021,"1,936.00",Adults Care and Health and Strategic Commissioning,S6131,Physical Support - Older People (65+),
ANCHOR TRUST HOMES,2050466,16/02/2021,"1,936.00",Adults Care and Health and Strategic Commissioning,S6131,Physical Support - Older People (65+),
ANCHOR TRUST HOMES,2050466,16/02/2021,"1,808.00",Adults Care and Health and Strategic Commissioning,S6132,Mental Health Support - Older People (65+),
ANCHOR TRUST HOMES,2050466,16/02/2021,"1,936.00",Adults Care and Health and Strategic Commissioning,S6132,Mental Health Support - Older People (65+),
ANCHOR TRUST HOMES,2050466,16/02/2021,"1,936.00",Adults Care and Health and Strategic Commissioning,S6132,Physical Support - Older People (65+),
ANCHOR TRUST HOMES,2050466,16/02/2021,"1,936.00",Adults Care and Health and Strategic Commissioning,S6132,Physical Support - Older People (65+),
ANCHOR TRUST HOMES,2050466,16/02/2021,"1,936.00",Adults Care and Health and Strategic Commissioning,S6132,Physical Support - Older People (65+),
ANCHOR TRUST HOMES,2050466,16/02/2021,"1,936.00",Adults Care and Health and Strategic Commissioning,S6132,Physical Support - Older People (65+),
ANCHOR TRUST HOMES,2050466,16/02/2021,"1,936.00",Adults Care and Health and Strategic Commissioning,S6132,Physical Support - Older People (65+),
ANCHOR TRUST HOMES,2050466,16/02/2021,"1,936.00",Adults Care and Health and Strategic Commissioning,S6132,Physical Support - Older People (65+),
ANCHOR TRUST HOMES,2050466,16/02/2021,200.00,Adults Care and Health and Strategic Commissioning,S6132,Physical Support - Older People (65+),
ANCHOR TRUST HOMES,2050466,16/02/2021,"1,936.00",Adults Care and Health and Strategic Commissioning,S6132,Physical Support - Older People (65+),
ANCHOR TRUST HOMES,2050466,16/02/2021,-276.57,Adults Care and Health and Strategic Commissioning,S6132,Physical Support - Older People (65+),
ANCHOR TRUST HOMES,2050466,16/02/2021,"-1,936.00",Adults Care and Health and Strategic Commissioning,S6132,Physical Support - Older People (65+),
ANCHOR TRUST HOMES,2050466,16/02/2021,"1,936.00",Adults Care and Health and Strategic Commissioning,S6141,Memory & Cognition Support - Older People (65+),
ANCHOR TRUST HOMES,2050466,16/02/2021,"1,936.00",Adults Care and Health and Strategic Commissioning,S6141,Mental Health Support - Older People (65+),
ANCHOR TRUST HOMES,2050466,16/02/2021,"1,936.00",Adults Care and Health and Strategic Commissioning,S6141,Physical Support - Older People (65+),
ANCHOR TRUST HOMES,2050466,16/02/2021,"1,936.00",Adults Care and Health and Strategic Commissioning,S6141,Physical Support - Older People (65+),
ANCHOR TRUST HOMES,2050466,16/02/2021,"1,936.00",Adults Care and Health and Strategic Commissioning,S6142,Physical Support - Older People (65+),
ANCHOR TRUST HOMES,2050466,16/02/2021,"1,936.00",Adults Care and Health and Strategic Commissioning,S6166,Mental Health Support - Older People (65+),
ANCHOR TRUST HOMES,2050466,16/02/2021,"1,936.00",Adults Care and Health and Strategic Commissioning,S6167,Physical Support - Older People (65+),
ANDREW HAGGIS,2046072,02/02/2021,"1,500.00",Law & Governance (Monitoring Officer),A1305,Legal Service Provider,
ANDREW HAGGIS,2050468,16/02/2021,475.00,Law & Governance (Monitoring Officer),A1305,Legal Service Provider,
ANDREW HAGGIS,2050468,16/02/2021,125.00,Law & Governance (Monitoring Officer),A1305,Legal Service Provider,
ANDREW HAGGIS,2050468,16/02/2021,550.00,Law & Governance (Monitoring Officer),A1305,Legal Service Provider,
ANDREW HAGGIS,2051417,18/02/2021,550.00,Law & Governance (Monitoring Officer),A1305,Legal Service Provider,
ANDREW MOUNTAIN,2050469,16/02/2021,375.00,Law & Governance (Monitoring Officer),A1305,Legal Service Provider,
ANDREW MOUNTAIN,2053568,26/02/2021,741.67,Law & Governance (Monitoring Officer),A1305,Legal Service Provider,
ANGELS CARE WIRRAL LIMITED,2050187,15/02/2021,391.50,Adults Care and Health and Strategic Commissioning,S6141,Physical Support - Adults (18-64),
ANIKO LEMMER,2046878,04/02/2021,"1,503.00",Regeneration & Place,H6080,Expenses,
ANNA'S LITTLE ANGELS - ANNA COOK,2046886,04/02/2021,469.00,"Children, Families & Education",E1170,Services,
ANNA'S LITTLE ANGELS - ANNA COOK,2053132,25/02/2021,326.04,"Children, Families & Education",E1170,Services,
ANNA'S LITTLE ANGELS - ANNA COOK,2053132,25/02/2021,326.04,"Children, Families & Education",E1170,Services,
APOLLO CARE LIMITED,2046076,02/02/2021,"14,715.07",Adults Care and Health and Strategic Commissioning,S6111,Physical Support - Older People (65+),
APOLLO CARE LIMITED,2048543,08/02/2021,"6,922.26",Adults Care and Health and Strategic Commissioning,S6111,Physical Support - Older People (65+),
APOLLO CARE LIMITED,2046381,03/02/2021,"1,076.40",Adults Care and Health and Strategic Commissioning,S6167,Physical Support - Older People (65+),
APPLE BLOSSOM COURT LIMITED,2050472,16/02/2021,"2,387.65",Covid,H4094,Physical Support - Older People (65+),
APPLE BLOSSOM COURT LIMITED,2050472,16/02/2021,"4,644.81",Covid,H4148,Physical Support - Older People (65+),
APPLE BLOSSOM COURT LIMITED,2050472,16/02/2021,"2,252.00",Adults Care and Health and Strategic Commissioning,S6121,Learning & Disability Support - Adults (18-64),
APPLE BLOSSOM COURT LIMITED,2050472,16/02/2021,"2,252.00",Adults Care and Health and Strategic Commissioning,S6121,Learning & Disability Support - Adults (18-64),
APPLE BLOSSOM COURT LIMITED,2050472,16/02/2021,"2,252.00",Adults Care and Health and Strategic Commissioning,S6121,Learning & Disability Support - Adults (18-64),
APPLE BLOSSOM COURT LIMITED,2050472,16/02/2021,"2,252.00",Adults Care and Health and Strategic Commissioning,S6121,Learning & Disability Support - Adults (18-64),
APPLE BLOSSOM COURT LIMITED,2050472,16/02/2021,507.84,Adults Care and Health and Strategic Commissioning,S6121,Learning & Disability Support - Adults (18-64),
APPLE BLOSSOM COURT LIMITED,2050472,16/02/2021,"2,274.24",Adults Care and Health and Strategic Commissioning,S6121,Learning & Disability Support - Adults (18-64),
APPLE BLOSSOM COURT LIMITED,2050472,16/02/2021,"1,170.24",Adults Care and Health and Strategic Commissioning,S6121,Learning & Disability Support - Adults (18-64),
APPLE BLOSSOM COURT LIMITED,2050472,16/02/2021,949.44,Adults Care and Health and Strategic Commissioning,S6121,Learning & Disability Support - Adults (18-64),
APPLE BLOSSOM COURT LIMITED,2050472,16/02/2021,"2,274.24",Adults Care and Health and Strategic Commissioning,S6121,Learning & Disability Support - Adults (18-64),
APPLE BLOSSOM COURT LIMITED,2050472,16/02/2021,"1,391.04",Adults Care and Health and Strategic Commissioning,S6121,Learning & Disability Support - Adults (18-64),
APPLE BLOSSOM COURT LIMITED,2050472,16/02/2021,772.80,Adults Care and Health and Strategic Commissioning,S6121,Learning & Disability Support - Adults (18-64),
APPLE BLOSSOM COURT LIMITED,2050472,16/02/2021,"2,252.00",Adults Care and Health and Strategic Commissioning,S6121,Learning & Disability Support - Adults (18-64),
APPLE BLOSSOM COURT LIMITED,2050472,16/02/2021,"2,252.00",Adults Care and Health and Strategic Commissioning,S6121,Learning & Disability Support - Adults (18-64),
APPLE BLOSSOM COURT LIMITED,2050472,16/02/2021,287.04,Adults Care and Health and Strategic Commissioning,S6121,Learning & Disability Support - Older People (65+),
APPLE BLOSSOM COURT LIMITED,2050472,16/02/2021,"2,252.00",Adults Care and Health and Strategic Commissioning,S6121,Learning & Disability Support - Older People (65+),
APPLE BLOSSOM COURT LIMITED,2050472,16/02/2021,"2,252.00",Adults Care and Health and Strategic Commissioning,S6142,Learning & Disability Support - Adults (18-64),
APPLE BLOSSOM COURT LIMITED,2050472,16/02/2021,"2,252.00",Adults Care and Health and Strategic Commissioning,S6142,Learning & Disability Support - Adults (18-64),
APPLE BLOSSOM COURT LIMITED,2050472,16/02/2021,80.43,Adults Care and Health and Strategic Commissioning,S6142,Learning & Disability Support - Adults (18-64),
APPROVED PPE LIMITED,2052822,24/02/2021,32.00,Regeneration & Place,D2510,"Equipment, Furniture & Materials",
APPROVED PPE LIMITED,2048723,09/02/2021,90.00,Covid,H4094,Legal Service Provider,
APPROVED PPE LIMITED,2048083,05/02/2021,90.00,Covid,H4133,"Equipment, Furniture & Materials",
APPROVED PPE LIMITED,2048083,05/02/2021,20.00,Covid,H4133,"Equipment, Furniture & Materials",
APPROVED PPE LIMITED,2052822,24/02/2021,57.50,Covid,H4133,"Equipment, Furniture & Materials",
APPROVED PPE LIMITED,2052822,24/02/2021,92.00,Covid,H4133,"Equipment, Furniture & Materials",
APPROVED PPE LIMITED,2052822,24/02/2021,"1,880.00",Covid,H4133,"Equipment, Furniture & Materials",
AQA EDUCATION LIMITED,2053569,26/02/2021,90.60,"Children, Families & Education",E5630,Educational Provider,
ARC4 LIMITED,2045824,01/02/2021,"-5,500.00",Regeneration & Place,B7054,Services,
ARC4 LIMITED,2045824,01/02/2021,"5,500.00",Regeneration & Place,B7054,Services,
ARC4 LIMITED,2045824,01/02/2021,"2,550.00",Regeneration & Place,B7054,Services,
ARCO LTD,2050969,17/02/2021,54.79,Neighbourhood Services,L4950,"Clothes, Uniform & Laundry",
ARCO LTD,2046382,03/02/2021,-54.79,Neighbourhood Services,L4950,"Clothes, Uniform & Laundry",
ARCO LTD,2053570,26/02/2021,154.24,Neighbourhood Services,L4957,"Equipment, Furniture & Materials",
ARCO LTD,2053570,26/02/2021,60.90,Neighbourhood Services,L4957,"Equipment, Furniture & Materials",
ARCO LTD,2050189,15/02/2021,513.12,Neighbourhood Services,L4974,"Clothes, Uniform & Laundry",
ARCO LTD,2046382,03/02/2021,24.12,Neighbourhood Services,T4020,"Equipment, Furniture & Materials",
ARCO LTD,2048996,10/02/2021,49.82,Neighbourhood Services,T4020,"Equipment, Furniture & Materials",
ARCO LTD,2050473,16/02/2021,48.20,Neighbourhood Services,T4020,"Equipment, Furniture & Materials",
ARCO LTD,2050969,17/02/2021,14.58,Neighbourhood Services,T4020,"Equipment, Furniture & Materials",
ARGYLE SATELLITE CONTRACT SERVICE LIMITED,2050191,15/02/2021,13.12,"Children, Families & Education",E1440,Child Centre - Board Money,
ARGYLE SATELLITE CONTRACT SERVICE LIMITED,2048724,09/02/2021,16.79,"Children, Families & Education",E1440,Child Centre - Board Money,
ARGYLE SATELLITE CONTRACT SERVICE LIMITED,2052408,22/02/2021,15.06,"Children, Families & Education",E1440,Child Centre - Board Money,
ARGYLE SATELLITE CONTRACT SERVICE LIMITED,2046080,02/02/2021,"7,360.90",Neighbourhood Services,E5730,School Transport - Primary,
ARGYLE SATELLITE CONTRACT SERVICE LIMITED,2049317,11/02/2021,"7,000.84",Neighbourhood Services,E5730,School Transport - Primary,
ARGYLE SATELLITE CONTRACT SERVICE LIMITED,2052824,24/02/2021,"7,455.37",Neighbourhood Services,E5730,School Transport - Primary,
ARGYLE SATELLITE CONTRACT SERVICE LIMITED,2052573,23/02/2021,"7,294.10",Neighbourhood Services,E5730,School Transport - Primary,
ARGYLE SATELLITE CONTRACT SERVICE LIMITED,2045825,01/02/2021,11.57,"Children, Families & Education",E7023,Care Provision,
ARGYLE SATELLITE CONTRACT SERVICE LIMITED,2052408,22/02/2021,7.50,"Children, Families & Education",E7027,Care Provision,
ARGYLE SATELLITE CONTRACT SERVICE LIMITED,2052408,22/02/2021,56.45,"Children, Families & Education",E7027,Care Provision,
ARGYLE SATELLITE CONTRACT SERVICE LIMITED,2050971,17/02/2021,24.03,"Children, Families & Education",E7031,Care Provision,
ARGYLE SATELLITE CONTRACT SERVICE LIMITED,2052408,22/02/2021,23.06,"Children, Families & Education",E7033,Care Provision,
ARGYLE SATELLITE CONTRACT SERVICE LIMITED,2049317,11/02/2021,45.60,"Children, Families & Education",E9603,Expenses,
ARGYLE SATELLITE CONTRACT SERVICE LIMITED,2049317,11/02/2021,"1,135.03",Neighbourhood Services,S5600,Care Provision,
ARGYLE SATELLITE CONTRACT SERVICE LIMITED,2046383,03/02/2021,"1,015.40",Neighbourhood Services,S5600,Care Provision,
ARGYLE SATELLITE CONTRACT SERVICE LIMITED,2053136,25/02/2021,"1,068.90",Neighbourhood Services,S5600,Care Provision,
ARGYLE SATELLITE CONTRACT SERVICE LIMITED,2045825,01/02/2021,387.30,Neighbourhood Services,S5600,Care Provision,
ARGYLE SATELLITE CONTRACT SERVICE LIMITED,2052573,23/02/2021,"1,040.62",Neighbourhood Services,S5600,Care Provision,
ARK COMMUNITY TRANSPORT,2046081,02/02/2021,"8,415.00",Neighbourhood Services,S5600,Care Provision,
ARK COMMUNITY TRANSPORT,2048725,09/02/2021,"8,415.00",Neighbourhood Services,S5600,Care Provision,
ARK COMMUNITY TRANSPORT,2050475,16/02/2021,"8,415.00",Neighbourhood Services,S5600,Care Provision,
ARK COMMUNITY TRANSPORT,2052574,23/02/2021,"8,415.00",Neighbourhood Services,S5600,Care Provision,
ARNOLD CLARK,2045826,01/02/2021,121.66,Neighbourhood Services,T4020,Contract Hire & Operating Leases,
ARNOLD CLARK,2046895,04/02/2021,201.32,Neighbourhood Services,T4020,Contract Hire & Operating Leases,
ARNOLD CLARK,2052232,19/02/2021,201.32,Neighbourhood Services,T4020,Contract Hire & Operating Leases,
ARNOLD CLARK,2052409,22/02/2021,164.92,Neighbourhood Services,T4020,Contract Hire & Operating Leases,
ARNOLD CLARK,2052409,22/02/2021,164.92,Neighbourhood Services,T4020,Contract Hire & Operating Leases,
ARNOLD CLARK,2052409,22/02/2021,164.92,Neighbourhood Services,T4020,Contract Hire & Operating Leases,
ARNOLD CLARK,2046082,02/02/2021,121.66,Neighbourhood Services,T4020,Contract Hire & Operating Leases,
ARNOLD CLARK,2045826,01/02/2021,289.66,Neighbourhood Services,T4020,Contract Hire & Operating Leases,
ARNOLD CLARK,2045826,01/02/2021,142.10,Neighbourhood Services,T4020,Contract Hire & Operating Leases,
ARNOLD CLARK,2050194,15/02/2021,121.66,Neighbourhood Services,T4020,Contract Hire & Operating Leases,
ARNOLD CLARK,2050194,15/02/2021,289.66,Neighbourhood Services,T4020,Contract Hire & Operating Leases,
ARNOLD CLARK,2050194,15/02/2021,142.10,Neighbourhood Services,T4020,Contract Hire & Operating Leases,
ARNOLD CLARK,2050476,16/02/2021,121.66,Neighbourhood Services,T4020,Contract Hire & Operating Leases,
ARNOLD CLARK,2050972,17/02/2021,289.66,Neighbourhood Services,T4020,Contract Hire & Operating Leases,
ARNOLD CLARK,2046385,03/02/2021,618.52,Transformation and Resources,X7105,Car Leasing,47.06
ARRAN PIPELINE SUPPLIES LIMITED T/A COLLISTER & GLOVER,2048998,10/02/2021,"1,500.00",Neighbourhood Services,L3030,"Repairs, alterations and maintenance",
ARVAL UK LIMITED,2050478,16/02/2021,263.52,Neighbourhood Services,T4020,Contract Hire & Operating Leases,
ASH HOUSE DAY NURSERY,2046897,04/02/2021,"4,890.60","Children, Families & Education",E1170,Services,
ASH HOUSE DAY NURSERY,2046897,04/02/2021,"20,116.89","Children, Families & Education",E1170,Services,
ASH HOUSE DAY NURSERY,2046897,04/02/2021,"3,656.58","Children, Families & Education",E1170,Services,
ASH HOUSE DAY NURSERY,2053137,25/02/2021,"1,419.60","Children, Families & Education",E1170,Services,
ASH HOUSE DAY NURSERY,2053137,25/02/2021,"7,605.39","Children, Families & Education",E1170,Services,
ASH HOUSE DAY NURSERY,2053137,25/02/2021,"3,444.48","Children, Families & Education",E1170,Services,
ASH HOUSE DAY NURSERY,2048728,09/02/2021,858.00,"Children, Families & Education",E9902,Educational Provider,
ASHDOWN SUPPLIES,2048546,08/02/2021,336.00,Neighbourhood Services,L4950,"Equipment, Furniture & Materials",
ASHDOWN SUPPLIES,2048546,08/02/2021,336.00,Neighbourhood Services,L4950,"Equipment, Furniture & Materials",
ASHDOWN SUPPLIES,2049978,12/02/2021,420.00,Neighbourhood Services,L4950,"Equipment, Furniture & Materials",
ASHDOWN SUPPLIES,2046085,02/02/2021,336.00,Neighbourhood Services,L4950,"Equipment, Furniture & Materials",
ASK CONTROLS LIMITED,2051440,18/02/2021,"2,613.75",Neighbourhood Services,V2820,Grants & Subscriptions,
ASPIRATIONS CARE,2046087,02/02/2021,"45,738.39",Adults Care and Health and Strategic Commissioning,S6121,Learning & Disability Support - Adults (18-64),
ASPIRE CARE SUPPORT SERVICES LIMITED,2052576,23/02/2021,"6,623.40",Covid,H4094,Physical Support - Older People (65+),
ASPIRE CARE SUPPORT SERVICES LIMITED,2050479,16/02/2021,"78,074.35",Adults Care and Health and Strategic Commissioning,S6131,Physical Support - Adults (18-64),
ASSIST MANAGED SERVICES LIMITED,2045827,01/02/2021,"43,545.08",Neighbourhood Services,V2230,Agency Staff,
ASSOCIATED NEWSPAPER LIMITED,2046387,03/02/2021,450.00,Covid,H4115,"Advertising, Publicity & Marketing",
ASSOCIATED NEWSPAPER LIMITED,2049322,11/02/2021,500.00,Covid,H4115,"Advertising, Publicity & Marketing",
ASSOCIATION FOR PUBLIC SERVICE EXCELLENCE (APSE),2048729,09/02/2021,99.00,Neighbourhood Services,H2950,APT&C,
ASSOCIATION FOR PUBLIC SERVICE EXCELLENCE (APSE),2048729,09/02/2021,297.00,Neighbourhood Services,H2950,APT&C,
ASSOCIATION FOR PUBLIC SERVICE EXCELLENCE (APSE),2050480,16/02/2021,99.00,Neighbourhood Services,L4820,Grants & Subscriptions,
ASSURED HEALTHCARE SOLUTIONS LIMITED,2050481,16/02/2021,"1,894.60",Adults Care and Health and Strategic Commissioning,S6131,Memory & Cognition Support - Older People (65+),
ASTRA MARQUEES LIMITED,2048547,08/02/2021,390.00,Covid,H4111,General Supplies and Services,
ASTRA MARQUEES LIMITED,2048089,05/02/2021,130.00,Covid,H4111,General Supplies and Services,
ATHENA CARE (NEW BRIGHTON ONE) LIMITED,2050482,16/02/2021,"11,236.00",Covid,H4094,Physical Support - Older People (65+),
ATHENA CARE (NEW BRIGHTON ONE) LIMITED,2050482,16/02/2021,"21,857.94",Covid,H4148,Physical Support - Older People (65+),
ATHENA CARE (NEW BRIGHTON ONE) LIMITED,2050482,16/02/2021,"2,160.00",Adults Care and Health and Strategic Commissioning,S6131,Physical Support - Older People (65+),
ATHENA CARE (NEW BRIGHTON ONE) LIMITED,2050482,16/02/2021,"1,936.00",Adults Care and Health and Strategic Commissioning,S6141,Physical Support - Older People (65+),
ATHENA CARE (NEW BRIGHTON ONE) LIMITED,2050482,16/02/2021,"1,936.00",Adults Care and Health and Strategic Commissioning,S6141,Physical Support - Older People (65+),
ATHENA CARE (NEW BRIGHTON ONE) LIMITED,2050482,16/02/2021,"1,924.00",Adults Care and Health and Strategic Commissioning,S6141,Physical Support - Older People (65+),
ATHENA CARE (NEW BRIGHTON ONE) LIMITED,2050482,16/02/2021,"2,160.00",Adults Care and Health and Strategic Commissioning,S6142,Memory & Cognition Support - Older People (65+),
ATHENA CARE (NEW BRIGHTON ONE) LIMITED,2050482,16/02/2021,"1,355.20",Adults Care and Health and Strategic Commissioning,S6142,Memory & Cognition Support - Older People (65+),
ATHENA CARE (NEW BRIGHTON ONE) LIMITED,2050482,16/02/2021,"2,160.00",Adults Care and Health and Strategic Commissioning,S6142,Physical Support - Older People (65+),
ATHENA CARE (NEW BRIGHTON ONE) LIMITED,2050482,16/02/2021,"1,576.00",Adults Care and Health and Strategic Commissioning,S6142,Physical Support - Older People (65+),
ATHENA CARE (NEW BRIGHTON ONE) LIMITED,2050482,16/02/2021,"2,160.00",Adults Care and Health and Strategic Commissioning,S6167,Physical Support - Older People (65+),
ATHENA CARE (NEW BRIGHTON ONE) LIMITED,2050482,16/02/2021,"1,342.86",Adults Care and Health and Strategic Commissioning,S6998,Memory & Cognition Support - Older People (65+),
ATHENA HEALTHCARE (NEW BRIGHTON TWO) LIMITED,2050483,16/02/2021,"116,400.00",Covid,H4094,Physical Support - Older People (65+),
ATHENA HEALTHCARE (NEW BRIGHTON TWO) LIMITED,2050483,16/02/2021,"22,070.40",Covid,H4094,Physical Support - Older People (65+),
ATHENA HEALTHCARE (NEW BRIGHTON TWO) LIMITED,2050483,16/02/2021,"11,236.00",Covid,H4094,Physical Support - Older People (65+),
ATHENA HEALTHCARE (NEW BRIGHTON TWO) LIMITED,2050483,16/02/2021,"21,857.94",Covid,H4148,Physical Support - Older People (65+),
ATHENA HEALTHCARE (NEW BRIGHTON TWO) LIMITED,2050483,16/02/2021,"4,758.24",Adults Care and Health and Strategic Commissioning,S6161,Mental Health Support - Adults (18-64),
ATHENA HEALTHCARE (NEW BRIGHTON TWO) LIMITED,2050483,16/02/2021,169.94,Adults Care and Health and Strategic Commissioning,S6161,Mental Health Support - Adults (18-64),
ATLAS FIRE & SECURITY LIMITED,2052233,19/02/2021,165.00,Regeneration & Place,H7420,"Repairs, alterations and maintenance",
AUNTIE EM'S CHILDMINDING SERVICE,2046899,04/02/2021,291.72,"Children, Families & Education",E1170,Services,
AUNTIE EM'S CHILDMINDING SERVICE,2046899,04/02/2021,"1,441.33","Children, Families & Education",E1170,Services,
AUNTIE EM'S CHILDMINDING SERVICE,2053140,25/02/2021,944.45,"Children, Families & Education",E1170,Services,
AUNTIE EM'S CHILDMINDING SERVICE,2053140,25/02/2021,326.04,"Children, Families & Education",E1170,Services,
AUNTIE JAYNE'S HOUSE LIMITED,2046900,04/02/2021,858.00,"Children, Families & Education",E1170,Services,
AUNTIE JAYNE'S HOUSE LIMITED,2046900,04/02/2021,"5,606.80","Children, Families & Education",E1170,Services,
AUNTIE JAYNE'S HOUSE LIMITED,2046900,04/02/2021,474.60,"Children, Families & Education",E1170,Services,
AUNTIE JAYNE'S HOUSE LIMITED,2053141,25/02/2021,202.80,"Children, Families & Education",E1170,Services,
AUNTIE JAYNE'S HOUSE LIMITED,2053141,25/02/2021,"2,969.46","Children, Families & Education",E1170,Services,
AUNTIE JAYNE'S HOUSE LIMITED,2053141,25/02/2021,879.84,"Children, Families & Education",E1170,Services,
AUTISM INITIATIVES,2049324,11/02/2021,"6,770.12","Children, Families & Education",E7080,Care Provision,
AUTISM INITIATIVES,2049324,11/02/2021,"6,005.55","Children, Families & Education",E7080,Care Provision,
AUTISM INITIATIVES,2052577,23/02/2021,338.87,Covid,H4094,Physical Support - Older People (65+),
AUTISM INITIATIVES,2050485,16/02/2021,-423.00,Adults Care and Health and Strategic Commissioning,S6121,Customer and Client - Community Care,
AUTISM INITIATIVES,2050485,16/02/2021,"13,826.88",Adults Care and Health and Strategic Commissioning,S6121,Learning & Disability Support - Adults (18-64),
AUTISM INITIATIVES,2050485,16/02/2021,"4,792.28",Adults Care and Health and Strategic Commissioning,S6121,Learning & Disability Support - Adults (18-64),
AUTISM INITIATIVES,2050485,16/02/2021,"7,273.09",Adults Care and Health and Strategic Commissioning,S6121,Learning & Disability Support - Adults (18-64),
AUTISM INITIATIVES,2050485,16/02/2021,"-6,866.28",Adults Care and Health and Strategic Commissioning,S6121,Learning & Disability Support - Adults (18-64),
AUTISM INITIATIVES,2050485,16/02/2021,"5,989.60",Adults Care and Health and Strategic Commissioning,S6121,Learning & Disability Support - Adults (18-64),
AUTISM INITIATIVES,2050485,16/02/2021,"5,989.60",Adults Care and Health and Strategic Commissioning,S6121,Learning & Disability Support - Adults (18-64),
AUTISM INITIATIVES,2050485,16/02/2021,"-5,654.58",Adults Care and Health and Strategic Commissioning,S6121,Learning & Disability Support - Adults (18-64),
AUTISM INITIATIVES,2050485,16/02/2021,"-5,654.58",Adults Care and Health and Strategic Commissioning,S6121,Learning & Disability Support - Adults (18-64),
AUTISM INITIATIVES,2050485,16/02/2021,"-11,309.16",Adults Care and Health and Strategic Commissioning,S6121,Learning & Disability Support - Adults (18-64),
AUTISM INITIATIVES,2050485,16/02/2021,"11,979.20",Adults Care and Health and Strategic Commissioning,S6121,Learning & Disability Support - Adults (18-64),
AUTISM INITIATIVES,2050485,16/02/2021,"11,979.20",Adults Care and Health and Strategic Commissioning,S6121,Learning & Disability Support - Adults (18-64),
AUTISM INITIATIVES,2050485,16/02/2021,"-11,309.16",Adults Care and Health and Strategic Commissioning,S6121,Learning & Disability Support - Adults (18-64),
AUTISM INITIATIVES,2050485,16/02/2021,"11,979.20",Adults Care and Health and Strategic Commissioning,S6121,Learning & Disability Support - Adults (18-64),
AUTISM INITIATIVES,2050485,16/02/2021,"-11,309.16",Adults Care and Health and Strategic Commissioning,S6121,Learning & Disability Support - Adults (18-64),
AUTISM INITIATIVES,2050485,16/02/2021,"11,979.20",Adults Care and Health and Strategic Commissioning,S6121,Learning & Disability Support - Adults (18-64),
AUTISM INITIATIVES,2050485,16/02/2021,"-11,309.16",Adults Care and Health and Strategic Commissioning,S6121,Learning & Disability Support - Adults (18-64),
AUTISM INITIATIVES,2050485,16/02/2021,"11,979.20",Adults Care and Health and Strategic Commissioning,S6121,Learning & Disability Support - Adults (18-64),
AUTISM INITIATIVES,2050485,16/02/2021,"-11,309.16",Adults Care and Health and Strategic Commissioning,S6121,Learning & Disability Support - Adults (18-64),
AUTISM INITIATIVES,2050485,16/02/2021,"-11,309.16",Adults Care and Health and Strategic Commissioning,S6121,Learning & Disability Support - Adults (18-64),
AUTISM INITIATIVES,2050485,16/02/2021,"11,979.20",Adults Care and Health and Strategic Commissioning,S6121,Learning & Disability Support - Adults (18-64),
AUTISM INITIATIVES,2050485,16/02/2021,"11,979.20",Adults Care and Health and Strategic Commissioning,S6121,Learning & Disability Support - Adults (18-64),
AUTISM INITIATIVES,2050485,16/02/2021,"-5,133.94",Adults Care and Health and Strategic Commissioning,S6121,Learning & Disability Support - Adults (18-64),
AUTISM INITIATIVES,2050485,16/02/2021,"-6,462.38",Adults Care and Health and Strategic Commissioning,S6121,Learning & Disability Support - Adults (18-64),
AUTISM INITIATIVES,2050485,16/02/2021,"-11,979.20",Adults Care and Health and Strategic Commissioning,S6121,Learning & Disability Support - Adults (18-64),
AUTISM INITIATIVES,2050485,16/02/2021,"11,979.20",Adults Care and Health and Strategic Commissioning,S6121,Learning & Disability Support - Adults (18-64),
AUTISM INITIATIVES,2050485,16/02/2021,"11,979.20",Adults Care and Health and Strategic Commissioning,S6121,Learning & Disability Support - Adults (18-64),
AUTISM INITIATIVES,2050485,16/02/2021,"-11,979.20",Adults Care and Health and Strategic Commissioning,S6121,Learning & Disability Support - Adults (18-64),
AUTISM INITIATIVES,2050485,16/02/2021,"11,979.20",Adults Care and Health and Strategic Commissioning,S6121,Learning & Disability Support - Adults (18-64),
AUTISM INITIATIVES,2050485,16/02/2021,"-11,979.20",Adults Care and Health and Strategic Commissioning,S6121,Learning & Disability Support - Adults (18-64),
AUTISM INITIATIVES,2050485,16/02/2021,"11,979.20",Adults Care and Health and Strategic Commissioning,S6121,Learning & Disability Support - Adults (18-64),
AUTISM INITIATIVES,2050485,16/02/2021,"-11,979.20",Adults Care and Health and Strategic Commissioning,S6121,Learning & Disability Support - Adults (18-64),
AUTISM INITIATIVES,2050485,16/02/2021,"11,979.20",Adults Care and Health and Strategic Commissioning,S6121,Learning & Disability Support - Adults (18-64),
AUTISM INITIATIVES,2050485,16/02/2021,"-11,979.20",Adults Care and Health and Strategic Commissioning,S6121,Learning & Disability Support - Adults (18-64),
AUTISM INITIATIVES,2050485,16/02/2021,"2,994.80",Adults Care and Health and Strategic Commissioning,S6121,Learning & Disability Support - Adults (18-64),
AUTISM INITIATIVES,2050485,16/02/2021,"-2,994.80",Adults Care and Health and Strategic Commissioning,S6121,Learning & Disability Support - Adults (18-64),
AUTISM INITIATIVES,2052577,23/02/2021,"41,533.48",Adults Care and Health and Strategic Commissioning,S6121,Learning & Disability Support - Adults (18-64),
AUTISM TOGETHER,2050487,16/02/2021,"14,045.00",Covid,H4094,Physical Support - Older People (65+),
AUTISM TOGETHER,2050487,16/02/2021,280.90,Covid,H4094,Physical Support - Older People (65+),
AUTISM TOGETHER,2050486,16/02/2021,"1,123.60",Covid,H4094,Physical Support - Older People (65+),
AUTISM TOGETHER,2050487,16/02/2021,"27,322.42",Covid,H4148,Physical Support - Older People (65+),
AUTISM TOGETHER,2050487,16/02/2021,546.45,Covid,H4148,Physical Support - Older People (65+),
AUTISM TOGETHER,2050486,16/02/2021,"2,185.79",Covid,H4148,Physical Support - Older People (65+),
AUTISM TOGETHER,2050487,16/02/2021,-423.00,Adults Care and Health and Strategic Commissioning,S6121,Customer and Client - Community Care,
AUTISM TOGETHER,2050487,16/02/2021,-423.00,Adults Care and Health and Strategic Commissioning,S6121,Customer and Client - Community Care,
AUTISM TOGETHER,2050487,16/02/2021,-411.00,Adults Care and Health and Strategic Commissioning,S6121,Customer and Client - Community Care,
AUTISM TOGETHER,2050487,16/02/2021,-423.00,Adults Care and Health and Strategic Commissioning,S6121,Customer and Client - Community Care,
AUTISM TOGETHER,2050487,16/02/2021,-354.60,Adults Care and Health and Strategic Commissioning,S6121,Customer and Client - Community Care,
AUTISM TOGETHER,2050487,16/02/2021,-423.00,Adults Care and Health and Strategic Commissioning,S6121,Customer and Client - Community Care,
AUTISM TOGETHER,2050487,16/02/2021,-423.00,Adults Care and Health and Strategic Commissioning,S6121,Customer and Client - Community Care,
AUTISM TOGETHER,2050487,16/02/2021,-423.00,Adults Care and Health and Strategic Commissioning,S6121,Customer and Client - Community Care,
AUTISM TOGETHER,2050487,16/02/2021,-423.00,Adults Care and Health and Strategic Commissioning,S6121,Customer and Client - Community Care,
AUTISM TOGETHER,2050486,16/02/2021,-423.00,Adults Care and Health and Strategic Commissioning,S6121,Customer and Client - Community Care,
AUTISM TOGETHER,2050486,16/02/2021,-423.00,Adults Care and Health and Strategic Commissioning,S6121,Customer and Client - Community Care,
AUTISM TOGETHER,2050487,16/02/2021,"8,254.56",Adults Care and Health and Strategic Commissioning,S6121,Learning & Disability Support - Adults (18-64),
AUTISM TOGETHER,2050487,16/02/2021,"6,372.96",Adults Care and Health and Strategic Commissioning,S6121,Learning & Disability Support - Adults (18-64),
AUTISM TOGETHER,2050487,16/02/2021,"9,537.84",Adults Care and Health and Strategic Commissioning,S6121,Learning & Disability Support - Adults (18-64),
AUTISM TOGETHER,2050487,16/02/2021,"4,500.80",Adults Care and Health and Strategic Commissioning,S6121,Learning & Disability Support - Adults (18-64),
AUTISM TOGETHER,2050487,16/02/2021,"10,468.00",Adults Care and Health and Strategic Commissioning,S6121,Learning & Disability Support - Adults (18-64),
AUTISM TOGETHER,2050487,16/02/2021,"10,449.00",Adults Care and Health and Strategic Commissioning,S6121,Learning & Disability Support - Adults (18-64),
AUTISM TOGETHER,2050487,16/02/2021,"4,131.08",Adults Care and Health and Strategic Commissioning,S6121,Learning & Disability Support - Adults (18-64),
AUTISM TOGETHER,2050487,16/02/2021,"4,590.40",Adults Care and Health and Strategic Commissioning,S6121,Learning & Disability Support - Adults (18-64),
AUTISM TOGETHER,2050487,16/02/2021,"4,277.04",Adults Care and Health and Strategic Commissioning,S6121,Learning & Disability Support - Adults (18-64),
AUTISM TOGETHER,2050487,16/02/2021,"3,780.00",Adults Care and Health and Strategic Commissioning,S6121,Learning & Disability Support - Adults (18-64),
AUTISM TOGETHER,2050487,16/02/2021,"6,300.00",Adults Care and Health and Strategic Commissioning,S6121,Learning & Disability Support - Adults (18-64),
AUTISM TOGETHER,2050487,16/02/2021,"9,064.16",Adults Care and Health and Strategic Commissioning,S6121,Learning & Disability Support - Adults (18-64),
AUTISM TOGETHER,2050487,16/02/2021,"4,151.00",Adults Care and Health and Strategic Commissioning,S6121,Learning & Disability Support - Adults (18-64),
AUTISM TOGETHER,2050487,16/02/2021,"8,850.84",Adults Care and Health and Strategic Commissioning,S6121,Learning & Disability Support - Adults (18-64),
AUTISM TOGETHER,2050487,16/02/2021,"9,350.92",Adults Care and Health and Strategic Commissioning,S6121,Learning & Disability Support - Adults (18-64),
AUTISM TOGETHER,2050487,16/02/2021,"9,476.28",Adults Care and Health and Strategic Commissioning,S6121,Learning & Disability Support - Adults (18-64),
AUTISM TOGETHER,2050487,16/02/2021,"7,479.36",Adults Care and Health and Strategic Commissioning,S6121,Learning & Disability Support - Adults (18-64),
AUTISM TOGETHER,2050487,16/02/2021,"2,527.56",Adults Care and Health and Strategic Commissioning,S6121,Learning & Disability Support - Adults (18-64),
AUTISM TOGETHER,2050487,16/02/2021,"3,500.00",Adults Care and Health and Strategic Commissioning,S6121,Learning & Disability Support - Adults (18-64),
AUTISM TOGETHER,2050487,16/02/2021,736.96,Adults Care and Health and Strategic Commissioning,S6121,Learning & Disability Support - Adults (18-64),
AUTISM TOGETHER,2050487,16/02/2021,"4,131.08",Adults Care and Health and Strategic Commissioning,S6121,Learning & Disability Support - Adults (18-64),
AUTISM TOGETHER,2050486,16/02/2021,"4,696.16",Adults Care and Health and Strategic Commissioning,S6121,Learning & Disability Support - Adults (18-64),
AUTISM TOGETHER,2050486,16/02/2021,"10,308.52",Adults Care and Health and Strategic Commissioning,S6121,Learning & Disability Support - Adults (18-64),
AUTISM TOGETHER,2050486,16/02/2021,"7,184.80",Adults Care and Health and Strategic Commissioning,S6121,Learning & Disability Support - Adults (18-64),
AUTISM TOGETHER,2050486,16/02/2021,"5,463.04",Adults Care and Health and Strategic Commissioning,S6121,Learning & Disability Support - Adults (18-64),
AUTISM TOGETHER,2050486,16/02/2021,"8,623.24",Adults Care and Health and Strategic Commissioning,S6121,Learning & Disability Support - Adults (18-64),
AUTISM TOGETHER,2050486,16/02/2021,"1,400.00",Adults Care and Health and Strategic Commissioning,S6121,Learning & Disability Support - Adults (18-64),
AUTISM TOGETHER,2050486,16/02/2021,610.00,Adults Care and Health and Strategic Commissioning,S6121,Learning & Disability Support - Adults (18-64),
AUTISM TOGETHER,2050486,16/02/2021,784.00,Adults Care and Health and Strategic Commissioning,S6121,Learning & Disability Support - Adults (18-64),
AUTISM TOGETHER,2050487,16/02/2021,"2,684.00",Adults Care and Health and Strategic Commissioning,S6121,Learning & Disability Support - Adults (18-64),
AUTISM TOGETHER,2050487,16/02/2021,"2,684.00",Adults Care and Health and Strategic Commissioning,S6121,Learning & Disability Support - Adults (18-64),
AUTISM TOGETHER,2050487,16/02/2021,"1,620.00",Adults Care and Health and Strategic Commissioning,S6121,Learning & Disability Support - Adults (18-64),
AUTISM TOGETHER,2050487,16/02/2021,"1,080.00",Adults Care and Health and Strategic Commissioning,S6121,Learning & Disability Support - Adults (18-64),
AUTISM TOGETHER,2050487,16/02/2021,-874.29,Adults Care and Health and Strategic Commissioning,S6121,Learning & Disability Support - Adults (18-64),
AUTISM TOGETHER,2050487,16/02/2021,"2,040.00",Adults Care and Health and Strategic Commissioning,S6121,Learning & Disability Support - Adults (18-64),
AUTISM TOGETHER,2050487,16/02/2021,308.57,Adults Care and Health and Strategic Commissioning,S6121,Learning & Disability Support - Adults (18-64),
AUTISM TOGETHER,2050487,16/02/2021,"3,780.00",Adults Care and Health and Strategic Commissioning,S6121,Learning & Disability Support - Adults (18-64),
AUTISM TOGETHER,2050487,16/02/2021,"4,453.03",Adults Care and Health and Strategic Commissioning,S6121,Learning & Disability Support - Adults (18-64),
AUTISM TOGETHER,2050487,16/02/2021,"1,080.00",Adults Care and Health and Strategic Commissioning,S6121,Learning & Disability Support - Adults (18-64),
AUTISM TOGETHER,2045829,01/02/2021,"117,178.05",Adults Care and Health and Strategic Commissioning,S6121,Learning & Disability Support - Adults (18-64),
AUTISM TOGETHER,2045829,01/02/2021,"213,990.67",Adults Care and Health and Strategic Commissioning,S6121,Physical Support - Adults (18-64),
AUTISM TOGETHER,2050487,16/02/2021,-423.00,Adults Care and Health and Strategic Commissioning,S6131,Customer and Client - Community Care,
AUTISM TOGETHER,2050487,16/02/2021,"4,590.40",Adults Care and Health and Strategic Commissioning,S6131,Learning & Disability Support - Adults (18-64),
AUTISM TOGETHER,2053571,26/02/2021,"221,826.32",Adults Care and Health and Strategic Commissioning,S6162,Mental Health Support - Adults (18-64),
AVALON,2050489,16/02/2021,-423.00,Adults Care and Health and Strategic Commissioning,S6121,Customer and Client - Community Care,
AVALON,2050489,16/02/2021,"9,250.40",Adults Care and Health and Strategic Commissioning,S6121,Learning & Disability Support - Adults (18-64),
AVALON SCH EDUCATIONAL TRUST,2046901,04/02/2021,"4,041.10","Children, Families & Education",E1170,Services,
AVALON SCH EDUCATIONAL TRUST,2046901,04/02/2021,"3,131.43","Children, Families & Education",E1170,Services,
AVALON SCH EDUCATIONAL TRUST,2053144,25/02/2021,"1,979.64","Children, Families & Education",E1170,Services,
AVALON SCH EDUCATIONAL TRUST,2053144,25/02/2021,"1,578.02","Children, Families & Education",E1170,Services,
AVALON SCH EDUCATIONAL TRUST,2053143,25/02/2021,"3,049.70","Children, Families & Education",E5870,Specialist Contracts & Fees,
AVALON SCH EDUCATIONAL TRUST,2053143,25/02/2021,"2,823.00","Children, Families & Education",E5870,Specialist Contracts & Fees,
AXWAY UK LIMITED,2046088,02/02/2021,"15,654.23",Resources,F4410,Communications & Computing,
AYNSLEY NURSING HOME,2050490,16/02/2021,"3,932.60",Covid,H4094,Physical Support - Older People (65+),
AYNSLEY NURSING HOME,2050490,16/02/2021,"7,650.28",Covid,H4148,Physical Support - Older People (65+),
AYNSLEY NURSING HOME,2050490,16/02/2021,"2,096.00",Adults Care and Health and Strategic Commissioning,S6132,Physical Support - Older People (65+),
AYNSLEY NURSING HOME,2050490,16/02/2021,"1,936.00",Adults Care and Health and Strategic Commissioning,S6142,Memory & Cognition Support - Older People (65+),
AYNSLEY NURSING HOME,2050490,16/02/2021,"2,096.00",Adults Care and Health and Strategic Commissioning,S6142,Memory & Cognition Support - Older People (65+),
AYNSLEY NURSING HOME,2050490,16/02/2021,"2,096.00",Adults Care and Health and Strategic Commissioning,S6142,Physical Support - Older People (65+),
AYNSLEY NURSING HOME,2050490,16/02/2021,"2,096.00",Adults Care and Health and Strategic Commissioning,S6142,Physical Support - Older People (65+),
AYNSLEY NURSING HOME,2050490,16/02/2021,"2,096.00",Adults Care and Health and Strategic Commissioning,S6142,Physical Support - Older People (65+),
AYNSLEY NURSING HOME,2050490,16/02/2021,"2,096.00",Adults Care and Health and Strategic Commissioning,S6142,Physical Support - Older People (65+),
AYNSLEY NURSING HOME,2050490,16/02/2021,"1,936.00",Adults Care and Health and Strategic Commissioning,S6142,Physical Support - Older People (65+),
AYNSLEY NURSING HOME,2050490,16/02/2021,"2,096.00",Adults Care and Health and Strategic Commissioning,S6142,Physical Support - Older People (65+),
AYNSLEY NURSING HOME,2050490,16/02/2021,"2,096.00",Adults Care and Health and Strategic Commissioning,S6142,Physical Support - Older People (65+),
AYNSLEY NURSING HOME,2050490,16/02/2021,"1,936.00",Adults Care and Health and Strategic Commissioning,S6142,Physical Support - Older People (65+),
AYNSLEY NURSING HOME,2050490,16/02/2021,"1,936.00",Adults Care and Health and Strategic Commissioning,S6142,Physical Support - Older People (65+),
AYNSLEY NURSING HOME,2050490,16/02/2021,"2,096.00",Adults Care and Health and Strategic Commissioning,S6142,Physical Support - Older People (65+),
AYNSLEY NURSING HOME,2050490,16/02/2021,"1,122.86",Adults Care and Health and Strategic Commissioning,S6142,Physical Support - Older People (65+),
AYNSLEY NURSING HOME,2050490,16/02/2021,"1,936.00",Adults Care and Health and Strategic Commissioning,S6142,Social Care Activities,
AYNSLEY NURSING HOME,2050490,16/02/2021,"2,160.00",Adults Care and Health and Strategic Commissioning,S6998,Physical Support - Older People (65+),
AYNSLEY NURSING HOME,2050490,16/02/2021,374.29,Adults Care and Health and Strategic Commissioning,S6998,Physical Support - Older People (65+),
B A DOWNIE T/A SPEEDSKIM PLASTERERS,2052234,19/02/2021,"3,000.00",RE  Housing & Community Safety,C4212,Expenditure on Capital Grants,
B I R C C LIMITED,2052410,22/02/2021,"13,008.00",Adults Care and Health and Strategic Commissioning,S6121,Learning & Disability Support - Adults (18-64),
B I R C C LIMITED,2048549,08/02/2021,"54,221.07",Adults Care and Health and Strategic Commissioning,S6121,Physical Support - Adults (18-64),
B L ROCK FERRY LIMITED T/A THE BLACK LIONS,2050980,17/02/2021,"5,390.00",Regeneration & Place,H6080,Expenses,
B L ROCK FERRY LIMITED T/A THE BLACK LIONS,2050980,17/02/2021,"5,390.00",Regeneration & Place,H6080,Expenses,
B L ROCK FERRY LIMITED T/A THE BLACK LIONS,2050980,17/02/2021,"5,390.00",Regeneration & Place,H6080,Expenses,
B.I.T.S (BRITISH & INTERNATIONAL TYRE SUPPLIES),2048551,08/02/2021,312.00,Neighbourhood Services,T4020,Direct Transport Costs,
B.I.T.S (BRITISH & INTERNATIONAL TYRE SUPPLIES),2048551,08/02/2021,156.00,Neighbourhood Services,T4020,Direct Transport Costs,
B.I.T.S (BRITISH & INTERNATIONAL TYRE SUPPLIES),2048551,08/02/2021,-68.95,Neighbourhood Services,T4020,Direct Transport Costs,
B.I.T.S (BRITISH & INTERNATIONAL TYRE SUPPLIES),2048551,08/02/2021,-156.00,Neighbourhood Services,T4020,Direct Transport Costs,
B.I.T.S (BRITISH & INTERNATIONAL TYRE SUPPLIES),2048551,08/02/2021,156.00,Neighbourhood Services,T4020,Direct Transport Costs,
B.I.T.S (BRITISH & INTERNATIONAL TYRE SUPPLIES),2048551,08/02/2021,-75.00,Neighbourhood Services,T4020,Direct Transport Costs,
B.I.T.S (BRITISH & INTERNATIONAL TYRE SUPPLIES),2048551,08/02/2021,-68.88,Neighbourhood Services,T4020,Direct Transport Costs,
B.I.T.S (BRITISH & INTERNATIONAL TYRE SUPPLIES),2048551,08/02/2021,-52.95,Neighbourhood Services,T4020,Direct Transport Costs,
B.I.T.S (BRITISH & INTERNATIONAL TYRE SUPPLIES),2048551,08/02/2021,-57.95,Neighbourhood Services,T4020,Direct Transport Costs,
BACKCARE SOLUTIONS LTD,2052411,22/02/2021,286.85,"Children, Families & Education",E6282,"Equipment, Furniture & Materials",
BAGNALL & MORRIS WASTE SERVICES LTD,2051443,18/02/2021,"3,360.31",Regeneration & Place,D4040,Cleaning & Domestic Supplies,
BAGNALL & MORRIS WASTE SERVICES LTD,2049326,11/02/2021,477.76,Regeneration & Place,D4040,Cleaning & Domestic Supplies,
BALMERS GARDEN MACHINERY LIMITED,2049327,11/02/2021,610.00,Neighbourhood Services,L4975,Direct Transport Costs,
BARCHESTER HEALTHCARE LIMITED,2050492,16/02/2021,"5,337.10",Covid,H4094,Physical Support - Older People (65+),
BARCHESTER HEALTHCARE LIMITED,2050492,16/02/2021,"10,382.52",Covid,H4148,Physical Support - Older People (65+),
BARCHESTER HEALTHCARE LIMITED,2050492,16/02/2021,"1,936.00",Adults Care and Health and Strategic Commissioning,S6131,Physical Support - Older People (65+),
BARCHESTER HEALTHCARE LIMITED,2050492,16/02/2021,"1,936.00",Adults Care and Health and Strategic Commissioning,S6141,Physical Support - Older People (65+),
BARCHESTER HEALTHCARE LIMITED,2050492,16/02/2021,"1,936.00",Adults Care and Health and Strategic Commissioning,S6141,Physical Support - Older People (65+),
BARNARDO'S,2048554,08/02/2021,"4,673.87","Children, Families & Education",E7080,Care Provision,
BARNARDO'S,2048554,08/02/2021,"4,832.28","Children, Families & Education",E7080,Care Provision,
BARNARDO'S,2053574,26/02/2021,"2,997.00","Children, Families & Education",E7080,Care Provision,
BARNARDO'S,2048555,08/02/2021,"2,846.50","Children, Families & Education",E9675,Hired or Contracted services,
BARNSTON BUDDIES,2046909,04/02/2021,"1,166.88","Children, Families & Education",E1170,Services,
BARNSTON BUDDIES,2046909,04/02/2021,"24,750.04","Children, Families & Education",E1170,Services,
BARNSTON BUDDIES,2046909,04/02/2021,"7,098.78","Children, Families & Education",E1170,Services,
BARNSTON BUDDIES,2053145,25/02/2021,405.60,"Children, Families & Education",E1170,Services,
BARNSTON BUDDIES,2053145,25/02/2021,"9,227.32","Children, Families & Education",E1170,Services,
BARNSTON BUDDIES,2053145,25/02/2021,"8,183.94","Children, Families & Education",E1170,Services,
BARNSTON BUDDIES,2048732,09/02/2021,858.00,"Children, Families & Education",E9902,Educational Provider,
BARRETTINE,2050494,16/02/2021,421.25,Neighbourhood Services,H2110,"Equipment, Furniture & Materials",
BEBINGTON CHILDMINDERS-TERRI JONES,2046912,04/02/2021,505.82,"Children, Families & Education",E1170,Services,
BEBINGTON CHILDMINDERS-TERRI JONES,2053147,25/02/2021,469.63,"Children, Families & Education",E1170,Services,
BEBINGTON CHILDMINDING - NICOLA FAIRHURST,2046913,04/02/2021,460.02,"Children, Families & Education",E1170,Services,
BEBINGTON CHILDMINDING - NICOLA FAIRHURST,2046913,04/02/2021,460.02,"Children, Families & Education",E1170,Services,
BEBINGTON CHILDMINDING - NICOLA FAIRHURST,2053148,25/02/2021,319.80,"Children, Families & Education",E1170,Services,
BEBINGTON CHILDMINDING - NICOLA FAIRHURST,2053148,25/02/2021,319.80,"Children, Families & Education",E1170,Services,
BEBINGTON PRESCHOOL PLAYGROUP,2046914,04/02/2021,"4,159.15","Children, Families & Education",E1170,Services,
BEBINGTON PRESCHOOL PLAYGROUP,2046914,04/02/2021,"3,258.00","Children, Families & Education",E1170,Services,
BEBINGTON PRESCHOOL PLAYGROUP,2053149,25/02/2021,"1,935.90","Children, Families & Education",E1170,Services,
BEBINGTON PRESCHOOL PLAYGROUP,2053149,25/02/2021,"3,327.74","Children, Families & Education",E1170,Services,
BECKYS HOME DAY CARE - REBECCA JOHNSON,2046915,04/02/2021,"1,353.00","Children, Families & Education",E1170,Services,
BECKYS HOME DAY CARE - REBECCA JOHNSON,2053150,25/02/2021,319.80,"Children, Families & Education",E1170,Services,
BEE WIRRAL CIC,2052412,22/02/2021,"19,300.00",Adults Care and Health and Strategic Commissioning,P4330,NHS Foundation Trusts,
BEECH PROPERTY MANAGEMENT LIMITED,2048733,09/02/2021,915.38,Regeneration & Place,H6080,Expenses,
BEECHWOOD (LIVERPOOL) LIMITED,2050496,16/02/2021,-354.60,Adults Care and Health and Strategic Commissioning,S6142,Customer and Client - Community Care,
BEECHWOOD (LIVERPOOL) LIMITED,2050496,16/02/2021,"5,154.44",Adults Care and Health and Strategic Commissioning,S6142,Mental Health Support - Adults (18-64),
BEECHWOOD (LIVERPOOL) LIMITED,2050496,16/02/2021,"5,454.80",Adults Care and Health and Strategic Commissioning,S6167,Mental Health Support - Older People (65+),
BELL CONTRACTS LIMITED,2052239,19/02/2021,"5,222.00",RE  Housing & Community Safety,C4117,Expenditure on Capital Grants,
BELVIDERE NURSING HOME,2050497,16/02/2021,"2,096.00",Adults Care and Health and Strategic Commissioning,S6132,Physical Support - Adults (18-64),
BELVIDERE NURSING HOME,2050497,16/02/2021,"2,096.00",Adults Care and Health and Strategic Commissioning,S6132,Physical Support - Older People (65+),
BELVIDERE NURSING HOME,2050497,16/02/2021,"2,096.00",Adults Care and Health and Strategic Commissioning,S6142,Mental Health Support - Older People (65+),
BELVIDERE NURSING HOME,2050497,16/02/2021,"2,096.00",Adults Care and Health and Strategic Commissioning,S6142,Physical Support - Older People (65+),
BELVIDERE NURSING HOME,2050497,16/02/2021,"2,096.00",Adults Care and Health and Strategic Commissioning,S6142,Physical Support - Older People (65+),
BELVIDERE NURSING HOME,2050497,16/02/2021,374.29,Adults Care and Health and Strategic Commissioning,S6142,Physical Support - Older People (65+),
BELVIDERE NURSING HOME,2050497,16/02/2021,"2,096.00",Adults Care and Health and Strategic Commissioning,S6142,Physical Support - Older People (65+),
BELVIDERE NURSING HOME,2050497,16/02/2021,"2,096.00",Adults Care and Health and Strategic Commissioning,S6142,Physical Support - Older People (65+),
BELVIDERE NURSING HOME,2050497,16/02/2021,"2,096.00",Adults Care and Health and Strategic Commissioning,S6142,Physical Support - Older People (65+),
BELVIDERE NURSING HOME,2050497,16/02/2021,"2,096.00",Adults Care and Health and Strategic Commissioning,S6142,Physical Support - Older People (65+),
BELVIDERE NURSING HOME,2050497,16/02/2021,"1,497.14",Adults Care and Health and Strategic Commissioning,S6142,Sensory Support - Older People (65+),
BELVIDERE NURSING HOME,2050497,16/02/2021,524.00,Adults Care and Health and Strategic Commissioning,S6998,Physical Support - Older People (65+),
BENNETT BUILDERS (NORTH WEST) LIMITED,2046919,04/02/2021,"5,930.00",RE  Housing & Community Safety,C4213,Expenditure on Capital Loans,
BENNETT BUILDERS (NORTH WEST) LIMITED,2053575,26/02/2021,"7,225.00",RE  Housing & Community Safety,C4213,Expenditure on Capital Loans,
BENTY HEATH KINDERGARTEN,2046922,04/02/2021,"1,809.11","Children, Families & Education",E1170,Services,
BENTY HEATH KINDERGARTEN,2046922,04/02/2021,572.22,"Children, Families & Education",E1170,Services,
BENTY HEATH KINDERGARTEN,2053152,25/02/2021,"1,015.71","Children, Families & Education",E1170,Services,
BENTY HEATH KINDERGARTEN,2053152,25/02/2021,397.80,"Children, Families & Education",E1170,Services,
BESTCO LIMITED,2045836,01/02/2021,999.60,Covid,H4100,"Equipment, Furniture & Materials",
BESTCO LIMITED,2048556,08/02/2021,565.09,Neighbourhood Services,L3320,"Repairs, alterations and maintenance",
BESTCO LIMITED,2052584,23/02/2021,218.75,Neighbourhood Services,L3320,"Repairs, alterations and maintenance",
BESTCO LIMITED,2048556,08/02/2021,5.85,Neighbourhood Services,T4020,"Equipment, Furniture & Materials",
BESTCO LIMITED,2048556,08/02/2021,"1,032.82",Neighbourhood Services,V1920,"Equipment, Furniture & Materials",
BESTCO LIMITED,2052413,22/02/2021,"1,170.77",Neighbourhood Services,V1920,"Equipment, Furniture & Materials",
BETHANY DAY NURSERY LTD,2046929,04/02/2021,"1,166.88","Children, Families & Education",E1170,Services,
BETHANY DAY NURSERY LTD,2046929,04/02/2021,"5,247.44","Children, Families & Education",E1170,Services,
BETHANY DAY NURSERY LTD,2046929,04/02/2021,483.58,"Children, Families & Education",E1170,Services,
BETHANY DAY NURSERY LTD,2053153,25/02/2021,608.40,"Children, Families & Education",E1170,Services,
BETHANY DAY NURSERY LTD,2053153,25/02/2021,"2,857.53","Children, Families & Education",E1170,Services,
BETHANY DAY NURSERY LTD,2053153,25/02/2021,"1,176.63","Children, Families & Education",E1170,Services,
BEVERLEY FENTON,2048557,08/02/2021,517.30,Law & Governance (Monitoring Officer),A1305,Legal Service Provider,
BFS GROUP LIMITED T/A BIDFOOD,2052240,19/02/2021,5.00,Neighbourhood Services,L3951,Catering,
BIDDYAVE BUDDIES,2049007,10/02/2021,615.00,"Children, Families & Education",E1170,Disability Access Fund,
BIDDYAVE BUDDIES,2050201,15/02/2021,111.30,"Children, Families & Education",E1170,Pupil Premium,
BIDDYAVE BUDDIES,2046933,04/02/2021,"13,014.54","Children, Families & Education",E1170,Services,
BIDDYAVE BUDDIES,2046933,04/02/2021,"2,604.11","Children, Families & Education",E1170,Services,
BIDDYAVE BUDDIES,2053154,25/02/2021,"7,042.23","Children, Families & Education",E1170,Services,
BIDDYAVE BUDDIES,2053154,25/02/2021,"2,815.80","Children, Families & Education",E1170,Services,
BIDDYAVE BUDDIES,2045837,01/02/2021,"3,276.00","Children, Families & Education",E9902,Educational Provider,
BIDDYAVE BUDDIES,2046932,04/02/2021,"1,092.00","Children, Families & Education",E9902,Educational Provider,
BIDDYAVE BUDDIES,2048735,09/02/2021,"1,075.20","Children, Families & Education",E9902,Educational Provider,
BIDDYAVE BUDDIES,2049983,12/02/2021,"1,498.80","Children, Families & Education",E9902,Educational Provider,
BIFFA WASTE SERVICES,2046934,04/02/2021,"7,464.76",RE  Environment & Regulation,C5407,Contractors - Main,
BIFFA WASTE SERVICES,2052585,23/02/2021,"47,938.75",Neighbourhood Services,H2930,Waste Service Provider,
BIFFA WASTE SERVICES,2046934,04/02/2021,"8,465.67",Neighbourhood Services,H2930,Waste Service Provider,
BIFFA WASTE SERVICES,2046934,04/02/2021,"896,879.23",Neighbourhood Services,H2940,Waste Service Provider,
BIFFA WASTE SERVICES,2046934,04/02/2021,"1,334.91",Neighbourhood Services,H2940,Waste Service Provider,
BIFFA WASTE SERVICES,2046934,04/02/2021,"17,243.22",Neighbourhood Services,H2940,Waste Service Provider,
BIFFA WASTE SERVICES,2046934,04/02/2021,"12,355.74",Neighbourhood Services,H2940,Waste Service Provider,
BIFFA WASTE SERVICES,2049336,11/02/2021,"12,030.34",Neighbourhood Services,H3140,Waste Service Provider,
BIFFA WASTE SERVICES,2046934,04/02/2021,"15,189.12",Covid,H4138,Waste Service Provider,
BIFFA WASTE SERVICES,2046934,04/02/2021,"10,311.84",Covid,H4138,Waste Service Provider,
BIFFA WASTE SERVICES,2046934,04/02/2021,"12,795.84",Covid,H4138,Waste Service Provider,
BIFFA WASTE SERVICES,2046934,04/02/2021,"8,249.76",Covid,H4138,Waste Service Provider,
BIFFA WASTE SERVICES,2046934,04/02/2021,"2,616.20",Covid,H4138,Waste Service Provider,
BIFFA WASTE SERVICES,2046934,04/02/2021,"3,160.95",Neighbourhood Services,L4950,Waste Service Provider,
BIFFA WASTE SERVICES,2046934,04/02/2021,178.06,Neighbourhood Services,T4020,"Repairs, alterations and maintenance",
BIRKENHEAD DRIVING SCHOOL LIMITED,2052835,24/02/2021,475.00,"Children, Families & Education",E7033,Care Provision,
BIRKENHEAD POWDER COATINGS,2052588,23/02/2021,350.00,Neighbourhood Services,V1920,"Equipment, Furniture & Materials",
BIRKENHEAD PREPARATORY SCHOOL,2046937,04/02/2021,"17,601.19","Children, Families & Education",E1170,Services,
BIRKENHEAD PREPARATORY SCHOOL,2046937,04/02/2021,"18,073.92","Children, Families & Education",E1170,Services,
BIRKENHEAD PREPARATORY SCHOOL,2053156,25/02/2021,"10,149.82","Children, Families & Education",E1170,Services,
BIRKENHEAD PREPARATORY SCHOOL,2053156,25/02/2021,"10,294.13","Children, Families & Education",E1170,Services,
BIRKENHEAD PRIORY PARISH CHURCH COUNCIL,2053576,26/02/2021,36.59,Covid,H4096,Catering,
BIRKENHEAD PRIORY PARISH CHURCH COUNCIL,2053576,26/02/2021,146.37,Covid,H4120,Grants & Subscriptions,
BIRKENHEAD YMCA,2051463,18/02/2021,555.84,Regeneration & Place,H6080,Expenses,
BIRKENHEAD YMCA,2051463,18/02/2021,150.00,Regeneration & Place,H6080,Expenses,
BIRKENHEAD YMCA,2048737,09/02/2021,"11,027.67",Regeneration & Place,H7180,Government Grants,
BIRKENHEAD YMCA,2048737,09/02/2021,"3,239.87",Regeneration & Place,H7180,Government Grants,
BIRKENHEAD YMCA,2048737,09/02/2021,"30,990.24",Regeneration & Place,H7180,Grants Paid,
BIRTENSHAW,2053577,26/02/2021,"20,187.41","Children, Families & Education",E7080,Care Provision,
BIRTENSHAW,2053577,26/02/2021,"20,730.66","Children, Families & Education",E7080,Care Provision,
BIRTENSHAW,2050499,16/02/2021,"10,408.50",Adults Care and Health and Strategic Commissioning,S6121,Learning & Disability Support - Adults (18-64),
BIRTENSHAW,2050499,16/02/2021,"10,794.00",Adults Care and Health and Strategic Commissioning,S6121,Learning & Disability Support - Adults (18-64),
BIRTENSHAW,2050499,16/02/2021,"8,481.00",Adults Care and Health and Strategic Commissioning,S6121,Learning & Disability Support - Adults (18-64),
BIRTENSHAW,2050499,16/02/2021,"1,927.50",Adults Care and Health and Strategic Commissioning,S6121,Learning & Disability Support - Adults (18-64),
BIRTENSHAW,2050499,16/02/2021,"5,011.50",Adults Care and Health and Strategic Commissioning,S6121,Learning & Disability Support - Adults (18-64),
BIRTENSHAW,2046093,02/02/2021,"12,486.25",Adults Care and Health and Strategic Commissioning,S6121,Learning & Disability Support - Adults (18-64),
BLUE DIAMOND STL,2053157,25/02/2021,206.40,Neighbourhood Services,V1970,"Equipment, Furniture & Materials",
BLUEBELLS DAY NURSERY,2046939,04/02/2021,875.16,"Children, Families & Education",E1170,Services,
BLUEBELLS DAY NURSERY,2046939,04/02/2021,"7,707.51","Children, Families & Education",E1170,Services,
BLUEBELLS DAY NURSERY,2046939,04/02/2021,"2,530.11","Children, Families & Education",E1170,Services,
BLUEBELLS DAY NURSERY,2053158,25/02/2021,608.40,"Children, Families & Education",E1170,Services,
BLUEBELLS DAY NURSERY,2053158,25/02/2021,"5,637.84","Children, Families & Education",E1170,Services,
BLUEBELLS DAY NURSERY,2053158,25/02/2021,"2,078.70","Children, Families & Education",E1170,Services,
BLUEBELLS DAY NURSERY LTD,2046940,04/02/2021,"1,750.32","Children, Families & Education",E1170,Services,
BLUEBELLS DAY NURSERY LTD,2046940,04/02/2021,"8,471.73","Children, Families & Education",E1170,Services,
BLUEBELLS DAY NURSERY LTD,2046940,04/02/2021,"1,407.00","Children, Families & Education",E1170,Services,
BLUEBELLS DAY NURSERY LTD,2053159,25/02/2021,811.20,"Children, Families & Education",E1170,Services,
BLUEBELLS DAY NURSERY LTD,2053159,25/02/2021,"4,401.54","Children, Families & Education",E1170,Services,
BLUEBELLS DAY NURSERY LTD,2053159,25/02/2021,"2,465.97","Children, Families & Education",E1170,Services,
BNR AGENCY LIMITED,2052416,22/02/2021,"75,669.89",Covid,H4094,Physical Support - Older People (65+),
BOARDMAN HAWKINS & OSBORNE LLP,2045839,01/02/2021,360.00,"Children, Families & Education",E7033,Care Provision,
BOC LIMITED,2050996,17/02/2021,45.60,Neighbourhood Services,L3950,Catering,
BOC LIMITED,2049984,12/02/2021,"1,653.75",Neighbourhood Services,L4975,Direct Transport Costs,
BOC LIMITED,2049984,12/02/2021,187.80,Neighbourhood Services,V1920,"Equipment, Furniture & Materials",
BOLD COMMUNICATIONS LTD,2052836,24/02/2021,"1,099.00",Neighbourhood Services,H4000,"Equipment, Furniture & Materials",
BOLD COMMUNICATIONS LTD,2052417,22/02/2021,780.00,Neighbourhood Services,H4000,"Equipment, Furniture & Materials",
BOLD COMMUNICATIONS LTD,2049008,10/02/2021,950.00,Neighbourhood Services,H4030,Services,
BOLD COMMUNICATIONS LTD,2049008,10/02/2021,"4,225.00",Neighbourhood Services,H4080,Grants & Subscriptions,
BOLD COMMUNICATIONS LTD,2049008,10/02/2021,"4,000.00",Neighbourhood Services,H4080,Grants & Subscriptions,
BOLD COMMUNICATIONS LTD,2048560,08/02/2021,"1,515.00",Neighbourhood Services,H4080,Grants & Subscriptions,
BONDCARE WILLINGTON LIMITED,2050501,16/02/2021,"8,707.90",Covid,H4094,Physical Support - Older People (65+),
BONDCARE WILLINGTON LIMITED,2050501,16/02/2021,"16,939.90",Covid,H4148,Physical Support - Older People (65+),
BONDCARE WILLINGTON LIMITED,2050501,16/02/2021,"2,096.00",Adults Care and Health and Strategic Commissioning,S6121,Learning & Disability Support - Adults (18-64),
BONDCARE WILLINGTON LIMITED,2050501,16/02/2021,"2,168.00",Adults Care and Health and Strategic Commissioning,S6131,Memory & Cognition Support - Older People (65+),
BONDCARE WILLINGTON LIMITED,2050501,16/02/2021,"2,160.00",Adults Care and Health and Strategic Commissioning,S6131,Memory & Cognition Support - Older People (65+),
BONDCARE WILLINGTON LIMITED,2050501,16/02/2021,160.00,Adults Care and Health and Strategic Commissioning,S6131,Memory & Cognition Support - Older People (65+),
BONDCARE WILLINGTON LIMITED,2050501,16/02/2021,"2,160.00",Adults Care and Health and Strategic Commissioning,S6131,Memory & Cognition Support - Older People (65+),
BONDCARE WILLINGTON LIMITED,2050501,16/02/2021,"2,168.00",Adults Care and Health and Strategic Commissioning,S6131,Mental Health Support - Older People (65+),
BONDCARE WILLINGTON LIMITED,2050501,16/02/2021,"2,096.00",Adults Care and Health and Strategic Commissioning,S6131,Physical Support - Older People (65+),
BONDCARE WILLINGTON LIMITED,2050501,16/02/2021,"1,936.00",Adults Care and Health and Strategic Commissioning,S6131,Physical Support - Older People (65+),
BONDCARE WILLINGTON LIMITED,2050501,16/02/2021,"2,096.00",Adults Care and Health and Strategic Commissioning,S6131,Physical Support - Older People (65+),
BONDCARE WILLINGTON LIMITED,2050501,16/02/2021,"2,160.00",Adults Care and Health and Strategic Commissioning,S6131,Physical Support - Older People (65+),
BONDCARE WILLINGTON LIMITED,2050501,16/02/2021,"2,160.00",Adults Care and Health and Strategic Commissioning,S6131,Physical Support - Older People (65+),
BONDCARE WILLINGTON LIMITED,2050501,16/02/2021,"1,002.86",Adults Care and Health and Strategic Commissioning,S6131,Physical Support - Older People (65+),
BONDCARE WILLINGTON LIMITED,2050501,16/02/2021,185.71,Adults Care and Health and Strategic Commissioning,S6131,Physical Support - Older People (65+),
BONDCARE WILLINGTON LIMITED,2050501,16/02/2021,"2,160.00",Adults Care and Health and Strategic Commissioning,S6131,Sensory Support - Older People (65+),
BONDCARE WILLINGTON LIMITED,2050501,16/02/2021,"2,160.00",Adults Care and Health and Strategic Commissioning,S6132,Memory & Cognition Support - Older People (65+),
BONDCARE WILLINGTON LIMITED,2050501,16/02/2021,"2,168.00",Adults Care and Health and Strategic Commissioning,S6132,Mental Health Support - Older People (65+),
BONDCARE WILLINGTON LIMITED,2050501,16/02/2021,"2,096.00",Adults Care and Health and Strategic Commissioning,S6132,Physical Support - Adults (18-64),
BONDCARE WILLINGTON LIMITED,2050501,16/02/2021,"2,168.00",Adults Care and Health and Strategic Commissioning,S6132,Physical Support - Older People (65+),
BONDCARE WILLINGTON LIMITED,2050501,16/02/2021,"2,160.00",Adults Care and Health and Strategic Commissioning,S6132,Physical Support - Older People (65+),
BONDCARE WILLINGTON LIMITED,2050501,16/02/2021,"2,168.00",Adults Care and Health and Strategic Commissioning,S6132,Physical Support - Older People (65+),
BONDCARE WILLINGTON LIMITED,2050501,16/02/2021,"2,168.00",Adults Care and Health and Strategic Commissioning,S6132,Physical Support - Older People (65+),
BONDCARE WILLINGTON LIMITED,2050501,16/02/2021,"2,168.00",Adults Care and Health and Strategic Commissioning,S6132,Physical Support - Older People (65+),
BONDCARE WILLINGTON LIMITED,2050501,16/02/2021,735.68,Adults Care and Health and Strategic Commissioning,S6132,Physical Support - Older People (65+),
BONDCARE WILLINGTON LIMITED,2050501,16/02/2021,"2,168.00",Adults Care and Health and Strategic Commissioning,S6132,Physical Support - Older People (65+),
BONDCARE WILLINGTON LIMITED,2050501,16/02/2021,898.29,Adults Care and Health and Strategic Commissioning,S6132,Physical Support - Older People (65+),
BONDCARE WILLINGTON LIMITED,2050501,16/02/2021,464.57,Adults Care and Health and Strategic Commissioning,S6132,Physical Support - Older People (65+),
BONDCARE WILLINGTON LIMITED,2050501,16/02/2021,"2,096.00",Adults Care and Health and Strategic Commissioning,S6141,Memory & Cognition Support - Older People (65+),
BONDCARE WILLINGTON LIMITED,2050501,16/02/2021,"2,096.00",Adults Care and Health and Strategic Commissioning,S6141,Mental Health Support - Older People (65+),
BONDCARE WILLINGTON LIMITED,2050501,16/02/2021,"-1,871.43",Adults Care and Health and Strategic Commissioning,S6141,Physical Support - Older People (65+),
BONDCARE WILLINGTON LIMITED,2050501,16/02/2021,"2,168.00",Adults Care and Health and Strategic Commissioning,S6142,Mental Health Support - Older People (65+),
BONDCARE WILLINGTON LIMITED,2050501,16/02/2021,"2,168.00",Adults Care and Health and Strategic Commissioning,S6167,Memory & Cognition Support - Older People (65+),
BONDCARE WILLINGTON LIMITED,2050501,16/02/2021,"2,168.00",Adults Care and Health and Strategic Commissioning,S6167,Memory & Cognition Support - Older People (65+),
BONDCARE WILLINGTON LIMITED,2050501,16/02/2021,"2,160.00",Adults Care and Health and Strategic Commissioning,S6167,Mental Health Support - Older People (65+),
BONDCARE WILLINGTON LIMITED,2050501,16/02/2021,"2,168.00",Adults Care and Health and Strategic Commissioning,S6167,Mental Health Support - Older People (65+),
BONDCARE WILLINGTON LIMITED,2050501,16/02/2021,"2,168.00",Adults Care and Health and Strategic Commissioning,S6167,Physical Support - Older People (65+),
BONDCARE WILLINGTON LIMITED,2050501,16/02/2021,309.71,Adults Care and Health and Strategic Commissioning,S6998,Memory & Cognition Support - Older People (65+),
BONDCARE WILLINGTON LIMITED,2050501,16/02/2021,"2,168.00",Adults Care and Health and Strategic Commissioning,S6998,Memory & Cognition Support - Older People (65+),
BONDCARE WILLINGTON LIMITED,2050501,16/02/2021,851.71,Adults Care and Health and Strategic Commissioning,S6998,Memory & Cognition Support - Older People (65+),
BONDCARE WILLINGTON LIMITED,2050501,16/02/2021,"1,084.00",Adults Care and Health and Strategic Commissioning,S6998,Mental Health Support - Older People (65+),
BONDCARE WILLINGTON LIMITED,2050501,16/02/2021,224.57,Adults Care and Health and Strategic Commissioning,S6998,Physical Support - Older People (65+),
BONDCARE WILLINGTON LIMITED,2050501,16/02/2021,"2,096.00",Adults Care and Health and Strategic Commissioning,S6998,Physical Support - Older People (65+),
BONDCARE WILLINGTON LIMITED,2050501,16/02/2021,"2,168.00",Adults Care and Health and Strategic Commissioning,S6998,Physical Support - Older People (65+),
BONDCARE WILLINGTON LIMITED,2050501,16/02/2021,-374.29,Adults Care and Health and Strategic Commissioning,S6998,Physical Support - Older People (65+),
BONDCARE WILLINGTON LIMITED,2050501,16/02/2021,"1,946.29",Adults Care and Health and Strategic Commissioning,S6998,Physical Support - Older People (65+),
BONDCARE WILLINGTON LIMITED,2050501,16/02/2021,"1,626.00",Adults Care and Health and Strategic Commissioning,S6998,Physical Support - Older People (65+),
BONDCARE WILLINGTON LIMITED,2050501,16/02/2021,374.29,Adults Care and Health and Strategic Commissioning,S6998,Physical Support - Older People (65+),
BONDCARE WILLINGTON LIMITED,2050501,16/02/2021,"1,497.14",Adults Care and Health and Strategic Commissioning,S6998,Physical Support - Older People (65+),
BONDCARE WILLINGTON LIMITED,2050501,16/02/2021,524.00,Adults Care and Health and Strategic Commissioning,S6998,Physical Support - Older People (65+),
BOO'S HOUSE CHILDMINDING-AIMEE SACKER/LAURA WILLIAMSON,2046950,04/02/2021,"1,380.06","Children, Families & Education",E1170,Services,
BOO'S HOUSE CHILDMINDING-AIMEE SACKER/LAURA WILLIAMSON,2053160,25/02/2021,202.80,"Children, Families & Education",E1170,Services,
BOO'S HOUSE CHILDMINDING-AIMEE SACKER/LAURA WILLIAMSON,2053160,25/02/2021,"1,279.20","Children, Families & Education",E1170,Services,
BOOST,2046951,04/02/2021,66.00,Covid,H4120,Grants & Subscriptions,
BOOST,2046951,04/02/2021,86.25,Covid,H4120,Grants & Subscriptions,
BOOTS UK LIMITED,2050998,17/02/2021,"3,600.00",Neighbourhood Services,H2940,Waste Service Provider,
BOSTON SEEDS,2048104,05/02/2021,750.00,Law & Governance (Monitoring Officer),B7633,Grants to Voluntary Organisations,
BOSTON SEEDS,2048104,05/02/2021,112.49,Neighbourhood Services,L4971,"Equipment, Furniture & Materials",
BOSTON SEEDS,2048104,05/02/2021,-112.49,Neighbourhood Services,L4971,"Equipment, Furniture & Materials",
BOSTON SEEDS,2048104,05/02/2021,154.99,Neighbourhood Services,L4971,"Equipment, Furniture & Materials",
BOSTON SEEDS,2048104,05/02/2021,-154.99,Neighbourhood Services,L4971,"Equipment, Furniture & Materials",
BRAKES BROS LIMITED,2046095,02/02/2021,33.54,Regeneration & Place,D2700,Catering,
BRIGHT FUTURES CARE LIMITED,2053579,26/02/2021,"24,720.00","Children, Families & Education",E7080,Care Provision,
BRIGHT SMILES DAY NURSERY,2046956,04/02/2021,"1,166.88","Children, Families & Education",E1170,Services,
BRIGHT SMILES DAY NURSERY,2046956,04/02/2021,"2,761.06","Children, Families & Education",E1170,Services,
BRIGHT SMILES DAY NURSERY,2046956,04/02/2021,823.54,"Children, Families & Education",E1170,Services,
BRIGHT SMILES DAY NURSERY,2053162,25/02/2021,811.20,"Children, Families & Education",E1170,Services,
BRIGHT SMILES DAY NURSERY,2053162,25/02/2021,"1,979.64","Children, Families & Education",E1170,Services,
BRIGHT SMILES DAY NURSERY,2053162,25/02/2021,"1,016.65","Children, Families & Education",E1170,Services,
BRIGHT STARS CHILDCARE - CHARLOTTE TULLETT,2046957,04/02/2021,"1,149.72","Children, Families & Education",E1170,Services,
BRIGHT STARS CHILDCARE - CHARLOTTE TULLETT,2046957,04/02/2021,476.84,"Children, Families & Education",E1170,Services,
BRIGHT STARS CHILDCARE - CHARLOTTE TULLETT,2050204,15/02/2021,858.00,"Children, Families & Education",E1170,Services,
BRIGHT STARS CHILDCARE - CHARLOTTE TULLETT,2053163,25/02/2021,608.40,"Children, Families & Education",E1170,Services,
BRIGHT STARS CHILDCARE - CHARLOTTE TULLETT,2053163,25/02/2021,497.25,"Children, Families & Education",E1170,Services,
BRIGHTER BEBINGTON,2049341,11/02/2021,"8,634.33",Law & Governance (Monitoring Officer),B7598,Grants to Voluntary Organisations,
BRIMARK SIGNS LIMITED,2048739,09/02/2021,91.10,Neighbourhood Services,V1450,"Equipment, Furniture & Materials",
BRITISH GAS BUSINESS,2049990,12/02/2021,302.05,Regeneration & Place,D2020,Energy Costs,
BRITISH GAS BUSINESS,2049990,12/02/2021,44.10,Regeneration & Place,D2020,Energy Costs,
BRITISH GAS BUSINESS,2049990,12/02/2021,135.71,Regeneration & Place,D2140,Energy Costs,
BRITISH GAS BUSINESS,2049990,12/02/2021,"3,140.82",Regeneration & Place,D2550,Energy Costs,
BRITISH GAS BUSINESS,2049990,12/02/2021,451.30,Regeneration & Place,D2550,Energy Costs,
BRITISH GAS BUSINESS,2049990,12/02/2021,6.75,Regeneration & Place,D2550,Energy Costs,
BRITISH GAS BUSINESS,2049990,12/02/2021,0.23,Regeneration & Place,D2550,Energy Costs,
BRITISH GAS BUSINESS,2049990,12/02/2021,41.02,Regeneration & Place,D2610,Energy Costs,
BRITISH GAS BUSINESS,2049990,12/02/2021,5.05,Regeneration & Place,D2610,Energy Costs,
BRITISH GAS BUSINESS,2049990,12/02/2021,"1,414.13",Regeneration & Place,D2620,Energy Costs,
BRITISH GAS BUSINESS,2049990,12/02/2021,459.81,Regeneration & Place,D2640,Energy Costs,
BRITISH GAS BUSINESS,2049990,12/02/2021,7.60,Regeneration & Place,D2640,Energy Costs,
BRITISH GAS BUSINESS,2049990,12/02/2021,0.25,Regeneration & Place,D2640,Energy Costs,
BRITISH GAS BUSINESS,2049990,12/02/2021,249.86,Regeneration & Place,D2650,Energy Costs,
BRITISH GAS BUSINESS,2049990,12/02/2021,"1,697.00",Regeneration & Place,D2680,Energy Costs,
BRITISH GAS BUSINESS,2049990,12/02/2021,"2,142.61",Regeneration & Place,D2700,Energy Costs,
BRITISH GAS BUSINESS,2049990,12/02/2021,22.02,Regeneration & Place,D3150,Energy Costs,
BRITISH GAS BUSINESS,2049990,12/02/2021,51.11,Regeneration & Place,D3150,Energy Costs,
BRITISH GAS BUSINESS,2049990,12/02/2021,37.32,Regeneration & Place,D3150,Energy Costs,
BRITISH GAS BUSINESS,2049990,12/02/2021,33.15,Regeneration & Place,D3160,Energy Costs,
BRITISH GAS BUSINESS,2049990,12/02/2021,7.60,Regeneration & Place,D3310,Energy Costs,
BRITISH GAS BUSINESS,2049990,12/02/2021,0.25,Regeneration & Place,D3310,Energy Costs,
BRITISH GAS BUSINESS,2049990,12/02/2021,12.58,Regeneration & Place,D3310,Energy Costs,
BRITISH GAS BUSINESS,2049990,12/02/2021,74.68,Regeneration & Place,D3310,Energy Costs,
BRITISH GAS BUSINESS,2049990,12/02/2021,53.43,Regeneration & Place,D3310,Energy Costs,
BRITISH GAS BUSINESS,2049990,12/02/2021,10.37,Regeneration & Place,D3310,Energy Costs,
BRITISH GAS BUSINESS,2049990,12/02/2021,265.11,Regeneration & Place,D3310,Energy Costs,
BRITISH GAS BUSINESS,2049990,12/02/2021,7.60,Regeneration & Place,D3310,Energy Costs,
BRITISH GAS BUSINESS,2049990,12/02/2021,418.45,Neighbourhood Services,D3503,Energy Costs,
BRITISH GAS BUSINESS,2049990,12/02/2021,271.66,Neighbourhood Services,D3504,Energy Costs,
BRITISH GAS BUSINESS,2049990,12/02/2021,86.69,Neighbourhood Services,D3505,Energy Costs,
BRITISH GAS BUSINESS,2049990,12/02/2021,725.65,Neighbourhood Services,D3506,Energy Costs,
BRITISH GAS BUSINESS,2049990,12/02/2021,465.62,Neighbourhood Services,D3507,Energy Costs,
BRITISH GAS BUSINESS,2049990,12/02/2021,"1,224.88",Neighbourhood Services,D3508,Energy Costs,
BRITISH GAS BUSINESS,2049990,12/02/2021,109.53,Neighbourhood Services,D3510,Energy Costs,
BRITISH GAS BUSINESS,2049990,12/02/2021,"1,026.55",Neighbourhood Services,D3512,Energy Costs,
BRITISH GAS BUSINESS,2049990,12/02/2021,42.18,Neighbourhood Services,D3513,Energy Costs,
BRITISH GAS BUSINESS,2049990,12/02/2021,54.50,Neighbourhood Services,D3514,Energy Costs,
BRITISH GAS BUSINESS,2049990,12/02/2021,"2,031.42",Neighbourhood Services,D3518,Energy Costs,
BRITISH GAS BUSINESS,2049990,12/02/2021,113.94,Neighbourhood Services,D3519,Energy Costs,
BRITISH GAS BUSINESS,2049990,12/02/2021,279.03,Neighbourhood Services,D3520,Energy Costs,
BRITISH GAS BUSINESS,2049990,12/02/2021,56.05,Neighbourhood Services,D3521,Energy Costs,
BRITISH GAS BUSINESS,2049990,12/02/2021,220.72,Neighbourhood Services,D3541,Energy Costs,
BRITISH GAS BUSINESS,2046408,03/02/2021,0.19,Regeneration & Place,D4040,Energy Costs,
BRITISH GAS BUSINESS,2046408,03/02/2021,19.69,Regeneration & Place,D4040,Energy Costs,
BRITISH GAS BUSINESS,2048110,05/02/2021,11.27,Regeneration & Place,D4040,Energy Costs,
BRITISH GAS BUSINESS,2046408,03/02/2021,10.10,Regeneration & Place,D4040,Energy Costs,
BRITISH GAS BUSINESS,2048110,05/02/2021,18.66,Regeneration & Place,D4040,Energy Costs,
BRITISH GAS BUSINESS,2048110,05/02/2021,28.07,Regeneration & Place,D4040,Energy Costs,
BRITISH GAS BUSINESS,2046408,03/02/2021,13.48,Regeneration & Place,D4040,Energy Costs,
BRITISH GAS BUSINESS,2046408,03/02/2021,12.12,Regeneration & Place,D4040,Energy Costs,
BRITISH GAS BUSINESS,2049991,12/02/2021,20.45,Regeneration & Place,D4040,Energy Costs,
BRITISH GAS BUSINESS,2049991,12/02/2021,11.37,Regeneration & Place,D4040,Energy Costs,
BRITISH GAS BUSINESS,2049991,12/02/2021,9.59,Regeneration & Place,D4040,Energy Costs,
BRITISH GAS BUSINESS,2049991,12/02/2021,10.87,Regeneration & Place,D4040,Energy Costs,
BRITISH GAS BUSINESS,2049991,12/02/2021,0.19,Regeneration & Place,D4040,Energy Costs,
BRITISH GAS BUSINESS,2051468,18/02/2021,10.48,Regeneration & Place,D4040,Energy Costs,
BRITISH GAS BUSINESS,2051468,18/02/2021,9.91,Regeneration & Place,D4040,Energy Costs,
BRITISH GAS BUSINESS,2051468,18/02/2021,9.91,Regeneration & Place,D4040,Energy Costs,
BRITISH GAS BUSINESS,2052839,24/02/2021,7.50,Regeneration & Place,D4040,Energy Costs,
BRITISH GAS BUSINESS,2052839,24/02/2021,8.95,Regeneration & Place,D4040,Energy Costs,
BRITISH GAS BUSINESS,2052839,24/02/2021,16.83,Regeneration & Place,D4040,Energy Costs,
BRITISH GAS BUSINESS,2052839,24/02/2021,10.23,Regeneration & Place,D4040,Energy Costs,
BRITISH GAS BUSINESS,2052839,24/02/2021,9.91,Regeneration & Place,D4040,Energy Costs,
BRITISH GAS BUSINESS,2052839,24/02/2021,6.69,Regeneration & Place,D4040,Energy Costs,
BRITISH GAS BUSINESS,2052839,24/02/2021,9.59,Regeneration & Place,D4040,Energy Costs,
BRITISH GAS BUSINESS,2052839,24/02/2021,10.87,Regeneration & Place,D4040,Energy Costs,
BRITISH GAS BUSINESS,2052839,24/02/2021,18.97,Regeneration & Place,D4040,Energy Costs,
BRITISH GAS BUSINESS,2052839,24/02/2021,6.91,Regeneration & Place,D4040,Energy Costs,
BRITISH GAS BUSINESS,2052839,24/02/2021,9.78,Regeneration & Place,D4040,Energy Costs,
BRITISH GAS BUSINESS,2049990,12/02/2021,7.60,Regeneration & Place,D5500,Energy Costs,
BRITISH GAS BUSINESS,2049990,12/02/2021,0.25,Regeneration & Place,D5500,Energy Costs,
BRITISH GAS BUSINESS,2049990,12/02/2021,"1,056.66","Children, Families & Education",E1220,Energy Costs,
BRITISH GAS BUSINESS,2049990,12/02/2021,118.26,"Children, Families & Education",E1410,Energy Costs,
BRITISH GAS BUSINESS,2049990,12/02/2021,347.92,"Children, Families & Education",E1410,Energy Costs,
BRITISH GAS BUSINESS,2049990,12/02/2021,759.98,"Children, Families & Education",E1420,Energy Costs,
BRITISH GAS BUSINESS,2049990,12/02/2021,133.20,"Children, Families & Education",E1440,Energy Costs,
BRITISH GAS BUSINESS,2049990,12/02/2021,37.71,"Children, Families & Education",E6350,Energy Costs,
BRITISH GAS BUSINESS,2049990,12/02/2021,722.37,"Children, Families & Education",E6763,Energy Costs,
BRITISH GAS BUSINESS,2049990,12/02/2021,37.56,"Children, Families & Education",E7483,Energy Costs,
BRITISH GAS BUSINESS,2049990,12/02/2021,42.55,"Children, Families & Education",E7493,Energy Costs,
BRITISH GAS BUSINESS,2049990,12/02/2021,41.56,"Children, Families & Education",E8610,Energy Costs,
BRITISH GAS BUSINESS,2049990,12/02/2021,39.42,"Children, Families & Education",E8660,Energy Costs,
BRITISH GAS BUSINESS,2049990,12/02/2021,397.21,"Children, Families & Education",E8940,Energy Costs,
BRITISH GAS BUSINESS,2049990,12/02/2021,112.10,"Children, Families & Education",E9160,Energy Costs,
BRITISH GAS BUSINESS,2049990,12/02/2021,377.92,Neighbourhood Services,E9890,Energy Costs,
BRITISH GAS BUSINESS,2049990,12/02/2021,75.50,Neighbourhood Services,H2400,"Repairs, alterations and maintenance",
BRITISH GAS BUSINESS,2049990,12/02/2021,29.71,Neighbourhood Services,H2910,Energy Costs,
BRITISH GAS BUSINESS,2049990,12/02/2021,7.85,Neighbourhood Services,H2910,Energy Costs,
BRITISH GAS BUSINESS,2049990,12/02/2021,71.29,Neighbourhood Services,H2910,Energy Costs,
BRITISH GAS BUSINESS,2049990,12/02/2021,106.70,Neighbourhood Services,H2910,Energy Costs,
BRITISH GAS BUSINESS,2049990,12/02/2021,37.10,Neighbourhood Services,H2910,Energy Costs,
BRITISH GAS BUSINESS,2049990,12/02/2021,72.52,Neighbourhood Services,H2910,Energy Costs,
BRITISH GAS BUSINESS,2046959,04/02/2021,270.00,Covid,H4120,Grants & Subscriptions,
BRITISH GAS BUSINESS,2051005,17/02/2021,575.00,Covid,H4120,Grants & Subscriptions,
BRITISH GAS BUSINESS,2048561,08/02/2021,625.61,Covid,H4120,Grants & Subscriptions,
BRITISH GAS BUSINESS,2048561,08/02/2021,113.00,Covid,H4120,Grants & Subscriptions,
BRITISH GAS BUSINESS,2048561,08/02/2021,250.00,Covid,H4120,Grants & Subscriptions,
BRITISH GAS BUSINESS,2053580,26/02/2021,"1,500.00",Covid,H4120,Grants & Subscriptions,
BRITISH GAS BUSINESS,2053580,26/02/2021,516.69,Covid,H4120,Grants & Subscriptions,
BRITISH GAS BUSINESS,2053580,26/02/2021,175.07,Covid,H4120,Grants & Subscriptions,
BRITISH GAS BUSINESS,2049990,12/02/2021,96.07,Neighbourhood Services,L2010,Energy Costs,
BRITISH GAS BUSINESS,2049990,12/02/2021,7.90,Neighbourhood Services,L2430,Energy Costs,
BRITISH GAS BUSINESS,2049990,12/02/2021,559.83,Neighbourhood Services,L2470,Energy Costs,
BRITISH GAS BUSINESS,2049990,12/02/2021,79.29,Neighbourhood Services,L2470,Energy Costs,
BRITISH GAS BUSINESS,2049990,12/02/2021,11.40,Neighbourhood Services,L2470,Energy Costs,
BRITISH GAS BUSINESS,2049990,12/02/2021,"1,733.85",Neighbourhood Services,L3030,Energy Costs,
BRITISH GAS BUSINESS,2049990,12/02/2021,15.67,Neighbourhood Services,L3190,Energy Costs,
BRITISH GAS BUSINESS,2049990,12/02/2021,-372.57,Neighbourhood Services,L3190,Energy Costs,
BRITISH GAS BUSINESS,2049990,12/02/2021,360.08,Neighbourhood Services,L3190,Energy Costs,
BRITISH GAS BUSINESS,2049990,12/02/2021,109.13,Neighbourhood Services,L3190,Energy Costs,
BRITISH GAS BUSINESS,2049990,12/02/2021,104.25,Neighbourhood Services,L3402,Energy Costs,
BRITISH GAS BUSINESS,2049990,12/02/2021,65.04,Neighbourhood Services,L3402,Energy Costs,
BRITISH GAS BUSINESS,2049990,12/02/2021,8.15,Neighbourhood Services,L3402,Energy Costs,
BRITISH GAS BUSINESS,2049990,12/02/2021,373.06,Neighbourhood Services,L3402,Energy Costs,
BRITISH GAS BUSINESS,2049990,12/02/2021,15.14,Neighbourhood Services,L3403,Energy Costs,
BRITISH GAS BUSINESS,2049990,12/02/2021,6.02,Neighbourhood Services,L3403,Energy Costs,
BRITISH GAS BUSINESS,2049990,12/02/2021,"1,021.30",Neighbourhood Services,L3403,Energy Costs,
BRITISH GAS BUSINESS,2049990,12/02/2021,50.41,Regeneration & Place,L3720,Energy Costs,
BRITISH GAS BUSINESS,2049990,12/02/2021,230.48,Regeneration & Place,L3720,Energy Costs,
BRITISH GAS BUSINESS,2049990,12/02/2021,142.58,Neighbourhood Services,L4820,Energy Costs,
BRITISH GAS BUSINESS,2049990,12/02/2021,52.50,Neighbourhood Services,L4820,Energy Costs,
BRITISH GAS BUSINESS,2049990,12/02/2021,17.54,Neighbourhood Services,L4820,Energy Costs,
BRITISH GAS BUSINESS,2049990,12/02/2021,299.46,Neighbourhood Services,L4820,Energy Costs,
BRITISH GAS BUSINESS,2049990,12/02/2021,17.83,Neighbourhood Services,L4820,Energy Costs,
BRITISH GAS BUSINESS,2049990,12/02/2021,32.54,Neighbourhood Services,L4950,Energy Costs,
BRITISH GAS BUSINESS,2049990,12/02/2021,238.52,Neighbourhood Services,L4950,Energy Costs,
BRITISH GAS BUSINESS,2049990,12/02/2021,7.85,Neighbourhood Services,L4950,Energy Costs,
BRITISH GAS BUSINESS,2049990,12/02/2021,192.47,Neighbourhood Services,L4950,Energy Costs,
BRITISH GAS BUSINESS,2049990,12/02/2021,"1,233.47",Neighbourhood Services,L4950,Energy Costs,
BRITISH GAS BUSINESS,2049990,12/02/2021,377.43,Neighbourhood Services,L4950,Energy Costs,
BRITISH GAS BUSINESS,2049990,12/02/2021,120.26,Neighbourhood Services,L4950,Energy Costs,
BRITISH GAS BUSINESS,2049990,12/02/2021,-546.86,Neighbourhood Services,L4950,Energy Costs,
BRITISH GAS BUSINESS,2049990,12/02/2021,503.42,Neighbourhood Services,L4950,Energy Costs,
BRITISH GAS BUSINESS,2049990,12/02/2021,408.03,Neighbourhood Services,L4950,Energy Costs,
BRITISH GAS BUSINESS,2049990,12/02/2021,91.51,Neighbourhood Services,L4950,Energy Costs,
BRITISH GAS BUSINESS,2049990,12/02/2021,173.83,Neighbourhood Services,L4950,Energy Costs,
BRITISH GAS BUSINESS,2049990,12/02/2021,"5,119.36",Neighbourhood Services,L4950,Energy Costs,
BRITISH GAS BUSINESS,2049990,12/02/2021,199.20,Neighbourhood Services,L4950,Energy Costs,
BRITISH GAS BUSINESS,2049990,12/02/2021,725.26,Neighbourhood Services,L4971,Energy Costs,
BRITISH GAS BUSINESS,2049990,12/02/2021,331.07,Neighbourhood Services,L4971,Energy Costs,
BRITISH GAS BUSINESS,2049990,12/02/2021,8.36,Neighbourhood Services,L4971,Energy Costs,
BRITISH GAS BUSINESS,2049990,12/02/2021,129.50,Neighbourhood Services,L4971,Energy Costs,
BRITISH GAS BUSINESS,2049990,12/02/2021,7.85,Neighbourhood Services,L4971,Energy Costs,
BRITISH GAS BUSINESS,2049990,12/02/2021,45.89,Neighbourhood Services,L4971,Energy Costs,
BRITISH GAS BUSINESS,2049990,12/02/2021,14.07,Neighbourhood Services,L4971,Energy Costs,
BRITISH GAS BUSINESS,2049990,12/02/2021,43.42,Neighbourhood Services,L4971,Energy Costs,
BRITISH GAS BUSINESS,2049990,12/02/2021,85.30,Neighbourhood Services,L4971,Energy Costs,
BRITISH GAS BUSINESS,2049990,12/02/2021,33.01,Neighbourhood Services,L4971,Energy Costs,
BRITISH GAS BUSINESS,2049990,12/02/2021,146.18,Neighbourhood Services,L4971,Energy Costs,
BRITISH GAS BUSINESS,2049990,12/02/2021,127.87,Neighbourhood Services,L4971,Energy Costs,
BRITISH GAS BUSINESS,2049990,12/02/2021,29.10,Neighbourhood Services,L4971,Energy Costs,
BRITISH GAS BUSINESS,2049990,12/02/2021,8.30,Neighbourhood Services,L4971,Energy Costs,
BRITISH GAS BUSINESS,2049990,12/02/2021,668.40,Neighbourhood Services,L4971,Energy Costs,
BRITISH GAS BUSINESS,2049990,12/02/2021,91.26,Neighbourhood Services,L4971,Energy Costs,
BRITISH GAS BUSINESS,2049990,12/02/2021,309.15,Neighbourhood Services,L4971,Energy Costs,
BRITISH GAS BUSINESS,2049990,12/02/2021,11.65,Neighbourhood Services,L4971,Energy Costs,
BRITISH GAS BUSINESS,2049990,12/02/2021,-24.88,Neighbourhood Services,L4971,Energy Costs,
BRITISH GAS BUSINESS,2049990,12/02/2021,18.26,Neighbourhood Services,L4971,Energy Costs,
BRITISH GAS BUSINESS,2049990,12/02/2021,13.22,Neighbourhood Services,L4971,Energy Costs,
BRITISH GAS BUSINESS,2049990,12/02/2021,9.53,Neighbourhood Services,L4971,Energy Costs,
BRITISH GAS BUSINESS,2049990,12/02/2021,399.60,Neighbourhood Services,L4971,Energy Costs,
BRITISH GAS BUSINESS,2049990,12/02/2021,268.01,Neighbourhood Services,L4971,Energy Costs,
BRITISH GAS BUSINESS,2049990,12/02/2021,65.61,Neighbourhood Services,L4971,Energy Costs,
BRITISH GAS BUSINESS,2049990,12/02/2021,10.01,Neighbourhood Services,L4972,Energy Costs,
BRITISH GAS BUSINESS,2049990,12/02/2021,8.06,Neighbourhood Services,L4972,Energy Costs,
BRITISH GAS BUSINESS,2049990,12/02/2021,13.61,Neighbourhood Services,L4972,Energy Costs,
BRITISH GAS BUSINESS,2049990,12/02/2021,7.85,Neighbourhood Services,L4972,Energy Costs,
BRITISH GAS BUSINESS,2049990,12/02/2021,7.85,Neighbourhood Services,L4972,Energy Costs,
BRITISH GAS BUSINESS,2049990,12/02/2021,13.61,Neighbourhood Services,L4972,Energy Costs,
BRITISH GAS BUSINESS,2049990,12/02/2021,16.52,Neighbourhood Services,L4972,Energy Costs,
BRITISH GAS BUSINESS,2049990,12/02/2021,66.21,Neighbourhood Services,L4972,Energy Costs,
BRITISH GAS BUSINESS,2049990,12/02/2021,243.77,Neighbourhood Services,L4972,Energy Costs,
BRITISH GAS BUSINESS,2049990,12/02/2021,"1,400.97",Neighbourhood Services,L4972,Energy Costs,
BRITISH GAS BUSINESS,2049990,12/02/2021,363.81,Neighbourhood Services,L4972,Energy Costs,
BRITISH GAS BUSINESS,2049990,12/02/2021,22.12,Neighbourhood Services,L4972,Energy Costs,
BRITISH GAS BUSINESS,2049990,12/02/2021,193.00,Neighbourhood Services,L4972,Energy Costs,
BRITISH GAS BUSINESS,2049990,12/02/2021,34.80,Neighbourhood Services,L4972,Energy Costs,
BRITISH GAS BUSINESS,2049990,12/02/2021,7.85,Neighbourhood Services,L4972,Energy Costs,
BRITISH GAS BUSINESS,2049990,12/02/2021,30.53,Neighbourhood Services,L4972,Energy Costs,
BRITISH GAS BUSINESS,2049990,12/02/2021,644.08,Neighbourhood Services,L4972,Energy Costs,
BRITISH GAS BUSINESS,2049990,12/02/2021,7.85,Neighbourhood Services,L4972,Energy Costs,
BRITISH GAS BUSINESS,2049990,12/02/2021,345.38,Neighbourhood Services,L4972,Energy Costs,
BRITISH GAS BUSINESS,2049990,12/02/2021,13.09,Neighbourhood Services,L4972,Energy Costs,
BRITISH GAS BUSINESS,2049990,12/02/2021,25.14,Neighbourhood Services,L4972,Energy Costs,
BRITISH GAS BUSINESS,2049990,12/02/2021,8.30,Neighbourhood Services,L4972,Energy Costs,
BRITISH GAS BUSINESS,2049990,12/02/2021,27.87,Neighbourhood Services,L4972,Energy Costs,
BRITISH GAS BUSINESS,2049990,12/02/2021,7.60,Neighbourhood Services,L4972,Energy Costs,
BRITISH GAS BUSINESS,2049990,12/02/2021,0.25,Neighbourhood Services,L4972,Energy Costs,
BRITISH GAS BUSINESS,2049990,12/02/2021,7.85,Neighbourhood Services,L4973,Energy Costs,
BRITISH GAS BUSINESS,2049990,12/02/2021,22.81,Neighbourhood Services,L4973,Energy Costs,
BRITISH GAS BUSINESS,2049990,12/02/2021,25.86,Neighbourhood Services,L4973,Energy Costs,
BRITISH GAS BUSINESS,2049990,12/02/2021,50.55,Neighbourhood Services,L4973,Energy Costs,
BRITISH GAS BUSINESS,2049990,12/02/2021,19.46,Neighbourhood Services,L4973,Energy Costs,
BRITISH GAS BUSINESS,2049990,12/02/2021,539.57,Neighbourhood Services,L4973,Energy Costs,
BRITISH GAS BUSINESS,2049990,12/02/2021,184.43,Neighbourhood Services,L4973,Energy Costs,
BRITISH GAS BUSINESS,2049990,12/02/2021,7.60,Neighbourhood Services,L4973,Energy Costs,
BRITISH GAS BUSINESS,2049990,12/02/2021,0.25,Neighbourhood Services,L4973,Energy Costs,
BRITISH GAS BUSINESS,2049990,12/02/2021,25.87,Neighbourhood Services,L4973,Energy Costs,
BRITISH GAS BUSINESS,2049990,12/02/2021,13.70,Neighbourhood Services,L4973,Energy Costs,
BRITISH GAS BUSINESS,2049990,12/02/2021,38.09,Neighbourhood Services,L4973,Energy Costs,
BRITISH GAS BUSINESS,2049990,12/02/2021,46.95,Neighbourhood Services,L4973,Energy Costs,
BRITISH GAS BUSINESS,2049990,12/02/2021,7.85,Neighbourhood Services,L4973,Energy Costs,
BRITISH GAS BUSINESS,2049990,12/02/2021,7.85,Neighbourhood Services,L4973,Energy Costs,
BRITISH GAS BUSINESS,2049990,12/02/2021,55.89,Neighbourhood Services,L4973,Energy Costs,
BRITISH GAS BUSINESS,2049990,12/02/2021,28.02,Neighbourhood Services,L4973,Energy Costs,
BRITISH GAS BUSINESS,2049990,12/02/2021,49.89,Neighbourhood Services,L4973,Energy Costs,
BRITISH GAS BUSINESS,2049990,12/02/2021,11.40,Neighbourhood Services,L4974,Energy Costs,
BRITISH GAS BUSINESS,2049990,12/02/2021,8.06,Neighbourhood Services,L4974,Energy Costs,
BRITISH GAS BUSINESS,2049990,12/02/2021,150.81,Neighbourhood Services,L4974,Energy Costs,
BRITISH GAS BUSINESS,2049990,12/02/2021,358.47,Neighbourhood Services,L4974,Energy Costs,
BRITISH GAS BUSINESS,2049990,12/02/2021,34.24,Neighbourhood Services,L5210,Energy Costs,
BRITISH GAS BUSINESS,2049990,12/02/2021,779.51,Neighbourhood Services,L5330,Energy Costs,
BRITISH GAS BUSINESS,2049990,12/02/2021,480.73,Neighbourhood Services,L5410,Energy Costs,
BRITISH GAS BUSINESS,2049990,12/02/2021,22.02,Adults Care and Health and Strategic Commissioning,S5340,Energy Costs,
BRITISH GAS BUSINESS,2049990,12/02/2021,229.12,Adults Care and Health and Strategic Commissioning,S6136,Energy Costs,
BRITISH GAS BUSINESS,2049990,12/02/2021,353.60,Adults Care and Health and Strategic Commissioning,S6244,Energy Costs,
BRITISH GAS BUSINESS,2049990,12/02/2021,"2,985.46",Neighbourhood Services,T4020,Energy Costs,
BRITISH GAS BUSINESS,2052839,24/02/2021,240.32,Neighbourhood Services,T4020,Energy Costs,
BRITISH GAS BUSINESS,2052839,24/02/2021,241.16,Neighbourhood Services,T4020,Energy Costs,
BRITISH GAS BUSINESS,2052839,24/02/2021,270.36,Neighbourhood Services,T4020,Energy Costs,
BRITISH GAS BUSINESS,2049990,12/02/2021,816.23,Neighbourhood Services,V1920,Energy Costs,
BRITISH TELECOMMUNICATIONS PLC,2052592,23/02/2021,19.00,Law & Governance (Monitoring Officer),A1350,Communications & Computing,
BRITISH TELECOMMUNICATIONS PLC,2052592,23/02/2021,44.00,Law & Governance (Monitoring Officer),A1350,Communications & Computing,
BRITISH TELECOMMUNICATIONS PLC,2052592,23/02/2021,19.00,Law & Governance (Monitoring Officer),A1350,Communications & Computing,
BRITISH TELECOMMUNICATIONS PLC,2052592,23/02/2021,44.00,Law & Governance (Monitoring Officer),A1350,Communications & Computing,
BRITISH TELECOMMUNICATIONS PLC,2052592,23/02/2021,19.00,Law & Governance (Monitoring Officer),A1350,Communications & Computing,
BRITISH TELECOMMUNICATIONS PLC,2052592,23/02/2021,44.00,Law & Governance (Monitoring Officer),A1350,Communications & Computing,
BRITISH TELECOMMUNICATIONS PLC,2052592,23/02/2021,19.00,Law & Governance (Monitoring Officer),A1350,Communications & Computing,
BRITISH TELECOMMUNICATIONS PLC,2052592,23/02/2021,44.00,Law & Governance (Monitoring Officer),A1350,Communications & Computing,
BRITISH TELECOMMUNICATIONS PLC,2052592,23/02/2021,38.00,Law & Governance (Monitoring Officer),A7000,Communications & Computing,
BRITISH TELECOMMUNICATIONS PLC,2052592,23/02/2021,19.00,Law & Governance (Monitoring Officer),A7000,Communications & Computing,
BRITISH TELECOMMUNICATIONS PLC,2052592,23/02/2021,19.00,Law & Governance (Monitoring Officer),A7000,Communications & Computing,
BRITISH TELECOMMUNICATIONS PLC,2052592,23/02/2021,19.00,Law & Governance (Monitoring Officer),A7000,Communications & Computing,
BRITISH TELECOMMUNICATIONS PLC,2052592,23/02/2021,19.00,Law & Governance (Monitoring Officer),A7000,Communications & Computing,
BRITISH TELECOMMUNICATIONS PLC,2052592,23/02/2021,19.00,Law & Governance (Monitoring Officer),A7000,Communications & Computing,
BRITISH TELECOMMUNICATIONS PLC,2052592,23/02/2021,33.00,Law & Governance (Monitoring Officer),A7000,Communications & Computing,
BRITISH TELECOMMUNICATIONS PLC,2052592,23/02/2021,38.00,Law & Governance (Monitoring Officer),A7000,Communications & Computing,
BRITISH TELECOMMUNICATIONS PLC,2052592,23/02/2021,19.00,Law & Governance (Monitoring Officer),A7000,Communications & Computing,
BRITISH TELECOMMUNICATIONS PLC,2052592,23/02/2021,38.00,Law & Governance (Monitoring Officer),A7000,Communications & Computing,
BRITISH TELECOMMUNICATIONS PLC,2052592,23/02/2021,19.00,Law & Governance (Monitoring Officer),A7000,Communications & Computing,
BRITISH TELECOMMUNICATIONS PLC,2052592,23/02/2021,19.00,Law & Governance (Monitoring Officer),A7000,Communications & Computing,
BRITISH TELECOMMUNICATIONS PLC,2052592,23/02/2021,19.00,Law & Governance (Monitoring Officer),A7000,Communications & Computing,
BRITISH TELECOMMUNICATIONS PLC,2052592,23/02/2021,19.00,Law & Governance (Monitoring Officer),A7000,Communications & Computing,
BRITISH TELECOMMUNICATIONS PLC,2052592,23/02/2021,19.00,Law & Governance (Monitoring Officer),A7000,Communications & Computing,
BRITISH TELECOMMUNICATIONS PLC,2052592,23/02/2021,33.00,Law & Governance (Monitoring Officer),A7000,Communications & Computing,
BRITISH TELECOMMUNICATIONS PLC,2052592,23/02/2021,38.00,Law & Governance (Monitoring Officer),A7000,Communications & Computing,
BRITISH TELECOMMUNICATIONS PLC,2052592,23/02/2021,19.00,Law & Governance (Monitoring Officer),A7000,Communications & Computing,
BRITISH TELECOMMUNICATIONS PLC,2052592,23/02/2021,19.00,Regeneration & Place,D2140,Communications & Computing,
BRITISH TELECOMMUNICATIONS PLC,2052592,23/02/2021,19.00,Regeneration & Place,D2140,Communications & Computing,
BRITISH TELECOMMUNICATIONS PLC,2052592,23/02/2021,30.00,Regeneration & Place,D3310,Communications & Computing,
BRITISH TELECOMMUNICATIONS PLC,2052592,23/02/2021,30.00,Regeneration & Place,D3310,Communications & Computing,
BRITISH TELECOMMUNICATIONS PLC,2052592,23/02/2021,44.00,Regeneration & Place,D4040,Communications & Computing,
BRITISH TELECOMMUNICATIONS PLC,2052592,23/02/2021,44.00,Regeneration & Place,D4040,Communications & Computing,
BRITISH TELECOMMUNICATIONS PLC,2052592,23/02/2021,44.00,Regeneration & Place,D4040,Communications & Computing,
BRITISH TELECOMMUNICATIONS PLC,2052592,23/02/2021,44.00,Regeneration & Place,D4040,Communications & Computing,
BRITISH TELECOMMUNICATIONS PLC,2052592,23/02/2021,44.00,"Children, Families & Education",E1005,Communications & Computing,
BRITISH TELECOMMUNICATIONS PLC,2052592,23/02/2021,44.00,"Children, Families & Education",E1005,Communications & Computing,
BRITISH TELECOMMUNICATIONS PLC,2052592,23/02/2021,30.00,"Children, Families & Education",E1410,Communications & Computing,
BRITISH TELECOMMUNICATIONS PLC,2052592,23/02/2021,30.00,"Children, Families & Education",E1410,Communications & Computing,
BRITISH TELECOMMUNICATIONS PLC,2052592,23/02/2021,44.00,"Children, Families & Education",E1420,Communications & Computing,
BRITISH TELECOMMUNICATIONS PLC,2052592,23/02/2021,44.00,"Children, Families & Education",E1420,Communications & Computing,
BRITISH TELECOMMUNICATIONS PLC,2052592,23/02/2021,30.00,"Children, Families & Education",E1440,Communications & Computing,
BRITISH TELECOMMUNICATIONS PLC,2052592,23/02/2021,30.00,"Children, Families & Education",E1440,Communications & Computing,
BRITISH TELECOMMUNICATIONS PLC,2052592,23/02/2021,44.00,"Children, Families & Education",E1970,Communications & Computing,
BRITISH TELECOMMUNICATIONS PLC,2052592,23/02/2021,44.00,"Children, Families & Education",E1970,Communications & Computing,
BRITISH TELECOMMUNICATIONS PLC,2052592,23/02/2021,44.00,"Children, Families & Education",E2020,Communications & Computing,
BRITISH TELECOMMUNICATIONS PLC,2052592,23/02/2021,44.00,"Children, Families & Education",E2020,Communications & Computing,
BRITISH TELECOMMUNICATIONS PLC,2052592,23/02/2021,44.00,"Children, Families & Education",E2040,Communications & Computing,
BRITISH TELECOMMUNICATIONS PLC,2052592,23/02/2021,44.00,"Children, Families & Education",E2040,Communications & Computing,
BRITISH TELECOMMUNICATIONS PLC,2052592,23/02/2021,44.00,"Children, Families & Education",E2090,Communications & Computing,
BRITISH TELECOMMUNICATIONS PLC,2052592,23/02/2021,44.00,"Children, Families & Education",E2090,Communications & Computing,
BRITISH TELECOMMUNICATIONS PLC,2052592,23/02/2021,44.00,"Children, Families & Education",E2260,Communications & Computing,
BRITISH TELECOMMUNICATIONS PLC,2052592,23/02/2021,44.00,"Children, Families & Education",E2260,Communications & Computing,
BRITISH TELECOMMUNICATIONS PLC,2052592,23/02/2021,30.00,"Children, Families & Education",E2420,Communications & Computing,
BRITISH TELECOMMUNICATIONS PLC,2052592,23/02/2021,30.00,"Children, Families & Education",E2420,Communications & Computing,
BRITISH TELECOMMUNICATIONS PLC,2052592,23/02/2021,44.00,"Children, Families & Education",E2450,Communications & Computing,
BRITISH TELECOMMUNICATIONS PLC,2052592,23/02/2021,44.00,"Children, Families & Education",E2450,Communications & Computing,
BRITISH TELECOMMUNICATIONS PLC,2052592,23/02/2021,44.00,"Children, Families & Education",E2540,Communications & Computing,
BRITISH TELECOMMUNICATIONS PLC,2052592,23/02/2021,44.00,"Children, Families & Education",E2540,Communications & Computing,
BRITISH TELECOMMUNICATIONS PLC,2052592,23/02/2021,44.00,"Children, Families & Education",E2560,Communications & Computing,
BRITISH TELECOMMUNICATIONS PLC,2052592,23/02/2021,44.00,"Children, Families & Education",E2560,Communications & Computing,
BRITISH TELECOMMUNICATIONS PLC,2052592,23/02/2021,44.00,"Children, Families & Education",E2910,Communications & Computing,
BRITISH TELECOMMUNICATIONS PLC,2052592,23/02/2021,44.00,"Children, Families & Education",E2910,Communications & Computing,
BRITISH TELECOMMUNICATIONS PLC,2052592,23/02/2021,44.00,"Children, Families & Education",E2980,Communications & Computing,
BRITISH TELECOMMUNICATIONS PLC,2052592,23/02/2021,44.00,"Children, Families & Education",E2980,Communications & Computing,
BRITISH TELECOMMUNICATIONS PLC,2052592,23/02/2021,44.00,"Children, Families & Education",E3220,Communications & Computing,
BRITISH TELECOMMUNICATIONS PLC,2052592,23/02/2021,44.00,"Children, Families & Education",E3220,Communications & Computing,
BRITISH TELECOMMUNICATIONS PLC,2052592,23/02/2021,44.00,"Children, Families & Education",E3560,Communications & Computing,
BRITISH TELECOMMUNICATIONS PLC,2052592,23/02/2021,44.00,"Children, Families & Education",E3560,Communications & Computing,
BRITISH TELECOMMUNICATIONS PLC,2052592,23/02/2021,44.00,"Children, Families & Education",E5530,Communications & Computing,
BRITISH TELECOMMUNICATIONS PLC,2052592,23/02/2021,44.00,"Children, Families & Education",E5530,Communications & Computing,
BRITISH TELECOMMUNICATIONS PLC,2052592,23/02/2021,44.00,"Children, Families & Education",E5620,Communications & Computing,
BRITISH TELECOMMUNICATIONS PLC,2052592,23/02/2021,44.00,"Children, Families & Education",E5620,Communications & Computing,
BRITISH TELECOMMUNICATIONS PLC,2052592,23/02/2021,44.00,"Children, Families & Education",E6150,Communications & Computing,
BRITISH TELECOMMUNICATIONS PLC,2052592,23/02/2021,44.00,"Children, Families & Education",E6150,Communications & Computing,
BRITISH TELECOMMUNICATIONS PLC,2052592,23/02/2021,30.00,"Children, Families & Education",E7483,Communications & Computing,
BRITISH TELECOMMUNICATIONS PLC,2052592,23/02/2021,30.00,"Children, Families & Education",E7483,Communications & Computing,
BRITISH TELECOMMUNICATIONS PLC,2052592,23/02/2021,19.00,"Children, Families & Education",E8610,Communications & Computing,
BRITISH TELECOMMUNICATIONS PLC,2052592,23/02/2021,19.00,"Children, Families & Education",E8610,Communications & Computing,
BRITISH TELECOMMUNICATIONS PLC,2052592,23/02/2021,19.00,"Children, Families & Education",E8660,Communications & Computing,
BRITISH TELECOMMUNICATIONS PLC,2052592,23/02/2021,19.00,"Children, Families & Education",E8660,Communications & Computing,
BRITISH TELECOMMUNICATIONS PLC,2052592,23/02/2021,33.00,Neighbourhood Services,E9542,Communications & Computing,
BRITISH TELECOMMUNICATIONS PLC,2052592,23/02/2021,33.00,Neighbourhood Services,E9542,Communications & Computing,
BRITISH TELECOMMUNICATIONS PLC,2052592,23/02/2021,19.00,Resources,F1100,Communications & Computing,
BRITISH TELECOMMUNICATIONS PLC,2052592,23/02/2021,19.00,Resources,F1100,Communications & Computing,
BRITISH TELECOMMUNICATIONS PLC,2052592,23/02/2021,33.00,Resources,F4406,Communications & Computing,
BRITISH TELECOMMUNICATIONS PLC,2052592,23/02/2021,33.00,Resources,F4406,Communications & Computing,
BRITISH TELECOMMUNICATIONS PLC,2052592,23/02/2021,19.00,Resources,F4410,Communications & Computing,
BRITISH TELECOMMUNICATIONS PLC,2052592,23/02/2021,19.00,Resources,F4410,Communications & Computing,
BRITISH TELECOMMUNICATIONS PLC,2052592,23/02/2021,33.00,Resources,F4410,Hired or Contracted services,
BRITISH TELECOMMUNICATIONS PLC,2052592,23/02/2021,19.00,Resources,F4410,Hired or Contracted services,
BRITISH TELECOMMUNICATIONS PLC,2052592,23/02/2021,44.00,Resources,F4410,Hired or Contracted services,
BRITISH TELECOMMUNICATIONS PLC,2052592,23/02/2021,44.00,Resources,F4410,Hired or Contracted services,
BRITISH TELECOMMUNICATIONS PLC,2052592,23/02/2021,44.00,Resources,F4410,Hired or Contracted services,
BRITISH TELECOMMUNICATIONS PLC,2052592,23/02/2021,44.00,Resources,F4410,Hired or Contracted services,
BRITISH TELECOMMUNICATIONS PLC,2052592,23/02/2021,44.00,Resources,F4410,Hired or Contracted services,
BRITISH TELECOMMUNICATIONS PLC,2052592,23/02/2021,44.00,Resources,F4410,Hired or Contracted services,
BRITISH TELECOMMUNICATIONS PLC,2052592,23/02/2021,33.00,Resources,F4410,Hired or Contracted services,
BRITISH TELECOMMUNICATIONS PLC,2052592,23/02/2021,33.00,Resources,F4410,Hired or Contracted services,
BRITISH TELECOMMUNICATIONS PLC,2052592,23/02/2021,19.00,Resources,F4410,Hired or Contracted services,
BRITISH TELECOMMUNICATIONS PLC,2052592,23/02/2021,44.00,Resources,F4410,Hired or Contracted services,
BRITISH TELECOMMUNICATIONS PLC,2052592,23/02/2021,44.00,Resources,F4410,Hired or Contracted services,
BRITISH TELECOMMUNICATIONS PLC,2052592,23/02/2021,44.00,Resources,F4410,Hired or Contracted services,
BRITISH TELECOMMUNICATIONS PLC,2052592,23/02/2021,44.00,Resources,F4410,Hired or Contracted services,
BRITISH TELECOMMUNICATIONS PLC,2052592,23/02/2021,44.00,Resources,F4410,Hired or Contracted services,
BRITISH TELECOMMUNICATIONS PLC,2052592,23/02/2021,44.00,Resources,F4410,Hired or Contracted services,
BRITISH TELECOMMUNICATIONS PLC,2052592,23/02/2021,33.00,Resources,F4410,Hired or Contracted services,
BRITISH TELECOMMUNICATIONS PLC,2052592,23/02/2021,145.93,Resources,F4412,Communications & Computing,
BRITISH TELECOMMUNICATIONS PLC,2052592,23/02/2021,19.00,Resources,F4412,"Equipment, Furniture & Materials",
BRITISH TELECOMMUNICATIONS PLC,2052592,23/02/2021,19.00,Resources,F4412,"Equipment, Furniture & Materials",
BRITISH TELECOMMUNICATIONS PLC,2052592,23/02/2021,19.00,Resources,F5110,Communications & Computing,
BRITISH TELECOMMUNICATIONS PLC,2052592,23/02/2021,19.00,Resources,F5110,Communications & Computing,
BRITISH TELECOMMUNICATIONS PLC,2052592,23/02/2021,-22.01,Resources,F6000,Communications & Computing,
BRITISH TELECOMMUNICATIONS PLC,2052592,23/02/2021,19.00,Resources,F6000,Communications & Computing,
BRITISH TELECOMMUNICATIONS PLC,2052592,23/02/2021,19.00,Resources,F6000,Communications & Computing,
BRITISH TELECOMMUNICATIONS PLC,2052592,23/02/2021,19.00,Resources,F6000,Communications & Computing,
BRITISH TELECOMMUNICATIONS PLC,2052592,23/02/2021,19.00,Resources,F6000,Communications & Computing,
BRITISH TELECOMMUNICATIONS PLC,2052592,23/02/2021,19.00,Resources,F6000,Communications & Computing,
BRITISH TELECOMMUNICATIONS PLC,2052592,23/02/2021,19.00,Resources,F6000,Communications & Computing,
BRITISH TELECOMMUNICATIONS PLC,2052592,23/02/2021,19.00,Resources,F6000,Communications & Computing,
BRITISH TELECOMMUNICATIONS PLC,2052592,23/02/2021,19.00,Resources,F6000,Communications & Computing,
BRITISH TELECOMMUNICATIONS PLC,2052592,23/02/2021,19.00,Resources,F6000,Communications & Computing,
BRITISH TELECOMMUNICATIONS PLC,2052592,23/02/2021,19.00,Resources,F6000,Communications & Computing,
BRITISH TELECOMMUNICATIONS PLC,2052592,23/02/2021,19.00,Resources,F6000,Communications & Computing,
BRITISH TELECOMMUNICATIONS PLC,2052592,23/02/2021,19.00,Resources,F6000,Communications & Computing,
BRITISH TELECOMMUNICATIONS PLC,2052592,23/02/2021,19.00,Resources,F6000,Communications & Computing,
BRITISH TELECOMMUNICATIONS PLC,2052592,23/02/2021,19.00,Resources,F6000,Communications & Computing,
BRITISH TELECOMMUNICATIONS PLC,2052592,23/02/2021,19.00,Resources,F6000,Communications & Computing,
BRITISH TELECOMMUNICATIONS PLC,2052592,23/02/2021,19.00,Resources,F6000,Communications & Computing,
BRITISH TELECOMMUNICATIONS PLC,2052592,23/02/2021,196.66,Covid,H4133,"Equipment, Furniture & Materials",
BRITISH TELECOMMUNICATIONS PLC,2052592,23/02/2021,131.03,Regeneration & Place,H7420,"Repairs, alterations and maintenance",
BRITISH TELECOMMUNICATIONS PLC,2052592,23/02/2021,33.00,Regeneration & Place,H7420,"Repairs, alterations and maintenance",
BRITISH TELECOMMUNICATIONS PLC,2052592,23/02/2021,30.00,Neighbourhood Services,L2430,Communications & Computing,
BRITISH TELECOMMUNICATIONS PLC,2052592,23/02/2021,30.00,Neighbourhood Services,L2430,Communications & Computing,
BRITISH TELECOMMUNICATIONS PLC,2052592,23/02/2021,30.00,Neighbourhood Services,L2430,Communications & Computing,
BRITISH TELECOMMUNICATIONS PLC,2052592,23/02/2021,30.00,Neighbourhood Services,L2430,Communications & Computing,
BRITISH TELECOMMUNICATIONS PLC,2052592,23/02/2021,19.00,Neighbourhood Services,L3010,Communications & Computing,
BRITISH TELECOMMUNICATIONS PLC,2052592,23/02/2021,19.00,Neighbourhood Services,L3010,Communications & Computing,
BRITISH TELECOMMUNICATIONS PLC,2052592,23/02/2021,44.00,Neighbourhood Services,L3320,Communications & Computing,
BRITISH TELECOMMUNICATIONS PLC,2052592,23/02/2021,44.00,Neighbourhood Services,L3320,Communications & Computing,
BRITISH TELECOMMUNICATIONS PLC,2052592,23/02/2021,30.00,Neighbourhood Services,L3950,Communications & Computing,
BRITISH TELECOMMUNICATIONS PLC,2052592,23/02/2021,30.00,Neighbourhood Services,L3950,Communications & Computing,
BRITISH TELECOMMUNICATIONS PLC,2052592,23/02/2021,44.00,Neighbourhood Services,L4375,Communications & Computing,
BRITISH TELECOMMUNICATIONS PLC,2052592,23/02/2021,44.00,Neighbourhood Services,L4375,Communications & Computing,
BRITISH TELECOMMUNICATIONS PLC,2052592,23/02/2021,19.00,Neighbourhood Services,L4820,Communications & Computing,
BRITISH TELECOMMUNICATIONS PLC,2052592,23/02/2021,19.00,Neighbourhood Services,L4820,Communications & Computing,
BRITISH TELECOMMUNICATIONS PLC,2052592,23/02/2021,19.00,Neighbourhood Services,L4954,Communications & Computing,
BRITISH TELECOMMUNICATIONS PLC,2052592,23/02/2021,19.00,Neighbourhood Services,L4954,Communications & Computing,
BRITISH TELECOMMUNICATIONS PLC,2052592,23/02/2021,30.00,Neighbourhood Services,L4971,Communications & Computing,
BRITISH TELECOMMUNICATIONS PLC,2052592,23/02/2021,30.00,Neighbourhood Services,L4971,Communications & Computing,
BRITISH TELECOMMUNICATIONS PLC,2052592,23/02/2021,37.88,Neighbourhood Services,L4972,Communications & Computing,
BRITISH TELECOMMUNICATIONS PLC,2052592,23/02/2021,19.00,Neighbourhood Services,L4972,Communications & Computing,
BRITISH TELECOMMUNICATIONS PLC,2052592,23/02/2021,19.00,Neighbourhood Services,L4972,Communications & Computing,
BRITISH TELECOMMUNICATIONS PLC,2052592,23/02/2021,30.00,Neighbourhood Services,L4972,Communications & Computing,
BRITISH TELECOMMUNICATIONS PLC,2052592,23/02/2021,19.00,Neighbourhood Services,L4972,Communications & Computing,
BRITISH TELECOMMUNICATIONS PLC,2052592,23/02/2021,19.00,Neighbourhood Services,L4972,Communications & Computing,
BRITISH TELECOMMUNICATIONS PLC,2052592,23/02/2021,19.00,Neighbourhood Services,L4972,Communications & Computing,
BRITISH TELECOMMUNICATIONS PLC,2052592,23/02/2021,30.00,Neighbourhood Services,L4972,Communications & Computing,
BRITISH TELECOMMUNICATIONS PLC,2052592,23/02/2021,19.00,Neighbourhood Services,L4972,Communications & Computing,
BRITISH TELECOMMUNICATIONS PLC,2052592,23/02/2021,19.00,Neighbourhood Services,L4973,Communications & Computing,
BRITISH TELECOMMUNICATIONS PLC,2052592,23/02/2021,30.00,Neighbourhood Services,L4973,Communications & Computing,
BRITISH TELECOMMUNICATIONS PLC,2052592,23/02/2021,19.00,Neighbourhood Services,L4973,Communications & Computing,
BRITISH TELECOMMUNICATIONS PLC,2052592,23/02/2021,19.00,Neighbourhood Services,L4973,Communications & Computing,
BRITISH TELECOMMUNICATIONS PLC,2052592,23/02/2021,33.00,Neighbourhood Services,L4973,Communications & Computing,
BRITISH TELECOMMUNICATIONS PLC,2052592,23/02/2021,33.00,Neighbourhood Services,L4973,Communications & Computing,
BRITISH TELECOMMUNICATIONS PLC,2052592,23/02/2021,19.00,Neighbourhood Services,L4973,Communications & Computing,
BRITISH TELECOMMUNICATIONS PLC,2052592,23/02/2021,30.00,Neighbourhood Services,L4973,Communications & Computing,
BRITISH TELECOMMUNICATIONS PLC,2052592,23/02/2021,19.00,Neighbourhood Services,L4973,Communications & Computing,
BRITISH TELECOMMUNICATIONS PLC,2052592,23/02/2021,19.00,Neighbourhood Services,L4973,Communications & Computing,
BRITISH TELECOMMUNICATIONS PLC,2052592,23/02/2021,33.00,Neighbourhood Services,L4973,Communications & Computing,
BRITISH TELECOMMUNICATIONS PLC,2052592,23/02/2021,33.00,Neighbourhood Services,L4973,Communications & Computing,
BRITISH TELECOMMUNICATIONS PLC,2052592,23/02/2021,19.00,Neighbourhood Services,L4975,Communications & Computing,
BRITISH TELECOMMUNICATIONS PLC,2052592,23/02/2021,19.00,Neighbourhood Services,L4975,Communications & Computing,
BRITISH TELECOMMUNICATIONS PLC,2052592,23/02/2021,19.00,Neighbourhood Services,L5300,Communications & Computing,
BRITISH TELECOMMUNICATIONS PLC,2052592,23/02/2021,19.00,Neighbourhood Services,L5300,Communications & Computing,
BRITISH TELECOMMUNICATIONS PLC,2052592,23/02/2021,19.00,Neighbourhood Services,L5360,Communications & Computing,
BRITISH TELECOMMUNICATIONS PLC,2052592,23/02/2021,19.00,Neighbourhood Services,L5360,Communications & Computing,
BRITISH TELECOMMUNICATIONS PLC,2052592,23/02/2021,19.00,Adults Care and Health and Strategic Commissioning,S6136,Communications & Computing,
BRITISH TELECOMMUNICATIONS PLC,2052592,23/02/2021,44.00,Adults Care and Health and Strategic Commissioning,S6136,Communications & Computing,
BRITISH TELECOMMUNICATIONS PLC,2052592,23/02/2021,44.00,Adults Care and Health and Strategic Commissioning,S6136,Communications & Computing,
BRITISH TELECOMMUNICATIONS PLC,2052592,23/02/2021,30.00,Adults Care and Health and Strategic Commissioning,S6136,Communications & Computing,
BRITISH TELECOMMUNICATIONS PLC,2052592,23/02/2021,19.00,Adults Care and Health and Strategic Commissioning,S6136,Communications & Computing,
BRITISH TELECOMMUNICATIONS PLC,2052592,23/02/2021,44.00,Adults Care and Health and Strategic Commissioning,S6136,Communications & Computing,
BRITISH TELECOMMUNICATIONS PLC,2052592,23/02/2021,44.00,Adults Care and Health and Strategic Commissioning,S6136,Communications & Computing,
BRITISH TELECOMMUNICATIONS PLC,2052592,23/02/2021,30.00,Adults Care and Health and Strategic Commissioning,S6136,Communications & Computing,
BRITISH TELECOMMUNICATIONS PLC,2052592,23/02/2021,19.00,Adults Care and Health and Strategic Commissioning,S6244,Communications & Computing,
BRITISH TELECOMMUNICATIONS PLC,2052592,23/02/2021,30.00,Adults Care and Health and Strategic Commissioning,S6244,Communications & Computing,
BRITISH TELECOMMUNICATIONS PLC,2052592,23/02/2021,19.00,Adults Care and Health and Strategic Commissioning,S6244,Communications & Computing,
BRITISH TELECOMMUNICATIONS PLC,2052592,23/02/2021,30.00,Adults Care and Health and Strategic Commissioning,S6244,Communications & Computing,
BRITISH TELECOMMUNICATIONS PLC,2052592,23/02/2021,30.00,Neighbourhood Services,V1980,Communications & Computing,
BRITISH TELECOMMUNICATIONS PLC,2052592,23/02/2021,30.00,Neighbourhood Services,V1980,Communications & Computing,
BRITISH TELECOMMUNICATIONS PLC,2052592,23/02/2021,-7.22,Neighbourhood Services,V2500,Communications & Computing,
BRITISH TELECOMMUNICATIONS PLC,2052592,23/02/2021,33.00,Neighbourhood Services,V2500,Communications & Computing,
BRITISH TELECOMMUNICATIONS PLC,2052592,23/02/2021,34.00,Neighbourhood Services,V2500,Communications & Computing,
BRITISH TELECOMMUNICATIONS PLC,2052592,23/02/2021,34.00,Neighbourhood Services,V2500,Communications & Computing,
BRITISH TELECOMMUNICATIONS PLC,2052592,23/02/2021,34.00,Neighbourhood Services,V2500,Communications & Computing,
BRITISH TELECOMMUNICATIONS PLC,2052592,23/02/2021,34.00,Neighbourhood Services,V2500,Communications & Computing,
BRITISH TELECOMMUNICATIONS PLC,2052592,23/02/2021,34.00,Neighbourhood Services,V2500,Communications & Computing,
BRITISH TELECOMMUNICATIONS PLC,2052592,23/02/2021,34.00,Neighbourhood Services,V2500,Communications & Computing,
BRITISH TELECOMMUNICATIONS PLC,2052592,23/02/2021,34.00,Neighbourhood Services,V2500,Communications & Computing,
BRITISH TELECOMMUNICATIONS PLC,2052592,23/02/2021,34.00,Neighbourhood Services,V2500,Communications & Computing,
BRITISH TELECOMMUNICATIONS PLC,2052592,23/02/2021,34.00,Neighbourhood Services,V2500,Communications & Computing,
BRITISH TELECOMMUNICATIONS PLC,2052592,23/02/2021,34.00,Neighbourhood Services,V2500,Communications & Computing,
BRITISH TELECOMMUNICATIONS PLC,2052592,23/02/2021,34.00,Neighbourhood Services,V2500,Communications & Computing,
BRITISH TELECOMMUNICATIONS PLC,2052592,23/02/2021,34.00,Neighbourhood Services,V2500,Communications & Computing,
BRITISH TELECOMMUNICATIONS PLC,2052592,23/02/2021,33.00,Neighbourhood Services,V2500,Communications & Computing,
BRITISH TELECOMMUNICATIONS PLC,2052592,23/02/2021,34.00,Neighbourhood Services,V2500,Communications & Computing,
BRITISH TELECOMMUNICATIONS PLC,2052592,23/02/2021,34.00,Neighbourhood Services,V2500,Communications & Computing,
BRITISH TELECOMMUNICATIONS PLC,2052592,23/02/2021,33.00,Neighbourhood Services,V2500,Communications & Computing,
BRITISH TELECOMMUNICATIONS PLC,2052592,23/02/2021,34.00,Neighbourhood Services,V2500,Communications & Computing,
BRITISH TELECOMMUNICATIONS PLC,2052592,23/02/2021,33.00,Neighbourhood Services,V2500,Communications & Computing,
BRITISH TELECOMMUNICATIONS PLC,2052592,23/02/2021,34.00,Neighbourhood Services,V2500,Communications & Computing,
BRITISH TELECOMMUNICATIONS PLC,2052592,23/02/2021,33.00,Neighbourhood Services,V2500,Communications & Computing,
BRITISH TELECOMMUNICATIONS PLC,2052592,23/02/2021,33.00,Neighbourhood Services,V2500,Communications & Computing,
BRITISH TELECOMMUNICATIONS PLC,2052592,23/02/2021,34.00,Neighbourhood Services,V2500,Communications & Computing,
BRITISH TELECOMMUNICATIONS PLC,2052592,23/02/2021,34.00,Neighbourhood Services,V2500,Communications & Computing,
BRITISH TELECOMMUNICATIONS PLC,2052592,23/02/2021,34.00,Neighbourhood Services,V2500,Communications & Computing,
BRITISH TELECOMMUNICATIONS PLC,2052592,23/02/2021,34.00,Neighbourhood Services,V2500,Communications & Computing,
BRITISH TELECOMMUNICATIONS PLC,2052592,23/02/2021,34.00,Neighbourhood Services,V2500,Communications & Computing,
BRITISH TELECOMMUNICATIONS PLC,2052592,23/02/2021,20.00,Neighbourhood Services,V2500,Communications & Computing,
BRITISH TELECOMMUNICATIONS PLC,2052592,23/02/2021,34.00,Neighbourhood Services,V2500,Communications & Computing,
BRITISH TELECOMMUNICATIONS PLC,2052592,23/02/2021,34.00,Neighbourhood Services,V2500,Communications & Computing,
BRITISH TELECOMMUNICATIONS PLC,2052592,23/02/2021,34.00,Neighbourhood Services,V2500,Communications & Computing,
BRITISH TELECOMMUNICATIONS PLC,2052592,23/02/2021,20.00,Neighbourhood Services,V2500,Communications & Computing,
BRITISH TELECOMMUNICATIONS PLC,2052592,23/02/2021,34.00,Neighbourhood Services,V2500,Communications & Computing,
BRITISH TELECOMMUNICATIONS PLC,2052592,23/02/2021,34.00,Neighbourhood Services,V2500,Communications & Computing,
BRITISH TELECOMMUNICATIONS PLC,2052592,23/02/2021,34.00,Neighbourhood Services,V2500,Communications & Computing,
BRITISH TELECOMMUNICATIONS PLC,2052592,23/02/2021,34.00,Neighbourhood Services,V2500,Communications & Computing,
BRITISH TELECOMMUNICATIONS PLC,2052592,23/02/2021,20.00,Neighbourhood Services,V2500,Communications & Computing,
BRITISH TELECOMMUNICATIONS PLC,2052592,23/02/2021,34.00,Neighbourhood Services,V2500,Communications & Computing,
BRITISH TELECOMMUNICATIONS PLC,2052592,23/02/2021,34.00,Neighbourhood Services,V2500,Communications & Computing,
BRITISH TELECOMMUNICATIONS PLC,2052592,23/02/2021,34.00,Neighbourhood Services,V2500,Communications & Computing,
BRITISH TELECOMMUNICATIONS PLC,2052592,23/02/2021,20.00,Neighbourhood Services,V2500,Communications & Computing,
BRITISH TELECOMMUNICATIONS PLC,2052592,23/02/2021,34.00,Neighbourhood Services,V2500,Communications & Computing,
BRITISH TELECOMMUNICATIONS PLC,2052592,23/02/2021,34.00,Neighbourhood Services,V2500,Communications & Computing,
BRITISH TELECOMMUNICATIONS PLC,2052592,23/02/2021,-36.00,Neighbourhood Services,V2500,Communications & Computing,
BRITISH TELECOMMUNICATIONS PLC,2052592,23/02/2021,33.00,Neighbourhood Services,V2500,Communications & Computing,
BRITISH TELECOMMUNICATIONS PLC,2052592,23/02/2021,34.00,Neighbourhood Services,V2500,Communications & Computing,
BRITISH TELECOMMUNICATIONS PLC,2052592,23/02/2021,34.00,Neighbourhood Services,V2500,Communications & Computing,
BRITISH TELECOMMUNICATIONS PLC,2052592,23/02/2021,34.00,Neighbourhood Services,V2500,Communications & Computing,
BRITISH TELECOMMUNICATIONS PLC,2052592,23/02/2021,34.00,Neighbourhood Services,V2500,Communications & Computing,
BRITISH TELECOMMUNICATIONS PLC,2052592,23/02/2021,34.00,Neighbourhood Services,V2500,Communications & Computing,
BRITISH TELECOMMUNICATIONS PLC,2052592,23/02/2021,34.00,Neighbourhood Services,V2500,Communications & Computing,
BRITISH TELECOMMUNICATIONS PLC,2052592,23/02/2021,34.00,Neighbourhood Services,V2500,Communications & Computing,
BRITISH TELECOMMUNICATIONS PLC,2052592,23/02/2021,34.00,Neighbourhood Services,V2500,Communications & Computing,
BRITISH TELECOMMUNICATIONS PLC,2052592,23/02/2021,34.00,Neighbourhood Services,V2500,Communications & Computing,
BRITISH TELECOMMUNICATIONS PLC,2052592,23/02/2021,34.00,Neighbourhood Services,V2500,Communications & Computing,
BRITISH TELECOMMUNICATIONS PLC,2052592,23/02/2021,34.00,Neighbourhood Services,V2500,Communications & Computing,
BRITISH TELECOMMUNICATIONS PLC,2052592,23/02/2021,34.00,Neighbourhood Services,V2500,Communications & Computing,
BRITISH TELECOMMUNICATIONS PLC,2052592,23/02/2021,33.00,Neighbourhood Services,V2500,Communications & Computing,
BRITISH TELECOMMUNICATIONS PLC,2052592,23/02/2021,34.00,Neighbourhood Services,V2500,Communications & Computing,
BRITISH TELECOMMUNICATIONS PLC,2052592,23/02/2021,34.00,Neighbourhood Services,V2500,Communications & Computing,
BRITISH TELECOMMUNICATIONS PLC,2052592,23/02/2021,33.00,Neighbourhood Services,V2500,Communications & Computing,
BRITISH TELECOMMUNICATIONS PLC,2052592,23/02/2021,34.00,Neighbourhood Services,V2500,Communications & Computing,
BRITISH TELECOMMUNICATIONS PLC,2052592,23/02/2021,33.00,Neighbourhood Services,V2500,Communications & Computing,
BRITISH TELECOMMUNICATIONS PLC,2052592,23/02/2021,34.00,Neighbourhood Services,V2500,Communications & Computing,
BRITISH TELECOMMUNICATIONS PLC,2052592,23/02/2021,33.00,Neighbourhood Services,V2500,Communications & Computing,
BRITISH TELECOMMUNICATIONS PLC,2052592,23/02/2021,33.00,Neighbourhood Services,V2500,Communications & Computing,
BRITISH TELECOMMUNICATIONS PLC,2052592,23/02/2021,34.00,Neighbourhood Services,V2500,Communications & Computing,
BRITISH TELECOMMUNICATIONS PLC,2052592,23/02/2021,34.00,Neighbourhood Services,V2500,Communications & Computing,
BRITISH TELECOMMUNICATIONS PLC,2052592,23/02/2021,34.00,Neighbourhood Services,V2500,Communications & Computing,
BRITISH TELECOMMUNICATIONS PLC,2052592,23/02/2021,34.00,Neighbourhood Services,V2500,Communications & Computing,
BRITISH TELECOMMUNICATIONS PLC,2052592,23/02/2021,34.00,Neighbourhood Services,V2500,Communications & Computing,
BRITISH TELECOMMUNICATIONS PLC,2052592,23/02/2021,20.00,Neighbourhood Services,V2500,Communications & Computing,
BRITISH TELECOMMUNICATIONS PLC,2052592,23/02/2021,34.00,Neighbourhood Services,V2500,Communications & Computing,
BRITISH TELECOMMUNICATIONS PLC,2052592,23/02/2021,34.00,Neighbourhood Services,V2500,Communications & Computing,
BRITISH TELECOMMUNICATIONS PLC,2052592,23/02/2021,34.00,Neighbourhood Services,V2500,Communications & Computing,
BRITISH TELECOMMUNICATIONS PLC,2052592,23/02/2021,20.00,Neighbourhood Services,V2500,Communications & Computing,
BRITISH TELECOMMUNICATIONS PLC,2052592,23/02/2021,34.00,Neighbourhood Services,V2500,Communications & Computing,
BRITISH TELECOMMUNICATIONS PLC,2052592,23/02/2021,34.00,Neighbourhood Services,V2500,Communications & Computing,
BRITISH TELECOMMUNICATIONS PLC,2052592,23/02/2021,34.00,Neighbourhood Services,V2500,Communications & Computing,
BRITISH TELECOMMUNICATIONS PLC,2052592,23/02/2021,34.00,Neighbourhood Services,V2500,Communications & Computing,
BRITISH TELECOMMUNICATIONS PLC,2052592,23/02/2021,20.00,Neighbourhood Services,V2500,Communications & Computing,
BRITISH TELECOMMUNICATIONS PLC,2052592,23/02/2021,34.00,Neighbourhood Services,V2500,Communications & Computing,
BRITISH TELECOMMUNICATIONS PLC,2052592,23/02/2021,34.00,Neighbourhood Services,V2500,Communications & Computing,
BRITISH TELECOMMUNICATIONS PLC,2052592,23/02/2021,34.00,Neighbourhood Services,V2500,Communications & Computing,
BRITISH TELECOMMUNICATIONS PLC,2052592,23/02/2021,20.00,Neighbourhood Services,V2500,Communications & Computing,
BRITISH TELECOMMUNICATIONS PLC,2052592,23/02/2021,34.00,Neighbourhood Services,V2500,Communications & Computing,
BRITISH TELECOMMUNICATIONS PLC,2052592,23/02/2021,34.01,Neighbourhood Services,V2500,Communications & Computing,
BRITISH TELECOMMUNICATIONS PLC,2052592,23/02/2021,-36.00,Neighbourhood Services,V2500,Communications & Computing,
BRITISH TELECOMMUNICATIONS PLC,2052592,23/02/2021,33.00,Neighbourhood Services,V2500,Communications & Computing,
BRITISH TELECOMMUNICATIONS PLC,2052592,23/02/2021,33.00,Neighbourhood Services,V2500,Communications & Computing,
BRITISH TELECOMMUNICATIONS PLC,2052592,23/02/2021,19.00,Neighbourhood Services,V2500,Communications & Computing,
BRITISH TELECOMMUNICATIONS PLC,2052592,23/02/2021,19.00,Neighbourhood Services,V2500,Communications & Computing,
BRITISH TELECOMMUNICATIONS PLC,2052592,23/02/2021,33.00,Neighbourhood Services,V2500,Communications & Computing,
BRITISH TELECOMMUNICATIONS PLC,2052592,23/02/2021,33.00,Neighbourhood Services,V2500,Communications & Computing,
BRITISH TELECOMMUNICATIONS PLC,2052592,23/02/2021,19.00,Neighbourhood Services,V2500,Communications & Computing,
BRITISH TELECOMMUNICATIONS PLC,2052592,23/02/2021,19.00,Neighbourhood Services,V2500,Communications & Computing,
BRITISH TELECOMMUNICATIONS PLC,2052592,23/02/2021,"2,704.74",Neighbourhood Services,V2500,Communications & Computing,
BRITISH TELECOMMUNICATIONS PLC,2052592,23/02/2021,98.49,Neighbourhood Services,V2500,Communications & Computing,
BROMBOROUGH PAINT & BUILDING SUPPLIES LIMITED,2052244,19/02/2021,67.91,Neighbourhood Services,V1920,"Equipment, Furniture & Materials",
BROOK VIEW HEALTH CARE LIMITED,2050505,16/02/2021,"11,424.72",Adults Care and Health and Strategic Commissioning,S6132,Physical Support - Adults (18-64),
BROOK VIEW HEALTH CARE LIMITED,2050505,16/02/2021,"11,301.96",Adults Care and Health and Strategic Commissioning,S6161,Mental Health Support - Adults (18-64),
BROOKDALE PRE SCHOOL GROUP,2046962,04/02/2021,291.72,"Children, Families & Education",E1170,Services,
BROOKDALE PRE SCHOOL GROUP,2046962,04/02/2021,"7,976.57","Children, Families & Education",E1170,Services,
BROOKDALE PRE SCHOOL GROUP,2046962,04/02/2021,"2,767.31","Children, Families & Education",E1170,Services,
BROOKDALE PRE SCHOOL GROUP,2053165,25/02/2021,202.80,"Children, Families & Education",E1170,Services,
BROOKDALE PRE SCHOOL GROUP,2053165,25/02/2021,"4,141.88","Children, Families & Education",E1170,Services,
BROOKDALE PRE SCHOOL GROUP,2053165,25/02/2021,"3,277.87","Children, Families & Education",E1170,Services,
BROOKFIELD CARE AGENCY LIMITED,2049011,10/02/2021,"21,862.43",Adults Care and Health and Strategic Commissioning,S6111,Physical Support - Older People (65+),
BROOKHURST PRE SCHOOL,2046963,04/02/2021,291.72,"Children, Families & Education",E1170,Services,
BROOKHURST PRE SCHOOL,2046963,04/02/2021,"9,264.64","Children, Families & Education",E1170,Services,
BROOKHURST PRE SCHOOL,2046963,04/02/2021,"1,886.05","Children, Families & Education",E1170,Services,
BROOKHURST PRE SCHOOL,2050207,15/02/2021,673.20,"Children, Families & Education",E1170,Services,
BROOKHURST PRE SCHOOL,2053166,25/02/2021,"4,569.92","Children, Families & Education",E1170,Services,
BROOKHURST PRE SCHOOL,2053166,25/02/2021,"3,052.44","Children, Families & Education",E1170,Services,
BROOKHURST PRE SCHOOL,2053581,26/02/2021,858.00,"Children, Families & Education",E1170,Services,
BROTHERS OF CHARITY SERVICES ,2052420,22/02/2021,"3,599.72",Adults Care and Health and Strategic Commissioning,S6121,Learning & Disability Support - Adults (18-64),
BRYN MELYN CARE LIMITED,2053582,26/02/2021,"21,200.32","Children, Families & Education",E7080,Care Provision,
BUILDING BLOCKS DAY NURSERY,2046964,04/02/2021,"4,598.88","Children, Families & Education",E1170,Services,
BUILDING BLOCKS DAY NURSERY,2046964,04/02/2021,"14,826.74","Children, Families & Education",E1170,Services,
BUILDING BLOCKS DAY NURSERY,2046964,04/02/2021,"2,382.48","Children, Families & Education",E1170,Services,
BUILDING BLOCKS DAY NURSERY,2053170,25/02/2021,"1,622.40","Children, Families & Education",E1170,Services,
BUILDING BLOCKS DAY NURSERY,2053170,25/02/2021,"7,142.46","Children, Families & Education",E1170,Services,
BUILDING BLOCKS DAY NURSERY,2053170,25/02/2021,"3,485.82","Children, Families & Education",E1170,Services,
BUILDING BLOCKS DAY NURSERY,2045847,01/02/2021,"1,092.00","Children, Families & Education",E9902,Educational Provider,
BUILDING BRIDGES (CARE HOMES) LTD,2049348,11/02/2021,"11,071.43","Children, Families & Education",E7080,Care Provision,
BUILDING BRIDGES (CARE HOMES) LTD,2049348,11/02/2021,"11,071.43","Children, Families & Education",E7080,Care Provision,
BUILDING BRIDGES (CARE HOMES) LTD,2049348,11/02/2021,"11,403.57","Children, Families & Education",E7080,Care Provision,
BUILDING DESIGN PARTNERSHIP LIMITED,2053171,25/02/2021,"2,475.00",RE  Housing & Community Safety,C6855,Contractors - Main,
BUILDING TECHNOLOGY SYSTEMS LIMITED,2051469,18/02/2021,"2,548.00",Neighbourhood Services,L3950,"Repairs, alterations and maintenance",
BULB,2051470,18/02/2021,932.58,Covid,H4120,Grants & Subscriptions,
BUPA CARE HOMES,2050507,16/02/2021,"8,286.55",Covid,H4094,Physical Support - Older People (65+),
BUPA CARE HOMES,2050507,16/02/2021,"16,120.23",Covid,H4148,Physical Support - Older People (65+),
BUPA CARE HOMES,2050507,16/02/2021,"2,160.00",Adults Care and Health and Strategic Commissioning,S6132,Physical Support - Older People (65+),
BUPA CARE HOMES,2050507,16/02/2021,"2,096.00",Adults Care and Health and Strategic Commissioning,S6141,Learning & Disability Support - Older People (65+),
BUPA CARE HOMES,2050507,16/02/2021,"1,400.00",Adults Care and Health and Strategic Commissioning,S6141,Memory & Cognition Support - Adults (18-64),
BUPA CARE HOMES,2050507,16/02/2021,"2,160.00",Adults Care and Health and Strategic Commissioning,S6141,Memory & Cognition Support - Adults (18-64),
BUPA CARE HOMES,2050507,16/02/2021,"2,160.00",Adults Care and Health and Strategic Commissioning,S6141,Memory & Cognition Support - Older People (65+),
BUPA CARE HOMES,2050507,16/02/2021,"2,096.00",Adults Care and Health and Strategic Commissioning,S6142,Physical Support - Older People (65+),
BURD WARD SOLICITORS,2046097,02/02/2021,"1,050.00",Law & Governance (Monitoring Officer),A1305,Hired or Contracted services,
BUSY BEES - WIRRAL PRENTON,2046965,04/02/2021,325.00,"Children, Families & Education",E7034,Care Provision,
BUSY BEES BROMBOROUGH,2046966,04/02/2021,"4,616.04","Children, Families & Education",E1170,Services,
BUSY BEES BROMBOROUGH,2046966,04/02/2021,"22,830.70","Children, Families & Education",E1170,Services,
BUSY BEES BROMBOROUGH,2046966,04/02/2021,"5,911.06","Children, Families & Education",E1170,Services,
BUSY BEES BROMBOROUGH,2053172,25/02/2021,"1,825.20","Children, Families & Education",E1170,Services,
BUSY BEES BROMBOROUGH,2053172,25/02/2021,"11,161.18","Children, Families & Education",E1170,Services,
BUSY BEES BROMBOROUGH,2053172,25/02/2021,"6,308.98","Children, Families & Education",E1170,Services,
BUSY BEES BROMBOROUGH,2051471,18/02/2021,362.67,"Children, Families & Education",E7027,Care Provision,
BUSY BEES BROMBOROUGH,2045848,01/02/2021,"1,092.00","Children, Families & Education",E9902,Educational Provider,
BUSY BEES BROMBOROUGH,2048743,09/02/2021,"1,716.00","Children, Families & Education",E9902,Educational Provider,
BUSY NOUGHT TO FIVES,2046967,04/02/2021,858.00,"Children, Families & Education",E1170,Services,
BUSY NOUGHT TO FIVES,2046967,04/02/2021,"4,463.99","Children, Families & Education",E1170,Services,
BUSY NOUGHT TO FIVES,2046967,04/02/2021,483.90,"Children, Families & Education",E1170,Services,
BUSY NOUGHT TO FIVES,2053173,25/02/2021,202.80,"Children, Families & Education",E1170,Services,
BUSY NOUGHT TO FIVES,2053173,25/02/2021,"3,684.33","Children, Families & Education",E1170,Services,
BUSY NOUGHT TO FIVES,2053173,25/02/2021,"1,725.36","Children, Families & Education",E1170,Services,
BUTTERCUPS CHILDMINDING - VICTORIA ASHWORTH,2046968,04/02/2021,"1,079.90","Children, Families & Education",E1170,Services,
BUTTERCUPS CHILDMINDING - VICTORIA ASHWORTH,2053174,25/02/2021,"1,243.13","Children, Families & Education",E1170,Services,
BY THE BRIDGE LIMITED,2053583,26/02/2021,9.96,"Children, Families & Education",E7080,Care Provision,
BY THE BRIDGE LIMITED,2053583,26/02/2021,9.96,"Children, Families & Education",E7080,Care Provision,
C & D SURFACING LIMITED,2052841,24/02/2021,"52,581.05",Neighbourhood Services,V1920,Hired or Contracted services,
C G SERVICES,2049012,10/02/2021,175.00,Neighbourhood Services,L3950,"Repairs, alterations and maintenance",
C L FLOOR CARE LTD,2048744,09/02/2021,603.82,Neighbourhood Services,L4950,"Equipment, Furniture & Materials",
C3 IMAGING LTD,2048745,09/02/2021,644.00,Resources,F3000,"Equipment, Furniture & Materials",
C3 IMAGING LTD,2051012,17/02/2021,380.00,Resources,F3000,"Equipment, Furniture & Materials",
C3 IMAGING LTD,2051012,17/02/2021,285.00,Resources,F3000,"Equipment, Furniture & Materials",
CABBAGE PATCH CHILDCARE-NICOLA VOLAN,2046970,04/02/2021,230.01,"Children, Families & Education",E1170,Services,
CABBAGE PATCH CHILDCARE-NICOLA VOLAN,2053175,25/02/2021,159.90,"Children, Families & Education",E1170,Services,
CACI LIMITED,2049351,11/02/2021,"3,479.00","Children, Families & Education",E9510,Communications & Computing,
CADENT GAS LIMITED,2052422,22/02/2021,"1,599.60",Resources,F2016,"Equipment, Furniture & Materials",
CADENT GAS LIMITED,2053176,25/02/2021,"2,354.40",Resources,F2016,"Equipment, Furniture & Materials",
CALDY CONSTRUCTION LIMITED,2048114,05/02/2021,"5,828.40",RE  Housing & Community Safety,C4115,Expenditure on Capital Grants,
CALDY CONSTRUCTION LIMITED,2049992,12/02/2021,"5,324.00",RE  Housing & Community Safety,C4115,Expenditure on Capital Grants,
CALDY CONSTRUCTION LIMITED,2053584,26/02/2021,"5,550.20",RE  Housing & Community Safety,C4115,Expenditure on Capital Grants,
CALDY CONSTRUCTION LIMITED,2053584,26/02/2021,"4,483.00",RE  Housing & Community Safety,C4117,Expenditure on Capital Grants,
CAMBRIAN SUPPORTED LIVING,2052594,23/02/2021,"35,207.17",Covid,H4094,Physical Support - Older People (65+),
CAMBRIANWAY LIMITED,2049993,12/02/2021,"86,231.16",RE  Environment & Regulation,C5173,Engineers Charges,
CAMBRIANWAY LIMITED,2052844,24/02/2021,835.00,RE  Environment & Regulation,C5302,Contractors - Main,
CAMBRIANWAY LIMITED,2049353,11/02/2021,"232,231.37",RE  Environment & Regulation,C5304,Contractors - Main,
CAMBRIANWAY LIMITED,2050209,15/02/2021,"14,547.07",Transformation and Resources,X8500,Credit,
CAMBRIANWAY LIMITED,2048748,09/02/2021,"49,598.00",Transformation and Resources,X8500,Credit,
CAMBRIANWAY LIMITED,2048563,08/02/2021,"2,994.57",Transformation and Resources,X8500,Credit,
CAMBRIANWAY LIMITED,2048563,08/02/2021,"30,418.26",Transformation and Resources,X8500,Credit,
CAMBRIANWAY LIMITED,2048563,08/02/2021,"24,982.40",Transformation and Resources,X8500,Credit,
CAMPEY TURF CARE SYSTEMS,2046098,02/02/2021,"1,171.42",Neighbourhood Services,L4002,Direct Transport Costs,
CANDA COPYING LTD,2048115,05/02/2021,"3,720.00",Resources,F4410,"Printing, Stationery & General Office Expenses",
CANDA COPYING LTD,2048115,05/02/2021,480.00,Resources,F4410,"Printing, Stationery & General Office Expenses",
CANDA COPYING LTD,2048115,05/02/2021,66.31,Resources,F4410,"Printing, Stationery & General Office Expenses",
CANDA COPYING LTD,2048115,05/02/2021,87.27,Resources,F4410,"Printing, Stationery & General Office Expenses",
CANDA COPYING LTD,2048115,05/02/2021,123.01,Resources,F4410,"Printing, Stationery & General Office Expenses",
CANDA COPYING LTD,2048115,05/02/2021,60.10,Resources,F4410,"Printing, Stationery & General Office Expenses",
CANDA COPYING LTD,2048115,05/02/2021,169.59,Resources,F4410,"Printing, Stationery & General Office Expenses",
CANDA COPYING LTD,2048115,05/02/2021,72.61,Resources,F4410,"Printing, Stationery & General Office Expenses",
CANDA COPYING LTD,2048115,05/02/2021,135.66,Resources,F4410,"Printing, Stationery & General Office Expenses",
CANDA COPYING LTD,2048115,05/02/2021,66.36,Resources,F4410,"Printing, Stationery & General Office Expenses",
CANDA COPYING LTD,2048115,05/02/2021,99.68,Resources,F4410,"Printing, Stationery & General Office Expenses",
CANDA COPYING LTD,2048115,05/02/2021,105.20,Resources,F4410,"Printing, Stationery & General Office Expenses",
CANDA COPYING LTD,2048115,05/02/2021,135.66,Resources,F4410,"Printing, Stationery & General Office Expenses",
CANDA COPYING LTD,2048115,05/02/2021,91.29,Resources,F4410,"Printing, Stationery & General Office Expenses",
CANDA COPYING LTD,2048115,05/02/2021,60.64,Resources,F4410,"Printing, Stationery & General Office Expenses",
CANDA COPYING LTD,2048115,05/02/2021,338.48,Resources,F4410,"Printing, Stationery & General Office Expenses",
CANDA COPYING LTD,2048115,05/02/2021,44.10,Resources,F4410,"Printing, Stationery & General Office Expenses",
CANDA COPYING LTD,2048115,05/02/2021,14.31,Resources,F4410,"Printing, Stationery & General Office Expenses",
CANDA COPYING LTD,2048115,05/02/2021,53.02,Resources,F4410,"Printing, Stationery & General Office Expenses",
CANDA COPYING LTD,2048115,05/02/2021,67.86,Resources,F4410,"Printing, Stationery & General Office Expenses",
CANDA COPYING LTD,2048115,05/02/2021,38.41,Resources,F4410,"Printing, Stationery & General Office Expenses",
CANDA COPYING LTD,2048115,05/02/2021,74.60,Resources,F4410,"Printing, Stationery & General Office Expenses",
CANDA COPYING LTD,2048115,05/02/2021,46.83,Resources,F4410,"Printing, Stationery & General Office Expenses",
CANDA COPYING LTD,2048115,05/02/2021,124.65,Resources,F4410,"Printing, Stationery & General Office Expenses",
CANDA COPYING LTD,2048115,05/02/2021,"5,846.69",Resources,F4410,"Printing, Stationery & General Office Expenses",
CANDA COPYING LTD,2048115,05/02/2021,"4,802.40",Resources,F4410,"Printing, Stationery & General Office Expenses",
CANDA COPYING LTD,2048115,05/02/2021,"4,492.25",Resources,F4410,"Printing, Stationery & General Office Expenses",
CANDA COPYING LTD,2048115,05/02/2021,81.36,Resources,F4410,"Printing, Stationery & General Office Expenses",
CANDA COPYING LTD,2048115,05/02/2021,160.85,Resources,F4410,"Printing, Stationery & General Office Expenses",
CANDA COPYING LTD,2048115,05/02/2021,42.11,Resources,F4410,"Printing, Stationery & General Office Expenses",
CANDA COPYING LTD,2048115,05/02/2021,92.30,Resources,F4410,"Printing, Stationery & General Office Expenses",
CANDA COPYING LTD,2048115,05/02/2021,44.15,Resources,F4410,"Printing, Stationery & General Office Expenses",
CANDA COPYING LTD,2048115,05/02/2021,74.19,Resources,F4410,"Printing, Stationery & General Office Expenses",
CANDA COPYING LTD,2048115,05/02/2021,206.34,Resources,F4630,"Printing, Stationery & General Office Expenses",
CAPITA BUSINESS SERVICES LIMITED,2052595,23/02/2021,"1,300.00",Resources,F6000,Communications & Computing,
CAPITAL HEALTHCARE LIMITED T/A AINSDALE COURT,2050509,16/02/2021,"2,208.00",Adults Care and Health and Strategic Commissioning,S6142,Physical Support - Older People (65+),
CAPITAL HEALTHCARE LIMITED T/A AINSDALE COURT,2050509,16/02/2021,80.00,Adults Care and Health and Strategic Commissioning,S6142,Physical Support - Older People (65+),
CARE 4 CHILDREN RESIDENTIAL SERVICES LIMITED,2053585,26/02/2021,"2,999.92","Children, Families & Education",E7080,Care Provision,
CARE 4 CHILDREN RESIDENTIAL SERVICES LIMITED,2053585,26/02/2021,"3,128.44","Children, Families & Education",E7080,Care Provision,
CARE 4 CHILDREN RESIDENTIAL SERVICES LIMITED,2053585,26/02/2021,"2,969.96","Children, Families & Education",E7080,Care Provision,
CARE AT HOME GROUP,2050211,15/02/2021,"108,816.38",Adults Care and Health and Strategic Commissioning,S6111,Physical Support - Adults (18-64),
CARE IN MIND RESIDENTIAL SERVICES,2050510,16/02/2021,702.25,Covid,H4094,Physical Support - Older People (65+),
CARE IN MIND RESIDENTIAL SERVICES,2050510,16/02/2021,"1,366.12",Covid,H4148,Physical Support - Older People (65+),
CARE IN MIND RESIDENTIAL SERVICES,2050510,16/02/2021,"16,660.00",Adults Care and Health and Strategic Commissioning,S6161,Mental Health Support - Adults (18-64),
CAREER CONNECT,2052248,19/02/2021,"41,732.60","Children, Families & Education",E9960,Hired or Contracted services,
CAROL MARWING - CHILDMINDER,2046982,04/02/2021,902.00,"Children, Families & Education",E1170,Services,
CAROL MARWING - CHILDMINDER,2053179,25/02/2021,213.20,"Children, Families & Education",E1170,Services,
CAROL MOORE ASSOCIATED T/A AS MOORE ASSOCIATES LIMITED,2046420,03/02/2021,655.20,Law & Governance (Monitoring Officer),A1305,Legal Service Provider,
CAROLINES CHILDMINDING - CAROLINE COVENTRY,2046992,04/02/2021,99.67,"Children, Families & Education",E1170,Services,
CAROLINES CHILDMINDING - CAROLINE COVENTRY,2053180,25/02/2021,69.29,"Children, Families & Education",E1170,Services,
CAROLS CHILDMINDING SERVICES - CAROL HORAN,2046993,04/02/2021,906.51,"Children, Families & Education",E1170,Services,
CAROLS CHILDMINDING SERVICES - CAROL HORAN,2053181,25/02/2021,159.90,"Children, Families & Education",E1170,Services,
CARRIE DOLAN CHILDMINDING SERVICE - CARRIE DOLAN,2046996,04/02/2021,230.01,"Children, Families & Education",E1170,Services,
CARRIE DOLAN CHILDMINDING SERVICE - CARRIE DOLAN,2046996,04/02/2021,153.34,"Children, Families & Education",E1170,Services,
CARRIE DOLAN CHILDMINDING SERVICE - CARRIE DOLAN,2053183,25/02/2021,159.90,"Children, Families & Education",E1170,Services,
CARRIE DOLAN CHILDMINDING SERVICE - CARRIE DOLAN,2053183,25/02/2021,106.60,"Children, Families & Education",E1170,Services,
CARTER BROWN THE EXPERT SERVICE,2052847,24/02/2021,117.00,Law & Governance (Monitoring Officer),A1305,Legal Service Provider,
CASTLE ACCESSIBLE TRANSPORT,2048754,09/02/2021,"4,657.50",Neighbourhood Services,S5600,Care Provision,
CASTLE ACCESSIBLE TRANSPORT,2050512,16/02/2021,"4,173.75",Neighbourhood Services,S5600,Care Provision,
CASTLE ACCESSIBLE TRANSPORT,2046423,03/02/2021,"4,421.25",Neighbourhood Services,S5600,Care Provision,
CASTLE ACCESSIBLE TRANSPORT,2052597,23/02/2021,"4,657.50",Neighbourhood Services,S5600,Care Provision,
CATER WALSH REPORTING LIMITED,2051021,17/02/2021,168.75,Law & Governance (Monitoring Officer),A1305,General Supplies and Services,
CATER WALSH REPORTING LIMITED,2051021,17/02/2021,225.00,Law & Governance (Monitoring Officer),A1305,General Supplies and Services,
CATER WALSH REPORTING LIMITED,2047000,04/02/2021,63.00,Law & Governance (Monitoring Officer),A1305,General Supplies and Services,
CATER WALSH REPORTING LIMITED,2051021,17/02/2021,"1,507.53",Law & Governance (Monitoring Officer),A1305,General Supplies and Services,
CATER WALSH REPORTING LIMITED,2048755,09/02/2021,220.50,Law & Governance (Monitoring Officer),A1305,General Supplies and Services,
CATER WALSH REPORTING LIMITED,2048755,09/02/2021,231.00,Law & Governance (Monitoring Officer),A1305,General Supplies and Services,
CATHERINE JONES - CHILDMINDER,2047006,04/02/2021,230.01,"Children, Families & Education",E1170,Services,
CATHERINE JONES - CHILDMINDER,2053184,25/02/2021,159.90,"Children, Families & Education",E1170,Services,
CATHERINE REILLY-CHILDMINDER,2047009,04/02/2021,"1,166.29","Children, Families & Education",E1170,Services,
CATHERINE REILLY-CHILDMINDER,2053185,25/02/2021,479.70,"Children, Families & Education",E1170,Services,
CATHERINE RIMMER,2046424,03/02/2021,350.00,Law & Governance (Monitoring Officer),A1305,Legal Service Provider,
CATHERINE RIMMER,2046424,03/02/2021,316.66,Law & Governance (Monitoring Officer),A1305,Legal Service Provider,
CATHERINE RIMMER,2046099,02/02/2021,420.00,Law & Governance (Monitoring Officer),A1305,Legal Service Provider,
CATHERINE RIMMER,2046099,02/02/2021,525.00,Law & Governance (Monitoring Officer),A1305,Legal Service Provider,
CATHERINE RIMMER,2046099,02/02/2021,391.67,Law & Governance (Monitoring Officer),A1305,Legal Service Provider,
CATHERINE RIMMER,2047010,04/02/2021,300.00,Law & Governance (Monitoring Officer),A1305,Legal Service Provider,
CATHERINE RIMMER,2049016,10/02/2021,250.00,Law & Governance (Monitoring Officer),A1305,Legal Service Provider,
CATHERINE RIMMER,2049365,11/02/2021,266.67,Law & Governance (Monitoring Officer),A1305,Legal Service Provider,
CATHERINE RIMMER,2050514,16/02/2021,300.00,Law & Governance (Monitoring Officer),A1305,Legal Service Provider,
CATHERINE ROWLANDS,2050212,15/02/2021,800.00,Law & Governance (Monitoring Officer),A1305,Legal Service Provider,
CAUSEWAY TECHNOLOGIES LTD,2049996,12/02/2021,"6,251.58",Neighbourhood Services,V1990,Communications & Computing,
CBC COMPUTER SYSTEMS LIMITED,2048567,08/02/2021,726.00,Resources,F4300,"Equipment, Furniture & Materials",
CBC COMPUTER SYSTEMS LIMITED,2052599,23/02/2021,-955.00,Resources,F4300,"Equipment, Furniture & Materials",
CBC COMPUTER SYSTEMS LIMITED,2052599,23/02/2021,955.00,Resources,F4300,"Equipment, Furniture & Materials",
CBC COMPUTER SYSTEMS LIMITED,2045851,01/02/2021,"1,525.50",Resources,F4300,"Equipment, Furniture & Materials",
CBC COMPUTER SYSTEMS LIMITED,2052599,23/02/2021,"2,124.00",Resources,F4308,APT&C,
CENTRE FOR MENTAL HEALTH TRAINING LTD,2048123,05/02/2021,"9,800.00",Adults Care and Health and Strategic Commissioning,P4201,Services,
CENTURY HEALTHCARE LIMITED,2050516,16/02/2021,"6,460.70",Covid,H4094,Physical Support - Older People (65+),
CENTURY HEALTHCARE LIMITED,2050516,16/02/2021,"12,568.31",Covid,H4148,Physical Support - Older People (65+),
CENTURY HEALTHCARE LIMITED,2050516,16/02/2021,"2,168.00",Adults Care and Health and Strategic Commissioning,S6131,Memory & Cognition Support - Older People (65+),
CENTURY HEALTHCARE LIMITED,2050516,16/02/2021,"-1,316.29",Adults Care and Health and Strategic Commissioning,S6131,Memory & Cognition Support - Older People (65+),
CENTURY HEALTHCARE LIMITED,2050516,16/02/2021,-434.33,Adults Care and Health and Strategic Commissioning,S6131,Memory & Cognition Support - Older People (65+),
CENTURY HEALTHCARE LIMITED,2050516,16/02/2021,"-1,006.57",Adults Care and Health and Strategic Commissioning,S6131,Physical Support - Older People (65+),
CENTURY HEALTHCARE LIMITED,2050516,16/02/2021,"2,168.00",Adults Care and Health and Strategic Commissioning,S6131,Physical Support - Older People (65+),
CENTURY HEALTHCARE LIMITED,2050516,16/02/2021,496.20,Adults Care and Health and Strategic Commissioning,S6131,Physical Support - Older People (65+),
CENTURY HEALTHCARE LIMITED,2050516,16/02/2021,"2,168.00",Adults Care and Health and Strategic Commissioning,S6131,Physical Support - Older People (65+),
CENTURY HEALTHCARE LIMITED,2050516,16/02/2021,621.36,Adults Care and Health and Strategic Commissioning,S6131,Physical Support - Older People (65+),
CENTURY HEALTHCARE LIMITED,2050516,16/02/2021,"2,168.00",Adults Care and Health and Strategic Commissioning,S6132,Physical Support - Older People (65+),
CENTURY HEALTHCARE LIMITED,2050516,16/02/2021,300.00,Adults Care and Health and Strategic Commissioning,S6132,Physical Support - Older People (65+),
CENTURY HEALTHCARE LIMITED,2050516,16/02/2021,154.86,Adults Care and Health and Strategic Commissioning,S6132,Physical Support - Older People (65+),
CENTURY HEALTHCARE LIMITED,2050516,16/02/2021,77.43,Adults Care and Health and Strategic Commissioning,S6141,Memory & Cognition Support - Older People (65+),
CENTURY HEALTHCARE LIMITED,2050516,16/02/2021,10.71,Adults Care and Health and Strategic Commissioning,S6141,Memory & Cognition Support - Older People (65+),
CENTURY HEALTHCARE LIMITED,2050516,16/02/2021,"2,168.00",Adults Care and Health and Strategic Commissioning,S6167,Memory & Cognition Support - Older People (65+),
CENTURY HEALTHCARE LIMITED,2050516,16/02/2021,"2,168.00",Adults Care and Health and Strategic Commissioning,S6167,Mental Health Support - Older People (65+),
CENTURY HEALTHCARE LIMITED,2050516,16/02/2021,154.86,Adults Care and Health and Strategic Commissioning,S6167,Mental Health Support - Older People (65+),
CENTURY HEALTHCARE LIMITED,2050516,16/02/2021,"2,168.00",Adults Care and Health and Strategic Commissioning,S6167,Mental Health Support - Older People (65+),
CHAIGELEY EDUCATIONAL FOUNDATION,2050214,15/02/2021,"12,552.00","Children, Families & Education",E5870,Specialist Contracts & Fees,
CHANDRIKA MEETEN (CHILDREN MATTER),2047014,04/02/2021,260.00,"Children, Families & Education",E7037,Care Provision,
CHANDRIKA MEETEN (CHILDREN MATTER),2047014,04/02/2021,510.00,"Children, Families & Education",E7037,Care Provision,
CHANDRIKA MEETEN (CHILDREN MATTER),2049372,11/02/2021,278.00,"Children, Families & Education",E7041,Care Provision,
CHANGE GROW LIVE SERVICES LIMITED,2052848,24/02/2021,"482,437.50",Adults Care and Health and Strategic Commissioning,P4010,Contracts With Voluntary Organisations,
CHAPEL HOUSE CARE LIMITED,2050517,16/02/2021,"2,468.00",Adults Care and Health and Strategic Commissioning,S6167,Mental Health Support - Older People (65+),
CHARING CROSS METHODIST NEIGHBOURHOOD,2052250,19/02/2021,"2,000.00","Children, Families & Education",E9180,Rents - external,
CHARLES STEPHENS FUNERAL DIRECTORS,2045852,01/02/2021,"52,890.00",Balance Sheet,00000,Debtors - Other Entities and Individuals,
CHARLOTTE HOUSE CARE LIMITED,2050520,16/02/2021,"10,112.40",Covid,H4094,Physical Support - Older People (65+),
CHARLOTTE HOUSE CARE LIMITED,2050520,16/02/2021,"28,142.09",Covid,H4148,Physical Support - Older People (65+),
CHARLOTTE HOUSE CARE LIMITED,2050520,16/02/2021,"3,600.00",Adults Care and Health and Strategic Commissioning,S6121,Learning & Disability Support - Older People (65+),
CHARLOTTE HOUSE CARE LIMITED,2050520,16/02/2021,"2,076.00",Adults Care and Health and Strategic Commissioning,S6131,Memory & Cognition Support - Older People (65+),
CHARLOTTE HOUSE CARE LIMITED,2050520,16/02/2021,"2,076.00",Adults Care and Health and Strategic Commissioning,S6131,Memory & Cognition Support - Older People (65+),
CHARLOTTE HOUSE CARE LIMITED,2050520,16/02/2021,"2,244.00",Adults Care and Health and Strategic Commissioning,S6131,Physical Support - Adults (18-64),
CHARLOTTE HOUSE CARE LIMITED,2050520,16/02/2021,"2,244.00",Adults Care and Health and Strategic Commissioning,S6131,Physical Support - Adults (18-64),
CHARLOTTE HOUSE CARE LIMITED,2050520,16/02/2021,160.29,Adults Care and Health and Strategic Commissioning,S6131,Physical Support - Older People (65+),
CHARLOTTE HOUSE CARE LIMITED,2050520,16/02/2021,519.00,Adults Care and Health and Strategic Commissioning,S6131,Physical Support - Older People (65+),
CHARLOTTE HOUSE CARE LIMITED,2050520,16/02/2021,"2,076.00",Adults Care and Health and Strategic Commissioning,S6131,Physical Support - Older People (65+),
CHARLOTTE HOUSE CARE LIMITED,2050520,16/02/2021,"2,244.00",Adults Care and Health and Strategic Commissioning,S6131,Physical Support - Older People (65+),
CHARLOTTE HOUSE CARE LIMITED,2050520,16/02/2021,"2,076.00",Adults Care and Health and Strategic Commissioning,S6131,Physical Support - Older People (65+),
CHARLOTTE HOUSE CARE LIMITED,2050520,16/02/2021,"2,244.00",Adults Care and Health and Strategic Commissioning,S6131,Physical Support - Older People (65+),
CHARLOTTE HOUSE CARE LIMITED,2050520,16/02/2021,"2,244.00",Adults Care and Health and Strategic Commissioning,S6131,Physical Support - Older People (65+),
CHARLOTTE HOUSE CARE LIMITED,2050520,16/02/2021,864.00,Adults Care and Health and Strategic Commissioning,S6131,Physical Support - Older People (65+),
CHARLOTTE HOUSE CARE LIMITED,2050520,16/02/2021,"2,076.00",Adults Care and Health and Strategic Commissioning,S6131,Physical Support - Older People (65+),
CHARLOTTE HOUSE CARE LIMITED,2050520,16/02/2021,"2,076.00",Adults Care and Health and Strategic Commissioning,S6131,Physical Support - Older People (65+),
